﻿OrganisationName,OrganisationalUnit,BeneficiaryName,PaymentDate,Amount,Purpose,CategoryInternal,OrganisationURI
Staffordshire County Council,Stafford Invoice Led Phys Disa,5 Care Services Limited,02/12/2019,4838.63,Practical Care,Practical Care,http://opendatacommunities.org/id/county-council/staffordshire  
Staffordshire County Council,Home to school transport-main,5 TEN CONTRACTS LTD,02/12/2019,49144.52,Home School Contract Vehicles,Home School Contract Vehicles,http://opendatacommunities.org/id/county-council/staffordshire  
Staffordshire County Council,Cannock Invoice Led Phys Disab,Active Assistance Ltd,02/12/2019,1176.56,Practical Care,Practical Care,http://opendatacommunities.org/id/county-council/staffordshire  
Staffordshire County Council,Central County Wide Works,AMEY LG LTD,02/12/2019,7001623.34,Gen highway Maint bud only,Gen highway Maint bud only,http://opendatacommunities.org/id/county-council/staffordshire  
Staffordshire County Council,Case Manage Team -Central West,Atkinson Lewis,02/12/2019,1590.00,Prev Supp Legal Costs,Prev Supp Legal Costs,http://opendatacommunities.org/id/county-council/staffordshire  
Staffordshire County Council,2 Contraception,Audley Health Centre,02/12/2019,1214.60,other services external,other services external,http://opendatacommunities.org/id/county-council/staffordshire  
Staffordshire County Council,Through Care Team - Lich/Can,BENNETT'S TAXIS,02/12/2019,1584.00,S17 TRANSPORT,S17 TRANSPORT,http://opendatacommunities.org/id/county-council/staffordshire  
Staffordshire County Council,Through Care Team - Lich/Can,BENNETT'S TAXIS,02/12/2019,918.00,S17 TRANSPORT,S17 TRANSPORT,http://opendatacommunities.org/id/county-council/staffordshire  
Staffordshire County Council,Through Care Team - Lich/Can,BENNETT'S TAXIS,02/12/2019,684.00,S17 TRANSPORT,S17 TRANSPORT,http://opendatacommunities.org/id/county-council/staffordshire  
Staffordshire County Council,Pupil Premium Grant,BIDDULPH HIGH SCHOOL (ACADEMY),02/12/2019,1000.00,Grants to third parties,Grants to third parties,http://opendatacommunities.org/id/county-council/staffordshire  
Staffordshire County Council,Speed Awareness,BOUNDARY SCHOOL OF MOTORING,02/12/2019,780.00,DRIVING INSTRUCTION,DRIVING INSTRUCTION,http://opendatacommunities.org/id/county-council/staffordshire  
Staffordshire County Council,Fostering Main,Chris Dennison Consulting Ltd,02/12/2019,1800.00,AGENCY STAFF,AGENCY STAFF,http://opendatacommunities.org/id/county-council/staffordshire  
Staffordshire County Council,Safeguarding Board - Admin,Clear Outcomes,02/12/2019,1431.70,Courses,Courses,http://opendatacommunities.org/id/county-council/staffordshire  
Staffordshire County Council,Meadows School,CLOWES COACHES,02/12/2019,3510.29,Home School Contract Vehicles,Home School Contract Vehicles,http://opendatacommunities.org/id/county-council/staffordshire  
Staffordshire County Council,Moorlands Invoice Led Phys Dis,COMPANION FOR CARE SERVICES,02/12/2019,535.11,Practical Care,Practical Care,http://opendatacommunities.org/id/county-council/staffordshire  
Staffordshire County Council,Great Wyrley CSU,Corona Energy Retail 4 Ltd,02/12/2019,567.43,Gas,Gas,http://opendatacommunities.org/id/county-council/staffordshire  
Staffordshire County Council,Stafford Invoice Led Older Peo,CSPC Healthcare Ltd,02/12/2019,598.50,Practical Care,Practical Care,http://opendatacommunities.org/id/county-council/staffordshire  
Staffordshire County Council,Stafford Invoice Led Older Peo,CSPC Healthcare Ltd,02/12/2019,1260.00,Practical Care,Practical Care,http://opendatacommunities.org/id/county-council/staffordshire  
Staffordshire County Council,BRFC - Central,Department for Work & Pensions,02/12/2019,22186.09,Case Work,Case Work,http://opendatacommunities.org/id/county-council/staffordshire  
Staffordshire County Council,2 Contraception,DR ROBINSON & PARTNERS,02/12/2019,1265.60,other services external,other services external,http://opendatacommunities.org/id/county-council/staffordshire  
Staffordshire County Council,County Fleet Care Purchase Of ,Ecco Safety Group Uk Ltd Ltd,02/12/2019,6715.62,Vehicle Purchase,Vehicle Purchase,http://opendatacommunities.org/id/county-council/staffordshire  
Staffordshire County Council,Moorlands Invoice Led Older Pe,Essential Health Limited,02/12/2019,882.00,Practical Care,Practical Care,http://opendatacommunities.org/id/county-council/staffordshire  
Staffordshire County Council,Stafford Invoice Led Phys Disa,Freedom Support Limited,02/12/2019,10080.00,Practical Care,Practical Care,http://opendatacommunities.org/id/county-council/staffordshire  
Staffordshire County Council,5 Upper Woollaston - CoS,G & G PLANT HIRE,02/12/2019,720.00,Land Acquistion,Land Acquistion,http://opendatacommunities.org/id/county-council/staffordshire  
Staffordshire County Council,Enson Lane Yarlet,G & G PLANT HIRE,02/12/2019,1980.00,General Equipment Repair/Maint,General Equipment Repair/Maint,http://opendatacommunities.org/id/county-council/staffordshire  
Staffordshire County Council,Speech and Language/O Therapy,Headstart Speech and Behaviour Clinic Lt,02/12/2019,1644.00,OTHER HIRED SERVICES,OTHER HIRED SERVICES,http://opendatacommunities.org/id/county-council/staffordshire  
Staffordshire County Council,Cannock Invoice Led Phys Disab,HEADWAY SOUTH STAFFORDSHIRE,02/12/2019,520.00,Practical Care,Practical Care,http://opendatacommunities.org/id/county-council/staffordshire  
Staffordshire County Council,Cannock Invoice Led Older Peop,HEADWAY SOUTH STAFFORDSHIRE,02/12/2019,600.00,Practical Care,Practical Care,http://opendatacommunities.org/id/county-council/staffordshire  
Staffordshire County Council,Newcastle LD Team,In Out and About Ltd,02/12/2019,1633.60,Day Care,Day Care,http://opendatacommunities.org/id/county-council/staffordshire  
Staffordshire County Council,1320 Springhill LD Mount Road ,INTEGRATED WATER SERVICES,02/12/2019,688.46,Special Water Hygiene Service,Special Water Hygiene Service,http://opendatacommunities.org/id/county-council/staffordshire  
Staffordshire County Council,Coton Green Primary School,J TOMLINSON LTD,02/12/2019,702.00,Service/Test Gas / Oil Boiler,Service/Test Gas / Oil Boiler,http://opendatacommunities.org/id/county-council/staffordshire  
Staffordshire County Council,East Staffs Invoice Led Phys D,K and S Care Solutions Ltd,02/12/2019,821.80,Practical Care,Practical Care,http://opendatacommunities.org/id/county-council/staffordshire  
Staffordshire County Council,Stafford Invoice Led Older Peo,K and S Care Solutions Ltd,02/12/2019,853.65,Practical Care,Practical Care,http://opendatacommunities.org/id/county-council/staffordshire  
Staffordshire County Council,Stafford Invoice Led Older Peo,K and S Care Solutions Ltd,02/12/2019,576.80,Practical Care,Practical Care,http://opendatacommunities.org/id/county-council/staffordshire  
Staffordshire County Council,Stafford Invoice Led Phys Disa,K and S Care Solutions Ltd,02/12/2019,1072.58,Practical Care,Practical Care,http://opendatacommunities.org/id/county-council/staffordshire  
Staffordshire County Council,SWS MH Team U65,LINFIELD CARE LIMITED,02/12/2019,998.20,Practical Care,Practical Care,http://opendatacommunities.org/id/county-council/staffordshire  
Staffordshire County Council,Manor Hill First Expansion,Manor Hill First School,02/12/2019,10642.95,Construction Works,Construction Works,http://opendatacommunities.org/id/county-council/staffordshire  
Staffordshire County Council,Blackfriars School,,02/12/2019,1445.40,Personal Travel Budgets,Personal Travel Budgets,http://opendatacommunities.org/id/county-council/staffordshire  
Staffordshire County Council,Adoption Support Fund,Nature & Nurture,02/12/2019,1923.00,PROFESSIONAL FEES,PROFESSIONAL FEES,http://opendatacommunities.org/id/county-council/staffordshire  
Staffordshire County Council,Other NDORS Courses,NDORS,02/12/2019,4351.20,PROFESSIONAL FEES,PROFESSIONAL FEES,http://opendatacommunities.org/id/county-council/staffordshire  
Staffordshire County Council,Other NDORS Courses,NDORS,02/12/2019,529.20,PROFESSIONAL FEES,PROFESSIONAL FEES,http://opendatacommunities.org/id/county-council/staffordshire  
Staffordshire County Council,Speed Awareness,NDORS,02/12/2019,162523.20,PROFESSIONAL FEES,PROFESSIONAL FEES,http://opendatacommunities.org/id/county-council/staffordshire  
Staffordshire County Council,Other NDORS Courses,NDORS,02/12/2019,15993.60,PROFESSIONAL FEES,PROFESSIONAL FEES,http://opendatacommunities.org/id/county-council/staffordshire  
Staffordshire County Council,Lichfield Invoice Led Older Pe,Nexus Care Services,02/12/2019,785.97,Practical Care,Practical Care,http://opendatacommunities.org/id/county-council/staffordshire  
Staffordshire County Council,Speed Awareness,P GORING,02/12/2019,520.00,DRIVING INSTRUCTION,DRIVING INSTRUCTION,http://opendatacommunities.org/id/county-council/staffordshire  
Staffordshire County Council,2 Contraception,P J LIGHTFOOT & PARTNERS,02/12/2019,947.80,other services external,other services external,http://opendatacommunities.org/id/county-council/staffordshire  
Staffordshire County Council,Independent School Fee Special,PEAK PURSUITS LTD,02/12/2019,5310.00,Fees to Independent Schools,Fees to Independent Schools,http://opendatacommunities.org/id/county-council/staffordshire  
Staffordshire County Council,Independent School Fee Special,PEAK PURSUITS LTD,02/12/2019,3186.00,Fees to Independent Schools,Fees to Independent Schools,http://opendatacommunities.org/id/county-council/staffordshire  
Staffordshire County Council,Independent School Fee Special,PEAK PURSUITS LTD,02/12/2019,5310.00,Fees to Independent Schools,Fees to Independent Schools,http://opendatacommunities.org/id/county-council/staffordshire  
Staffordshire County Council,East Staffs Invoice Led Phys D,Portland College,02/12/2019,3754.80,Supported Group Care,Supported Group Care,http://opendatacommunities.org/id/county-council/staffordshire  
Staffordshire County Council,Speed Awareness,R BROWN,02/12/2019,1300.00,DRIVING INSTRUCTION,DRIVING INSTRUCTION,http://opendatacommunities.org/id/county-council/staffordshire  
Staffordshire County Council,SCC Digital,Risual Group Ltd,02/12/2019,918.00,PROFESSIONAL FEES,PROFESSIONAL FEES,http://opendatacommunities.org/id/county-council/staffordshire  
Staffordshire County Council,Lichfield Invoice Led Older Pe,RLS Care Services LTD,02/12/2019,510.30,Practical Care,Practical Care,http://opendatacommunities.org/id/county-council/staffordshire  
Staffordshire County Council,Cannock Invoice Led Older Peop,RLS Care Services LTD,02/12/2019,510.30,Practical Care,Practical Care,http://opendatacommunities.org/id/county-council/staffordshire  
Staffordshire County Council,Cannock Invoice Led Older Peop,RLS Care Services LTD,02/12/2019,623.70,Practical Care,Practical Care,http://opendatacommunities.org/id/county-council/staffordshire  
Staffordshire County Council,Cannock MH Team U65,Sanctuary Housing Association,02/12/2019,521.20,Supported Group Care,Supported Group Care,http://opendatacommunities.org/id/county-council/staffordshire  
Staffordshire County Council,Stat-OOC transport,Sandhu Taxi Service,02/12/2019,1406.00,Home School Contract Vehicles,Home School Contract Vehicles,http://opendatacommunities.org/id/county-council/staffordshire  
Staffordshire County Council,Newcastle LD Team,SHELTON CARE LTD,02/12/2019,3402.52,Day Care,Day Care,http://opendatacommunities.org/id/county-council/staffordshire  
Staffordshire County Council,E Staffs LD Team,SHERRATTS WOOD CIC,02/12/2019,2564.20,Day Care,Day Care,http://opendatacommunities.org/id/county-council/staffordshire  
Staffordshire County Council,Stafford Western Access Rd 13/,Smartest Energy,02/12/2019,3034.35,Network Rail Fees,Network Rail Fees,http://opendatacommunities.org/id/county-council/staffordshire  
Staffordshire County Council,Great Wyrley Day Centre,South Staffs Water Business,02/12/2019,527.75,Water Charges Metered,Water Charges Metered,http://opendatacommunities.org/id/county-council/staffordshire  
Staffordshire County Council,Day Services Lichfield Unalloc,Staffordshire University Acad Trust,02/12/2019,1591.45,Rent / Lease Of Premises,Rent / Lease Of Premises,http://opendatacommunities.org/id/county-council/staffordshire  
Staffordshire County Council,Gentleshaw Common,STAFFORDSHIRE WILDLIFE TRUST LTD,02/12/2019,69904.05,General Equipment Purchase,General Equipment Purchase,http://opendatacommunities.org/id/county-council/staffordshire  
Staffordshire County Council,Stat-OOC transport,Star Private Hire Staffs Ltd,02/12/2019,1026.00,Home School Contract Vehicles,Home School Contract Vehicles,http://opendatacommunities.org/id/county-council/staffordshire  
Staffordshire County Council,Castle House (The Hub),Taybar Limited,02/12/2019,926.10,Premises Services,Premises Services,http://opendatacommunities.org/id/county-council/staffordshire  
Staffordshire County Council,2 Contraception,The Langton Medical Group,02/12/2019,1869.80,other services external,other services external,http://opendatacommunities.org/id/county-council/staffordshire  
Staffordshire County Council,Audit,TIAA Ltd,02/12/2019,6804.00,AGENCY STAFF,AGENCY STAFF,http://opendatacommunities.org/id/county-council/staffordshire  
Staffordshire County Council,Public Transp Support & Co-ord,Travel West Midlands,02/12/2019,8517.25,Payments to Bus Operators,Payments to Bus Operators,http://opendatacommunities.org/id/county-council/staffordshire  
Staffordshire County Council,Stafford Invoice Led Phys Disa,Triband Care Services Ltd,02/12/2019,504.00,Practical Care,Practical Care,http://opendatacommunities.org/id/county-council/staffordshire  
Staffordshire County Council,Moorlands Invoice Led Phys Dis,Triband Care Services Ltd,02/12/2019,567.00,Practical Care,Practical Care,http://opendatacommunities.org/id/county-council/staffordshire  
Staffordshire County Council,Stafford Invoice Led Older Peo,Triband Care Services Ltd,02/12/2019,504.00,Practical Care,Practical Care,http://opendatacommunities.org/id/county-council/staffordshire  
Staffordshire County Council,Stafford Invoice Led Older Peo,Triband Care Services Ltd,02/12/2019,585.90,Practical Care,Practical Care,http://opendatacommunities.org/id/county-council/staffordshire  
Staffordshire County Council,Stafford Invoice Led Older Peo,Triband Care Services Ltd,02/12/2019,784.00,Practical Care,Practical Care,http://opendatacommunities.org/id/county-council/staffordshire  
Staffordshire County Council,Stafford Invoice Led Older Peo,Triband Care Services Ltd,02/12/2019,527.31,Practical Care,Practical Care,http://opendatacommunities.org/id/county-council/staffordshire  
Staffordshire County Council,Stafford Invoice Led Older Peo,Triband Care Services Ltd,02/12/2019,567.00,Practical Care,Practical Care,http://opendatacommunities.org/id/county-council/staffordshire  
Staffordshire County Council,Stafford Invoice Led Older Peo,Triband Care Services Ltd,02/12/2019,567.00,Practical Care,Practical Care,http://opendatacommunities.org/id/county-council/staffordshire  
Staffordshire County Council,Stafford Invoice Led Older Peo,Triband Care Services Ltd,02/12/2019,742.00,Practical Care,Practical Care,http://opendatacommunities.org/id/county-council/staffordshire  
Staffordshire County Council,Moorlands Invoice Led Older Pe,Triband Care Services Ltd,02/12/2019,606.90,Practical Care,Practical Care,http://opendatacommunities.org/id/county-council/staffordshire  
Staffordshire County Council,Moorlands Invoice Led Older Pe,Triband Care Services Ltd,02/12/2019,546.21,Practical Care,Practical Care,http://opendatacommunities.org/id/county-council/staffordshire  
Staffordshire County Council,Moorlands Invoice Led Older Pe,Triband Care Services Ltd,02/12/2019,567.00,Practical Care,Practical Care,http://opendatacommunities.org/id/county-council/staffordshire  
Staffordshire County Council,Advocacy,VoiceAbility Advocacy,02/12/2019,41998.25,OTHER HIRED SERVICES,OTHER HIRED SERVICES,http://opendatacommunities.org/id/county-council/staffordshire  
Staffordshire County Council,1 STI Test & Treat,WALSALL HEALTHCARE NHS TRUST,02/12/2019,8606.33,other services internal,other services internal,http://opendatacommunities.org/id/county-council/staffordshire  
Staffordshire County Council,1 STI Test & Treat,WALSALL HEALTHCARE NHS TRUST,02/12/2019,9582.04,other services internal,other services internal,http://opendatacommunities.org/id/county-council/staffordshire  
Staffordshire County Council,Virtual School - Pupil Premium,Waterstones Booksellers Ltd,02/12/2019,4318.56,CAT1 COURSE FEES,CAT1 COURSE FEES,http://opendatacommunities.org/id/county-council/staffordshire  
Staffordshire County Council,Street Hay Furniture & ICT,YORKSHIRE PURCHASING ORG,02/12/2019,1870.08,Construction Works,Construction Works,http://opendatacommunities.org/id/county-council/staffordshire  
Staffordshire County Council,Street Hay Furniture & ICT,YORKSHIRE PURCHASING ORG,02/12/2019,807.30,Construction Works,Construction Works,http://opendatacommunities.org/id/county-council/staffordshire  
Staffordshire County Council,Street Hay Furniture & ICT,YORKSHIRE PURCHASING ORG,02/12/2019,638.40,Construction Works,Construction Works,http://opendatacommunities.org/id/county-council/staffordshire  
Staffordshire County Council,Home to school transport-main,24HR WEST SIDE TAXIS,03/12/2019,31300.97,Home School Contract Vehicles,Home School Contract Vehicles,http://opendatacommunities.org/id/county-council/staffordshire  
Staffordshire County Council,12 Drug Misuse - A,Addiction Dependency Solutions,03/12/2019,395008.34,OTHER HIRED SERVICES,OTHER HIRED SERVICES,http://opendatacommunities.org/id/county-council/staffordshire  
Staffordshire County Council,Horton Lodge School,ARJO UK LTD,03/12/2019,2260.25,Service/Test Arjo/Closomats,Service/Test Arjo/Closomats,http://opendatacommunities.org/id/county-council/staffordshire  
Staffordshire County Council,1323 Hawthorn House WS13 6EN,ARJO UK LTD,03/12/2019,1542.28,Service/Test Arjo/Closomats,Service/Test Arjo/Closomats,http://opendatacommunities.org/id/county-council/staffordshire  
Staffordshire County Council,Cannock Resource Centre,ARJO UK LTD,03/12/2019,1104.88,Service/Test Arjo/Closomats,Service/Test Arjo/Closomats,http://opendatacommunities.org/id/county-council/staffordshire  
Staffordshire County Council,Horninglow Bungalows,ARJO UK LTD,03/12/2019,1460.28,Service/Test Arjo/Closomats,Service/Test Arjo/Closomats,http://opendatacommunities.org/id/county-council/staffordshire  
Staffordshire County Council,Beecroft Hill School,ARJO UK LTD,03/12/2019,600.00,Service/Test Arjo/Closomats,Service/Test Arjo/Closomats,http://opendatacommunities.org/id/county-council/staffordshire  
Staffordshire County Council,Newcastle Invoice Led Older Pe,Assist DC Ltd TA Choose Your Care,03/12/2019,1054.62,Practical Care,Practical Care,http://opendatacommunities.org/id/county-council/staffordshire  
Staffordshire County Council,Newcastle Invoice Led Older Pe,Assist DC Ltd TA Choose Your Care,03/12/2019,820.26,Practical Care,Practical Care,http://opendatacommunities.org/id/county-council/staffordshire  
Staffordshire County Council,Home to school transport-main,BENNETTS TRAVEL (CRANBERRY) LTD,03/12/2019,5147.50,Home School Tickets,Home School Tickets,http://opendatacommunities.org/id/county-council/staffordshire  
Staffordshire County Council,Operations Delivery,BERKSWICH PARISH COUNCIL,03/12/2019,2062.94,Parish District Grass Cutting,Parish District Grass Cutting,http://opendatacommunities.org/id/county-council/staffordshire  
Staffordshire County Council,S Staffs LD Team,Bespoke Supportive Tenancies Ltd,03/12/2019,22332.44,Supported Group Care,Supported Group Care,http://opendatacommunities.org/id/county-council/staffordshire  
Staffordshire County Council,Marshlands School,BID,03/12/2019,504.00,Service/Test Controlled Access,Service/Test Controlled Access,http://opendatacommunities.org/id/county-council/staffordshire  
Staffordshire County Council,Knutton Enterprise Centre,BID,03/12/2019,684.00,Service/Test Controlled Access,Service/Test Controlled Access,http://opendatacommunities.org/id/county-council/staffordshire  
Staffordshire County Council,Oakhill Primary School,BID,03/12/2019,612.00,Service/Test Controlled Access,Service/Test Controlled Access,http://opendatacommunities.org/id/county-council/staffordshire  
Staffordshire County Council,Newc OP - South,BRADFORD METROPOLITAN D C,03/12/2019,1401.82,RCSS Very Dependent Elderly,RCSS Very Dependent Elderly,http://opendatacommunities.org/id/county-council/staffordshire  
Staffordshire County Council,DIPS,CANNOCK CHASE HIGH SCHOOL,03/12/2019,5190.00, Alternative Education Schemes, Alternative Education Schemes,http://opendatacommunities.org/id/county-council/staffordshire  
Staffordshire County Council,2 Contraception,CASTLEFIELDS MEDICAL PRACTICE,03/12/2019,1125.60,other services external,other services external,http://opendatacommunities.org/id/county-council/staffordshire  
Staffordshire County Council,2 Contraception,Colliery Practice,03/12/2019,4180.92,other services external,other services external,http://opendatacommunities.org/id/county-council/staffordshire  
Staffordshire County Council,S.S. Adults Safeguard P'ship,COMPASS GROUP UK & IRELAND LTD,03/12/2019,7132.80,Training Resources,Training Resources,http://opendatacommunities.org/id/county-council/staffordshire  
Staffordshire County Council,1896 CheadleCouncil15-17 HighS,Concept Elevators (UK) Ltd,03/12/2019,705.60,Day to Day Mechanical Services,Day to Day Mechanical Services,http://opendatacommunities.org/id/county-council/staffordshire  
Staffordshire County Council,Newcastle LD Team,Delam Care Ltd,03/12/2019,4016.27,Supported Group Care,Supported Group Care,http://opendatacommunities.org/id/county-council/staffordshire  
Staffordshire County Council,Independent Sch Fees Mainstr'm,DENSTONE COLLEGE PREPARTORY SCH,03/12/2019,11733.75,Fees to Independent Schools,Fees to Independent Schools,http://opendatacommunities.org/id/county-council/staffordshire  
Staffordshire County Council,The Deanery Penkridge,G EVANS (SERVICES) LTD,03/12/2019,4467.60,General Equipment Repair/Maint,General Equipment Repair/Maint,http://opendatacommunities.org/id/county-council/staffordshire  
Staffordshire County Council,2 Contraception,Gravel Hill,03/12/2019,620.20,other services external,other services external,http://opendatacommunities.org/id/county-council/staffordshire  
Staffordshire County Council,SEN Direct Payments,,03/12/2019,588.00,Direct Payments Other,Direct Payments Other,http://opendatacommunities.org/id/county-council/staffordshire  
Staffordshire County Council,SEN Direct Payments,,03/12/2019,2695.00,Direct Payments Other,Direct Payments Other,http://opendatacommunities.org/id/county-council/staffordshire  
Staffordshire County Council,St Michael's CE(C) Pri Lichfld,J TOMLINSON LTD,03/12/2019,534.00,Service/Test Gas / Oil Boiler,Service/Test Gas / Oil Boiler,http://opendatacommunities.org/id/county-council/staffordshire  
Staffordshire County Council,Landywood Primary School,J TOMLINSON LTD,03/12/2019,798.00,Service/Test Gas / Oil Boiler,Service/Test Gas / Oil Boiler,http://opendatacommunities.org/id/county-council/staffordshire  
Staffordshire County Council,Langdale Junior School,J TOMLINSON LTD,03/12/2019,912.00,Service/Test Gas / Oil Boiler,Service/Test Gas / Oil Boiler,http://opendatacommunities.org/id/county-council/staffordshire  
Staffordshire County Council,MCA / DoLs / AMHP,JG Social Care Ltd,03/12/2019,1100.00,Independent Investigations,Independent Investigations,http://opendatacommunities.org/id/county-council/staffordshire  
Staffordshire County Council,Home to school transport-main,JOHN M WALLEY TAXI,03/12/2019,1235.00,Home School Contract Vehicles,Home School Contract Vehicles,http://opendatacommunities.org/id/county-council/staffordshire  
Staffordshire County Council,Doxey Road Car Park,Jonathan Lloyd Developments Limited,03/12/2019,1800.00,OTHER HIRED SERVICES,OTHER HIRED SERVICES,http://opendatacommunities.org/id/county-council/staffordshire  
Staffordshire County Council,Newcastle LD Team,Jump 2 Independence Ltd,03/12/2019,1354.39,Supported Group Care,Supported Group Care,http://opendatacommunities.org/id/county-council/staffordshire  
Staffordshire County Council,Newcastle Invoice Led Older Pe,Jump 2 Independence Ltd,03/12/2019,1456.56,Practical Care,Practical Care,http://opendatacommunities.org/id/county-council/staffordshire  
Staffordshire County Council,Newcastle Invoice Led Older Pe,Jump 2 Independence Ltd,03/12/2019,1456.56,Practical Care,Practical Care,http://opendatacommunities.org/id/county-council/staffordshire  
Staffordshire County Council,Newcastle Invoice Led Older Pe,Jump 2 Independence Ltd,03/12/2019,1456.56,Practical Care,Practical Care,http://opendatacommunities.org/id/county-council/staffordshire  
Staffordshire County Council,Newcastle Invoice Led Older Pe,Jump 2 Independence Ltd,03/12/2019,1456.57,Practical Care,Practical Care,http://opendatacommunities.org/id/county-council/staffordshire  
Staffordshire County Council,2 Contraception,Lakeside Medical Centre,03/12/2019,562.40,other services external,other services external,http://opendatacommunities.org/id/county-council/staffordshire  
Staffordshire County Council,Stafford LD Team,LANDAU LTD,03/12/2019,600.00,Day Care,Day Care,http://opendatacommunities.org/id/county-council/staffordshire  
Staffordshire County Council,2 Contraception,LEEK HEALTH CENTRE,03/12/2019,709.60,other services external,other services external,http://opendatacommunities.org/id/county-council/staffordshire  
Staffordshire County Council,Stafford Invoice Led Phys Disa,LSC Nursing Care & Services Ltd,03/12/2019,2255.15,Practical Care,Practical Care,http://opendatacommunities.org/id/county-council/staffordshire  
Staffordshire County Council,Care Act Implementation,Medequip Assistive Tech Ltd,03/12/2019,16795.00,Supp Serv Legal,Supp Serv Legal,http://opendatacommunities.org/id/county-council/staffordshire  
Staffordshire County Council,East Staffs Invoice Led Phys D,MEDILINE NURSES,03/12/2019,5080.32,Practical Care,Practical Care,http://opendatacommunities.org/id/county-council/staffordshire  
Staffordshire County Council,East Staffs Invoice Led Phys D,MEDILINE NURSES,03/12/2019,5331.71,Practical Care,Practical Care,http://opendatacommunities.org/id/county-council/staffordshire  
Staffordshire County Council,E Staffs LD Team,Mediline Nurses & Carers Ltd,03/12/2019,5360.00,Supported Group Care,Supported Group Care,http://opendatacommunities.org/id/county-council/staffordshire  
Staffordshire County Council,"0821 17 Eastgate St, Stafford,",MITIE TECH FACILITIES MGMNT LTD,03/12/2019,1080.41,Service/Test Air-conditioning,Service/Test Air-conditioning,http://opendatacommunities.org/id/county-council/staffordshire  
Staffordshire County Council,St. Modwen's Catholic Primary,MITIE TECH FACILITIES MGMNT LTD,03/12/2019,1941.47,Service/Test Air-conditioning,Service/Test Air-conditioning,http://opendatacommunities.org/id/county-council/staffordshire  
Staffordshire County Council,Paget High School,MITIE TECH FACILITIES MGMNT LTD,03/12/2019,1279.78,Service/Test Air-conditioning,Service/Test Air-conditioning,http://opendatacommunities.org/id/county-council/staffordshire  
Staffordshire County Council,Lymedale West Business Centre,MITIE TECH FACILITIES MGMNT LTD,03/12/2019,742.84,Service/Test Air-conditioning,Service/Test Air-conditioning,http://opendatacommunities.org/id/county-council/staffordshire  
Staffordshire County Council,E Staffs LD Team,NH Care,03/12/2019,14897.14,RCLS Learning Disability,RCLS Learning Disability,http://opendatacommunities.org/id/county-council/staffordshire  
Staffordshire County Council,E Staffs LD Team,NH Care,03/12/2019,15393.71,RCLS Learning Disability,RCLS Learning Disability,http://opendatacommunities.org/id/county-council/staffordshire  
Staffordshire County Council,E Staffs LD Team,NH Care,03/12/2019,14897.14,RCLS Learning Disability,RCLS Learning Disability,http://opendatacommunities.org/id/county-council/staffordshire  
Staffordshire County Council,E Staffs LD Team,NH Care,03/12/2019,15393.71,RCLS Learning Disability,RCLS Learning Disability,http://opendatacommunities.org/id/county-council/staffordshire  
Staffordshire County Council,Estates,Niyaa People,03/12/2019,1785.00,AGENCY STAFF,AGENCY STAFF,http://opendatacommunities.org/id/county-council/staffordshire  
Staffordshire County Council,Cent Cty Psychol Service HQ,NONSTOP CONSULTING LTD,03/12/2019,2640.00,PROFESSIONAL FEES,PROFESSIONAL FEES,http://opendatacommunities.org/id/county-council/staffordshire  
Staffordshire County Council,2 Contraception,Penkridge Medical Practice,03/12/2019,565.96,other services external,other services external,http://opendatacommunities.org/id/county-council/staffordshire  
Staffordshire County Council,Rowan Contract,Prepaid Financial Services (PFS),03/12/2019,7490.83,COMM CARE DIRECT PAYMENTS,COMM CARE DIRECT PAYMENTS,http://opendatacommunities.org/id/county-council/staffordshire  
Staffordshire County Council,"0805 14 Tipping St, Stafford, ",R A EDWARDS & PARTNERS LTD,03/12/2019,1090.20,Day to Day Mechanical Services,Day to Day Mechanical Services,http://opendatacommunities.org/id/county-council/staffordshire  
Staffordshire County Council,Paul Hamlyn Bid,READ THE READING AGENCY,03/12/2019,1345.20,Project Activities,Project Activities,http://opendatacommunities.org/id/county-council/staffordshire  
Staffordshire County Council,East Staffs Invoice Led Older ,RLS Care Services LTD,03/12/2019,510.30,Practical Care,Practical Care,http://opendatacommunities.org/id/county-council/staffordshire  
Staffordshire County Council,East Staffs Invoice Led Older ,RLS Care Services LTD,03/12/2019,510.30,Practical Care,Practical Care,http://opendatacommunities.org/id/county-council/staffordshire  
Staffordshire County Council,East Staffs Invoice Led Older ,RLS Care Services LTD,03/12/2019,510.30,Practical Care,Practical Care,http://opendatacommunities.org/id/county-council/staffordshire  
Staffordshire County Council,East Staffs Invoice Led Older ,RLS Care Services LTD,03/12/2019,510.30,Practical Care,Practical Care,http://opendatacommunities.org/id/county-council/staffordshire  
Staffordshire County Council,East Staffs Invoice Led Older ,RLS Care Services LTD,03/12/2019,907.20,Practical Care,Practical Care,http://opendatacommunities.org/id/county-council/staffordshire  
Staffordshire County Council,East Staffs Invoice Led Older ,RLS Care Services LTD,03/12/2019,510.30,Practical Care,Practical Care,http://opendatacommunities.org/id/county-council/staffordshire  
Staffordshire County Council,Moorlands Invoice Led Older Pe,RLS Care Services LTD,03/12/2019,510.30,Practical Care,Practical Care,http://opendatacommunities.org/id/county-council/staffordshire  
Staffordshire County Council,Newcastle Invoice Led Older Pe,RLS Care Services LTD,03/12/2019,510.30,Practical Care,Practical Care,http://opendatacommunities.org/id/county-council/staffordshire  
Staffordshire County Council,Stafford LD Team,RMP CARE,03/12/2019,1804.00,Practical Care,Practical Care,http://opendatacommunities.org/id/county-council/staffordshire  
Staffordshire County Council,ERDF Low Carbon Bus Evol Prog,SCC Sundry BACS  1 Company,03/12/2019,10000.00,Grants to third parties,Grants to third parties,http://opendatacommunities.org/id/county-council/staffordshire  
Staffordshire County Council,2 Contraception,Silverdale & Ryecroft Practice,03/12/2019,592.60,other services external,other services external,http://opendatacommunities.org/id/county-council/staffordshire  
Staffordshire County Council,2 Contraception,Silverdale & Ryecroft Practice,03/12/2019,991.36,other services external,other services external,http://opendatacommunities.org/id/county-council/staffordshire  
Staffordshire County Council,Income and Debt,Specialist Computer Centres Ltd,03/12/2019,1001.28,Stationery General,Stationery General,http://opendatacommunities.org/id/county-council/staffordshire  
Staffordshire County Council,Syrian Refugee Support,Spring Housing Association,03/12/2019,10917.25,Other Agency Contributions,Other Agency Contributions,http://opendatacommunities.org/id/county-council/staffordshire  
Staffordshire County Council,7414 St Marys Lich Lib,St Marys in the Market Square,03/12/2019,517.40,Contract Cleaning,Contract Cleaning,http://opendatacommunities.org/id/county-council/staffordshire  
Staffordshire County Council,Prevention and Placement,T Hall Consultancy,03/12/2019,700.00,CONSULTANT FEES,CONSULTANT FEES,http://opendatacommunities.org/id/county-council/staffordshire  
Staffordshire County Council,DIPS,The Fountains Primary School,03/12/2019,6767.00, Alternative Education Schemes, Alternative Education Schemes,http://opendatacommunities.org/id/county-council/staffordshire  
Staffordshire County Council,East Staffs Invoice Led Older ,TLC Homecare Services,03/12/2019,731.50,Practical Care,Practical Care,http://opendatacommunities.org/id/county-council/staffordshire  
Staffordshire County Council,Thomas Russell Junior School,Total Leisure Engineering Ltd,03/12/2019,600.00,Service/Test Swimming Pool,Service/Test Swimming Pool,http://opendatacommunities.org/id/county-council/staffordshire  
Staffordshire County Council,BRFC - EA,Train To Equip Sue Rastall Ltd,03/12/2019,2746.20,EXTERNAL TRAINING,EXTERNAL TRAINING,http://opendatacommunities.org/id/county-council/staffordshire  
Staffordshire County Council,Independent School Fee Special,UNITY EDUCATION & TRAINING SERV LTD,03/12/2019,6000.00,Fees to Independent Schools,Fees to Independent Schools,http://opendatacommunities.org/id/county-council/staffordshire  
Staffordshire County Council,"Ashbourne Rd, Rochester Pinch",VALUATION OFFICE AGENCY,03/12/2019,1200.00,Construction Works,Construction Works,http://opendatacommunities.org/id/county-council/staffordshire  
Staffordshire County Council,Lichfield SU13,,03/12/2019,876.12,S17-SUPP TO RELATIVE,S17-SUPP TO RELATIVE,http://opendatacommunities.org/id/county-council/staffordshire  
Staffordshire County Council,Adoption Support,A1 TRAINING SOLUTIONS LTD,04/12/2019,550.00,Contingency,Contingency,http://opendatacommunities.org/id/county-council/staffordshire  
Staffordshire County Council,S Staffs LD Team,Affinity Trust,04/12/2019,2605.50,Supported Group Care,Supported Group Care,http://opendatacommunities.org/id/county-council/staffordshire  
Staffordshire County Council,Fuel,ALLSTAR BUSINESS SOLUTIONS LTD,04/12/2019,4938.04,Petrol & Oil,Petrol & Oil,http://opendatacommunities.org/id/county-council/staffordshire  
Staffordshire County Council,Newcastle Invoice Led Older Pe,Approach Sprtng Your Life Your Way,04/12/2019,786.25,Practical Care,Practical Care,http://opendatacommunities.org/id/county-council/staffordshire  
Staffordshire County Council,Central Winter Maintenance Wor,Avery Weigh-Tronix,04/12/2019,5868.00,Winter Maint - Prec Salting,Winter Maint - Prec Salting,http://opendatacommunities.org/id/county-council/staffordshire  
Staffordshire County Council,Printers Staffordshire Place,BANNER GROUP LTD,04/12/2019,1462.32,Stationery General,Stationery General,http://opendatacommunities.org/id/county-council/staffordshire  
Staffordshire County Council,Home to school transport-main,BENNETTS TRAVEL (CRANBERRY) LTD,04/12/2019,3575.00,Home School Tickets,Home School Tickets,http://opendatacommunities.org/id/county-council/staffordshire  
Staffordshire County Council,Brewood Educational Endowment,Blessed William Howard Schl Endwmnts,04/12/2019,3387.02,Discretionary Grants to School,Discretionary Grants to School,http://opendatacommunities.org/id/county-council/staffordshire  
Staffordshire County Council,Independent School Fee Special,Bluebell School Ltd,04/12/2019,8695.00,Fees to Independent Schools,Fees to Independent Schools,http://opendatacommunities.org/id/county-council/staffordshire  
Staffordshire County Council,Stock Management,BRITISH LIBRARY,04/12/2019,500.00,Library Materials,Library Materials,http://opendatacommunities.org/id/county-council/staffordshire  
Staffordshire County Council,Workforce Wellbeing Strategy,BURTON  & DISTRICT MIND,04/12/2019,1125.00,CONSULTANT FEES,CONSULTANT FEES,http://opendatacommunities.org/id/county-council/staffordshire  
Staffordshire County Council,East Staffs Local Strat P'ship,Burton Albion Community Trust,04/12/2019,15000.00,Community Project,Community Project,http://opendatacommunities.org/id/county-council/staffordshire  
Staffordshire County Council,St Lukes Roof Fascias,BURTON ENVIRONMENTAL SERVS LTD,04/12/2019,960.00,Construction Works,Construction Works,http://opendatacommunities.org/id/county-council/staffordshire  
Staffordshire County Council,Thomas Russell Pipework,BURTON ENVIRONMENTAL SERVS LTD,04/12/2019,2976.00,Construction Works,Construction Works,http://opendatacommunities.org/id/county-council/staffordshire  
Staffordshire County Council,Chasewater Dam Management,C M ROWLINSON LTD,04/12/2019,3576.00,General Equipment Repair/Maint,General Equipment Repair/Maint,http://opendatacommunities.org/id/county-council/staffordshire  
Staffordshire County Council,E Staffs LD Team,Care World Wide,04/12/2019,1894.29,Supported Group Care,Supported Group Care,http://opendatacommunities.org/id/county-council/staffordshire  
Staffordshire County Council,Brewood Educational Endowment,CHESLYN HAY ACADEMY,04/12/2019,12661.05,Discretionary Grants to School,Discretionary Grants to School,http://opendatacommunities.org/id/county-council/staffordshire  
Staffordshire County Council,Adoption Support Fund,Childrens Choice Therapy Service,04/12/2019,1825.00,PROFESSIONAL FEES,PROFESSIONAL FEES,http://opendatacommunities.org/id/county-council/staffordshire  
Staffordshire County Council,Cannock Chase,CHRISTMAS CABIN LTD,04/12/2019,2288.40,Materials For Resale,Materials For Resale,http://opendatacommunities.org/id/county-council/staffordshire  
Staffordshire County Council,E Staffs LD Team,CJB Care Ltd,04/12/2019,1440.00,Practical Care,Practical Care,http://opendatacommunities.org/id/county-council/staffordshire  
Staffordshire County Council,Brewood Educational Endowment,CODSALL COMMUNITY HIGH SCHOOL,04/12/2019,10161.05,Discretionary Grants to School,Discretionary Grants to School,http://opendatacommunities.org/id/county-council/staffordshire  
Staffordshire County Council,Family and Friends Team,CPK Empowering Families Ltd,04/12/2019,2605.80,AGENCY STAFF,AGENCY STAFF,http://opendatacommunities.org/id/county-council/staffordshire  
Staffordshire County Council,Family and Friends Team,CPK Empowering Families Ltd,04/12/2019,600.00,AGENCY STAFF,AGENCY STAFF,http://opendatacommunities.org/id/county-council/staffordshire  
Staffordshire County Council,Family and Friends Team,CPK Empowering Families Ltd,04/12/2019,2590.80,AGENCY STAFF,AGENCY STAFF,http://opendatacommunities.org/id/county-council/staffordshire  
Staffordshire County Council,Family and Friends Team,CPK Empowering Families Ltd,04/12/2019,1781.00,AGENCY STAFF,AGENCY STAFF,http://opendatacommunities.org/id/county-council/staffordshire  
Staffordshire County Council,S Staffs LD Team,Craegmoor Bentons Lane 297,04/12/2019,4330.40,Supported Group Care,Supported Group Care,http://opendatacommunities.org/id/county-council/staffordshire  
Staffordshire County Council,S Staffs LD Team,Craegmoor Bentons Lane 297,04/12/2019,4330.40,Extra Care,Extra Care,http://opendatacommunities.org/id/county-council/staffordshire  
Staffordshire County Council,S Staffs LD Team,Craegmoor Bentons Lane 297,04/12/2019,4330.40,Supported Group Care,Supported Group Care,http://opendatacommunities.org/id/county-council/staffordshire  
Staffordshire County Council,S Staffs LD Team,Craegmoor Bentons Lane 297,04/12/2019,4330.40,Supported Group Care,Supported Group Care,http://opendatacommunities.org/id/county-council/staffordshire  
Staffordshire County Council,Cannock Chase High School,Eco Fuels Heating Ltd,04/12/2019,4989.90,Repair and Maint Equipment NPS,Repair and Maint Equipment NPS,http://opendatacommunities.org/id/county-council/staffordshire  
Staffordshire County Council,1641 Stone Hway Depot,G EVANS (SERVICES) LTD,04/12/2019,8757.64,Planned Ext Wall Window Door,Planned Ext Wall Window Door,http://opendatacommunities.org/id/county-council/staffordshire  
Staffordshire County Council,Moorlands LD Team,HAYFIELD,04/12/2019,2840.53,Supported Group Care,Supported Group Care,http://opendatacommunities.org/id/county-council/staffordshire  
Staffordshire County Council,Tamworth Invoice Led Older Peo,Hills Angels Homecare,04/12/2019,507.15,Practical Care,Practical Care,http://opendatacommunities.org/id/county-council/staffordshire  
Staffordshire County Council,DIPS,Ivy Russell Limited,04/12/2019,600.00, Alternative Education Schemes, Alternative Education Schemes,http://opendatacommunities.org/id/county-council/staffordshire  
Staffordshire County Council,DIPS,Ivy Russell Limited,04/12/2019,600.00, Alternative Education Schemes, Alternative Education Schemes,http://opendatacommunities.org/id/county-council/staffordshire  
Staffordshire County Council,DIPS,Ivy Russell Limited,04/12/2019,600.00, Alternative Education Schemes, Alternative Education Schemes,http://opendatacommunities.org/id/county-council/staffordshire  
Staffordshire County Council,DIPS,Ivy Russell Limited,04/12/2019,600.00, Alternative Education Schemes, Alternative Education Schemes,http://opendatacommunities.org/id/county-council/staffordshire  
Staffordshire County Council,Project A - A50 Growth Corrido,JONES LANG LASALLE LTD,04/12/2019,11430.00,Ext Fees Construction,Ext Fees Construction,http://opendatacommunities.org/id/county-council/staffordshire  
Staffordshire County Council,Newcastle MH Team U65,Jump 2 Independence Ltd,04/12/2019,520.57,Supported Group Care,Supported Group Care,http://opendatacommunities.org/id/county-council/staffordshire  
Staffordshire County Council,Growth Hub ERDF 2019-2022,JW Pest ,04/12/2019,3420.00,Grants Other,Grants Other,http://opendatacommunities.org/id/county-council/staffordshire  
Staffordshire County Council,SEND Assessment Planning Serv,Laura Nicklin,04/12/2019,750.00,Contingency,Contingency,http://opendatacommunities.org/id/county-council/staffordshire  
Staffordshire County Council,Lichfield Tipping Away,LICHFIELD DISTRICT COUNCIL,04/12/2019,4309.20,WASTE TRANSPORT,WASTE TRANSPORT,http://opendatacommunities.org/id/county-council/staffordshire  
Staffordshire County Council,Stafford LD Team,LINKAGE COMMUNITY TRUST,04/12/2019,6653.92,RCLS Learning Disability,RCLS Learning Disability,http://opendatacommunities.org/id/county-council/staffordshire  
Staffordshire County Council,Cannock Chase LD Team,Living Ambitions Limited,04/12/2019,2592.74,Supported Group Care,Supported Group Care,http://opendatacommunities.org/id/county-council/staffordshire  
Staffordshire County Council,1 Grindley Lane South,Living Ambitions Limited,04/12/2019,14175.00,Supported Group Care,Supported Group Care,http://opendatacommunities.org/id/county-council/staffordshire  
Staffordshire County Council,Paget High Roofs,MAC (ROOFING & CONTRACTING) LTD,04/12/2019,18409.20,Construction Works,Construction Works,http://opendatacommunities.org/id/county-council/staffordshire  
Staffordshire County Council,E Staffs LD Team,Mediline Nurses & Carers Ltd,04/12/2019,2807.12,Supported Group Care,Supported Group Care,http://opendatacommunities.org/id/county-council/staffordshire  
Staffordshire County Council,E Staffs LD Team,Mediline Nurses & Carers Ltd,04/12/2019,2807.12,Supported Group Care,Supported Group Care,http://opendatacommunities.org/id/county-council/staffordshire  
Staffordshire County Council,E Staffs LD Team,Mediline Nurses & Carers Ltd,04/12/2019,2941.40,Supported Group Care,Supported Group Care,http://opendatacommunities.org/id/county-council/staffordshire  
Staffordshire County Council,Extra Care Contracts,Midland Heart Ltd,04/12/2019,1097.05,Extra Care Long Stay,Extra Care Long Stay,http://opendatacommunities.org/id/county-council/staffordshire  
Staffordshire County Council,"0041 Springvale, Walhouse St, ",MIDLAND ROOFING SERVICES DERBY LTD,04/12/2019,626.12,Day to Day Roofs,Day to Day Roofs,http://opendatacommunities.org/id/county-council/staffordshire  
Staffordshire County Council,West Hill Primary Roofs,MIDLAND ROOFING SERVICES DERBY LTD,04/12/2019,7404.00,Construction Works,Construction Works,http://opendatacommunities.org/id/county-council/staffordshire  
Staffordshire County Council,KCOM - Contact Centre,Midlands Part NHS FT,04/12/2019,53679.00,HARDWARE MAINTENANCE,HARDWARE MAINTENANCE,http://opendatacommunities.org/id/county-council/staffordshire  
Staffordshire County Council,Growth Hub ERDF 2019-2022,National Plant Solutions Ltd,04/12/2019,6667.32,Grants Other,Grants Other,http://opendatacommunities.org/id/county-council/staffordshire  
Staffordshire County Council,DIPS,NATIONAL TEACHING ADVISORY SERVI,04/12/2019,2911.20, Alternative Education Schemes, Alternative Education Schemes,http://opendatacommunities.org/id/county-council/staffordshire  
Staffordshire County Council,DIPS,NATIONAL TEACHING ADVISORY SERVI,04/12/2019,1125.00, Alternative Education Schemes, Alternative Education Schemes,http://opendatacommunities.org/id/county-council/staffordshire  
Staffordshire County Council,Improvements Contracts,OBVIS LTD,04/12/2019,540.00,SOFTWARE LICENCES,SOFTWARE LICENCES,http://opendatacommunities.org/id/county-council/staffordshire  
Staffordshire County Council,Independent School Fee Special,Options Autism 4 Limited,04/12/2019,2232.00,Fees to Independent Schools,Fees to Independent Schools,http://opendatacommunities.org/id/county-council/staffordshire  
Staffordshire County Council,Speed Awareness,Port Vale Football Club Ltd,04/12/2019,990.00,Premises Services,Premises Services,http://opendatacommunities.org/id/county-council/staffordshire  
Staffordshire County Council,"0798 Bird St, The Old Library,",R A EDWARDS & PARTNERS LTD,04/12/2019,12000.00,Planned Int Wall Door Fixtures,Planned Int Wall Door Fixtures,http://opendatacommunities.org/id/county-council/staffordshire  
Staffordshire County Council,St Lukes Roof Fascias,R A EDWARDS & PARTNERS LTD,04/12/2019,30000.00,Construction Works,Construction Works,http://opendatacommunities.org/id/county-council/staffordshire  
Staffordshire County Council,HS2 Phase One Cycling and Safe,Road Safety Foundation,04/12/2019,7837.20,Ext Fees Construction,Ext Fees Construction,http://opendatacommunities.org/id/county-council/staffordshire  
Staffordshire County Council,Sustainable Travel,Room 9 Media Ltd,04/12/2019,1784.20,General Equipment Purchase,General Equipment Purchase,http://opendatacommunities.org/id/county-council/staffordshire  
Staffordshire County Council,1857 MarquisDriveBrindleyHeath,South Staffs Water Business,04/12/2019,1025.63,Water Charges Metered,Water Charges Metered,http://opendatacommunities.org/id/county-council/staffordshire  
Staffordshire County Council,Road Safety Education,Specialist Computer Centres Ltd,04/12/2019,1826.21,General Equipment Purchase,General Equipment Purchase,http://opendatacommunities.org/id/county-council/staffordshire  
Staffordshire County Council,Registration Service - Unalloc,Specialist Computer Centres Ltd,04/12/2019,617.86,IT Equipment,IT Equipment,http://opendatacommunities.org/id/county-council/staffordshire  
Staffordshire County Council,Street Sweeping - South Staffs,SUEZ RECYCLING & RECOVERY UK LTD,04/12/2019,3192.68,Waste Treatment,Waste Treatment,http://opendatacommunities.org/id/county-council/staffordshire  
Staffordshire County Council,Street Sweeping-Cannock Chase,SUEZ RECYCLING & RECOVERY UK LTD,04/12/2019,623.90,Waste Treatment,Waste Treatment,http://opendatacommunities.org/id/county-council/staffordshire  
Staffordshire County Council,Street Sweeping - East Staffs,SUEZ RECYCLING & RECOVERY UK LTD,04/12/2019,3158.92,Waste Treatment,Waste Treatment,http://opendatacommunities.org/id/county-council/staffordshire  
Staffordshire County Council,Street Sweeping - Newcastle,SUEZ RECYCLING & RECOVERY UK LTD,04/12/2019,7229.57,Waste Treatment,Waste Treatment,http://opendatacommunities.org/id/county-council/staffordshire  
Staffordshire County Council,Street Sweeping - Lichfield,SUEZ RECYCLING & RECOVERY UK LTD,04/12/2019,5346.60,Waste Treatment,Waste Treatment,http://opendatacommunities.org/id/county-council/staffordshire  
Staffordshire County Council,Lower House Farm HWRC,Warwickshire County Council,04/12/2019,3948.75,Waste Treatment,Waste Treatment,http://opendatacommunities.org/id/county-council/staffordshire  
Staffordshire County Council,Insurance VAT,Weightmans LLP,04/12/2019,567.80,Insurance General Expenditure,Insurance General Expenditure,http://opendatacommunities.org/id/county-council/staffordshire  
Staffordshire County Council,Stafford LD Team,WESTSIDE (STAFFORD) LTD,04/12/2019,1447.80,Rental of Vehicles,Rental of Vehicles,http://opendatacommunities.org/id/county-council/staffordshire  
Staffordshire County Council,Stafford LD Team,WESTSIDE (STAFFORD) LTD,04/12/2019,1447.80,Rental of Vehicles,Rental of Vehicles,http://opendatacommunities.org/id/county-council/staffordshire  
Staffordshire County Council,Stafford LD Team,WESTSIDE (STAFFORD) LTD,04/12/2019,1447.80,Rental of Vehicles,Rental of Vehicles,http://opendatacommunities.org/id/county-council/staffordshire  
Staffordshire County Council,Brewood Educational Endowment,Wolgarston High School,04/12/2019,10161.05,Discretionary Grants to School,Discretionary Grants to School,http://opendatacommunities.org/id/county-council/staffordshire  
Staffordshire County Council,Marshlands School,A1 Wolves Taxis,05/12/2019,10683.60,Home School Contract Vehicles,Home School Contract Vehicles,http://opendatacommunities.org/id/county-council/staffordshire  
Staffordshire County Council,Cannock Chase LD Team,Affinity Trust Ltd,05/12/2019,3309.60,Supported Group Care,Supported Group Care,http://opendatacommunities.org/id/county-council/staffordshire  
Staffordshire County Council,Staffordshire Wood Fuel,AMP Clean Energy,05/12/2019,771.75,Wood Chip,Wood Chip,http://opendatacommunities.org/id/county-council/staffordshire  
Staffordshire County Council,Concessionary Fare Schemes,ARRIVA MIDLANDS LTD,05/12/2019,271095.00,Payments to Bus Operators,Payments to Bus Operators,http://opendatacommunities.org/id/county-council/staffordshire  
Staffordshire County Council,Pupil Premium Grant,Arthur Terry School,05/12/2019,500.00,Grants to third parties,Grants to third parties,http://opendatacommunities.org/id/county-council/staffordshire  
Staffordshire County Council,Organisational Development,ASTON MARINA LTD,05/12/2019,1920.00,Conference Fees,Conference Fees,http://opendatacommunities.org/id/county-council/staffordshire  
Staffordshire County Council,Case Manage Team -Central West,Atkinson Lewis,05/12/2019,1590.00,Prev Supp Legal Costs,Prev Supp Legal Costs,http://opendatacommunities.org/id/county-council/staffordshire  
Staffordshire County Council,Pupil Premium Grant,BELGRAVE ST BARTHOLOMEWS ACADEMY,05/12/2019,1000.00,Grants to third parties,Grants to third parties,http://opendatacommunities.org/id/county-council/staffordshire  
Staffordshire County Council,Pupil Premium Grant,Bewdley School & Sixth Form Centre,05/12/2019,1500.00,Grants to third parties,Grants to third parties,http://opendatacommunities.org/id/county-council/staffordshire  
Staffordshire County Council,Pupil Premium Grant,BLACK FIRS PRIMARY,05/12/2019,500.00,Grants to third parties,Grants to third parties,http://opendatacommunities.org/id/county-council/staffordshire  
Staffordshire County Council,Pupil Premium Grant,Boroughbridge High School,05/12/2019,500.00,Grants to third parties,Grants to third parties,http://opendatacommunities.org/id/county-council/staffordshire  
Staffordshire County Council,Brewood Middle School Charity,Brewood Middle School,05/12/2019,2003.94,Educational Visits,Educational Visits,http://opendatacommunities.org/id/county-council/staffordshire  
Staffordshire County Council,Pupil Premium Grant,Buttington Trewern CP School,05/12/2019,500.00,Grants to third parties,Grants to third parties,http://opendatacommunities.org/id/county-council/staffordshire  
Staffordshire County Council,Pupil Premium Grant,Cannon Park Primary School,05/12/2019,1500.00,Grants to third parties,Grants to third parties,http://opendatacommunities.org/id/county-council/staffordshire  
Staffordshire County Council,Pupil Premium Grant,Castlefort Junior Mxd & Infant Schl,05/12/2019,2000.00,Grants to third parties,Grants to third parties,http://opendatacommunities.org/id/county-council/staffordshire  
Staffordshire County Council,Improvements Contracts,CIVICA UK Ltd,05/12/2019,11352.00,SOFTWARE LICENCES,SOFTWARE LICENCES,http://opendatacommunities.org/id/county-council/staffordshire  
Staffordshire County Council,Moorlands Invoice Led Older Pe,Community Care Worker,05/12/2019,516.60,Practical Care,Practical Care,http://opendatacommunities.org/id/county-council/staffordshire  
Staffordshire County Council,Newcastle Invoice Led Older Pe,Community Care Worker,05/12/2019,516.60,Practical Care,Practical Care,http://opendatacommunities.org/id/county-council/staffordshire  
Staffordshire County Council,Newcastle Invoice Led Older Pe,Community Care Worker,05/12/2019,728.28,Practical Care,Practical Care,http://opendatacommunities.org/id/county-council/staffordshire  
Staffordshire County Council,Pupil Premium Grant,COVENTRY CITY COUNCIL,05/12/2019,500.00,Grants to third parties,Grants to third parties,http://opendatacommunities.org/id/county-council/staffordshire  
Staffordshire County Council,Stafford Invoice Led Older Peo,Daycare Domicilliary Services Ltd,05/12/2019,2118.00,Practical Care,Practical Care,http://opendatacommunities.org/id/county-council/staffordshire  
Staffordshire County Council,BRFC - EA,Department for Work & Pensions,05/12/2019,22186.09,General Equipment Purchase,General Equipment Purchase,http://opendatacommunities.org/id/county-council/staffordshire  
Staffordshire County Council,Pupil Premium Grant,DERBYSHIRE COUNTY COUNCIL,05/12/2019,1500.00,Grants to third parties,Grants to third parties,http://opendatacommunities.org/id/county-council/staffordshire  
Staffordshire County Council,Pupil Premium Grant,DISCOVERY ACADEMY,05/12/2019,500.00,Grants to third parties,Grants to third parties,http://opendatacommunities.org/id/county-council/staffordshire  
Staffordshire County Council,Pupil Premium Grant,Dishforth Airfield Community Primary Sch,05/12/2019,1000.00,Grants to third parties,Grants to third parties,http://opendatacommunities.org/id/county-council/staffordshire  
Staffordshire County Council,Targeted Services General,DODS PARLIAMENTARY COMM LTD,05/12/2019,507.60,Catering Refreshments,Catering Refreshments,http://opendatacommunities.org/id/county-council/staffordshire  
Staffordshire County Council,Pupil Premium Grant,Droitwich Spa High School and Sixth Form,05/12/2019,500.00,Grants to third parties,Grants to third parties,http://opendatacommunities.org/id/county-council/staffordshire  
Staffordshire County Council,S278 Churchbridge /Orbital Way,E ON UK ENERGY SERVICES LTD,05/12/2019,17040.00,Ext Fees Construction,Ext Fees Construction,http://opendatacommunities.org/id/county-council/staffordshire  
Staffordshire County Council,S278 Churchbridge /Orbital Way,E ON UK ENERGY SERVICES LTD,05/12/2019,10200.00,Ext Fees Construction,Ext Fees Construction,http://opendatacommunities.org/id/county-council/staffordshire  
Staffordshire County Council,Street Lighting PFI Scheme,E ON UK ENERGY SERVICES LTD,05/12/2019,1971.72,PFI - Street Lighting,PFI - Street Lighting,http://opendatacommunities.org/id/county-council/staffordshire  
Staffordshire County Council,Stafford Invoice Led Older Peo,Embrace Quality Care,05/12/2019,527.00,Practical Care,Practical Care,http://opendatacommunities.org/id/county-council/staffordshire  
Staffordshire County Council,Stafford Invoice Led Phys Disa,Embrace Quality Care,05/12/2019,527.00,Practical Care,Practical Care,http://opendatacommunities.org/id/county-council/staffordshire  
Staffordshire County Council,Pupil Premium Grant,Endeavour Learning Trust,05/12/2019,500.00,Grants to third parties,Grants to third parties,http://opendatacommunities.org/id/county-council/staffordshire  
Staffordshire County Council,Highfields Lighting/heating,ENERGY ASSETS LTD,05/12/2019,22274.92,Construction Works,Construction Works,http://opendatacommunities.org/id/county-council/staffordshire  
Staffordshire County Council,Pupil Premium Grant,Field View Primary School,05/12/2019,500.00,Grants to third parties,Grants to third parties,http://opendatacommunities.org/id/county-council/staffordshire  
Staffordshire County Council,Pupil Premium Grant,Haven School Ltd,05/12/2019,1000.00,Grants to third parties,Grants to third parties,http://opendatacommunities.org/id/county-council/staffordshire  
Staffordshire County Council,Moorlands LD Team,HAYFIELD,05/12/2019,2869.23,Supported Group Care,Supported Group Care,http://opendatacommunities.org/id/county-council/staffordshire  
Staffordshire County Council,Pupil Premium Grant,Higham Lane School,05/12/2019,500.00,Grants to third parties,Grants to third parties,http://opendatacommunities.org/id/county-council/staffordshire  
Staffordshire County Council,Cann OP Team 1,ICare (GB) Ltd,05/12/2019,544.05,Practical Care,Practical Care,http://opendatacommunities.org/id/county-council/staffordshire  
Staffordshire County Council,Chasetown Special School,iCars Limited,05/12/2019,3327.84,Home School Contract Vehicles,Home School Contract Vehicles,http://opendatacommunities.org/id/county-council/staffordshire  
Staffordshire County Council,Newcastle LD Team,Independent Support,05/12/2019,5621.60,Supported Group Care,Supported Group Care,http://opendatacommunities.org/id/county-council/staffordshire  
Staffordshire County Council,Highways,Information Security Advice Limited,05/12/2019,750.30,AGENCY STAFF,AGENCY STAFF,http://opendatacommunities.org/id/county-council/staffordshire  
Staffordshire County Council,"7232 Unit QB, Beaconside ST18 ",ISE Estates Ltd,05/12/2019,693.12,Gas,Gas,http://opendatacommunities.org/id/county-council/staffordshire  
Staffordshire County Council,7195 Building G Beacon Bus Par,ISE Estates Ltd,05/12/2019,1262.35,Electricity,Electricity,http://opendatacommunities.org/id/county-council/staffordshire  
Staffordshire County Council,"7232 Unit QB, Beaconside ST18 ",ISE Estates Ltd,05/12/2019,1716.62,Electricity,Electricity,http://opendatacommunities.org/id/county-council/staffordshire  
Staffordshire County Council,7115 Unit Qa Beacon Business P,ISE Estates Ltd,05/12/2019,2486.64,Electricity,Electricity,http://opendatacommunities.org/id/county-council/staffordshire  
Staffordshire County Council,7115 Unit Qa Beacon Business P,ISE Estates Ltd,05/12/2019,1330.78,Gas,Gas,http://opendatacommunities.org/id/county-council/staffordshire  
Staffordshire County Council,Pupil Premium Grant,Ivingswood Academy,05/12/2019,2000.00,Grants to third parties,Grants to third parties,http://opendatacommunities.org/id/county-council/staffordshire  
Staffordshire County Council,Stat-OOC transport,,05/12/2019,630.76,Personal Travel Budgets,Personal Travel Budgets,http://opendatacommunities.org/id/county-council/staffordshire  
Staffordshire County Council,Main Trading Standards,KENT COUNTY COUNCIL,05/12/2019,10074.84,CONSULTANT FEES,CONSULTANT FEES,http://opendatacommunities.org/id/county-council/staffordshire  
Staffordshire County Council,Home to school transport-main,L A TRAVEL,05/12/2019,22111.21,Home School Contract Vehicles,Home School Contract Vehicles,http://opendatacommunities.org/id/county-council/staffordshire  
Staffordshire County Council,Pupil Premium Grant,LANCASHIRE COUNTY COUNCIL,05/12/2019,1000.00,Grants to third parties,Grants to third parties,http://opendatacommunities.org/id/county-council/staffordshire  
Staffordshire County Council,Pupil Premium Grant,Leominster Primary School,05/12/2019,500.00,Grants to third parties,Grants to third parties,http://opendatacommunities.org/id/county-council/staffordshire  
Staffordshire County Council,Speed Awareness,M O'NEILL,05/12/2019,1430.00,DRIVING INSTRUCTION,DRIVING INSTRUCTION,http://opendatacommunities.org/id/county-council/staffordshire  
Staffordshire County Council,Workshop Overheads,M R H AUTOS,05/12/2019,714.00,CFC Purchase of Stock,CFC Purchase of Stock,http://opendatacommunities.org/id/county-council/staffordshire  
Staffordshire County Council,Tamworth Children's Centres,Malachi Specialist Family Support Serv,05/12/2019,111168.00,Grants Other,Grants Other,http://opendatacommunities.org/id/county-council/staffordshire  
Staffordshire County Council,5438 Staffs Place 1&2Tipping S,Manpower Direct (UK) Ltd,05/12/2019,8300.15,Premises Services,Premises Services,http://opendatacommunities.org/id/county-council/staffordshire  
Staffordshire County Council,Waterside Court Enterprise Cen,Manpower Direct (UK) Ltd,05/12/2019,1000.68,Premises Services,Premises Services,http://opendatacommunities.org/id/county-council/staffordshire  
Staffordshire County Council,Independent School Fee Special,MAPLE HAYES SCHOOL,05/12/2019,6710.20,Fees to Independent Schools,Fees to Independent Schools,http://opendatacommunities.org/id/county-council/staffordshire  
Staffordshire County Council,Independent School Fee Special,MAPLE HAYES SCHOOL,05/12/2019,6710.20,Fees to Independent Schools,Fees to Independent Schools,http://opendatacommunities.org/id/county-council/staffordshire  
Staffordshire County Council,Independent School Fee Special,MAPLE HAYES SCHOOL,05/12/2019,4960.20,Fees to Independent Schools,Fees to Independent Schools,http://opendatacommunities.org/id/county-council/staffordshire  
Staffordshire County Council,Independent School Fee Special,MAPLE HAYES SCHOOL,05/12/2019,4960.20,Fees to Independent Schools,Fees to Independent Schools,http://opendatacommunities.org/id/county-council/staffordshire  
Staffordshire County Council,Independent School Fee Special,MAPLE HAYES SCHOOL,05/12/2019,4960.20,Fees to Independent Schools,Fees to Independent Schools,http://opendatacommunities.org/id/county-council/staffordshire  
Staffordshire County Council,Independent School Fee Special,MAPLE HAYES SCHOOL,05/12/2019,6710.20,Fees to Independent Schools,Fees to Independent Schools,http://opendatacommunities.org/id/county-council/staffordshire  
Staffordshire County Council,Independent School Fee Special,MAPLE HAYES SCHOOL,05/12/2019,4960.20,Fees to Independent Schools,Fees to Independent Schools,http://opendatacommunities.org/id/county-council/staffordshire  
Staffordshire County Council,Independent School Fee Special,MAPLE HAYES SCHOOL,05/12/2019,4960.20,Fees to Independent Schools,Fees to Independent Schools,http://opendatacommunities.org/id/county-council/staffordshire  
Staffordshire County Council,Independent School Fee Special,MAPLE HAYES SCHOOL,05/12/2019,4960.20,Fees to Independent Schools,Fees to Independent Schools,http://opendatacommunities.org/id/county-council/staffordshire  
Staffordshire County Council,Independent School Fee Special,MAPLE HAYES SCHOOL,05/12/2019,4960.20,Fees to Independent Schools,Fees to Independent Schools,http://opendatacommunities.org/id/county-council/staffordshire  
Staffordshire County Council,Independent School Fee Special,MAPLE HAYES SCHOOL,05/12/2019,4960.20,Fees to Independent Schools,Fees to Independent Schools,http://opendatacommunities.org/id/county-council/staffordshire  
Staffordshire County Council,Independent School Fee Special,MAPLE HAYES SCHOOL,05/12/2019,4960.20,Fees to Independent Schools,Fees to Independent Schools,http://opendatacommunities.org/id/county-council/staffordshire  
Staffordshire County Council,Independent School Fee Special,MAPLE HAYES SCHOOL,05/12/2019,4960.20,Fees to Independent Schools,Fees to Independent Schools,http://opendatacommunities.org/id/county-council/staffordshire  
Staffordshire County Council,Independent School Fee Special,MAPLE HAYES SCHOOL,05/12/2019,4960.20,Fees to Independent Schools,Fees to Independent Schools,http://opendatacommunities.org/id/county-council/staffordshire  
Staffordshire County Council,Independent School Fee Special,MAPLE HAYES SCHOOL,05/12/2019,4960.20,Fees to Independent Schools,Fees to Independent Schools,http://opendatacommunities.org/id/county-council/staffordshire  
Staffordshire County Council,Independent School Fee Special,MAPLE HAYES SCHOOL,05/12/2019,4960.20,Fees to Independent Schools,Fees to Independent Schools,http://opendatacommunities.org/id/county-council/staffordshire  
Staffordshire County Council,Independent School Fee Special,MAPLE HAYES SCHOOL,05/12/2019,6710.20,Fees to Independent Schools,Fees to Independent Schools,http://opendatacommunities.org/id/county-council/staffordshire  
Staffordshire County Council,Independent School Fee Special,MAPLE HAYES SCHOOL,05/12/2019,6710.20,Fees to Independent Schools,Fees to Independent Schools,http://opendatacommunities.org/id/county-council/staffordshire  
Staffordshire County Council,Independent School Fee Special,MAPLE HAYES SCHOOL,05/12/2019,6710.20,Fees to Independent Schools,Fees to Independent Schools,http://opendatacommunities.org/id/county-council/staffordshire  
Staffordshire County Council,Independent School Fee Special,MAPLE HAYES SCHOOL,05/12/2019,6710.20,Fees to Independent Schools,Fees to Independent Schools,http://opendatacommunities.org/id/county-council/staffordshire  
Staffordshire County Council,Independent School Fee Special,MAPLE HAYES SCHOOL,05/12/2019,6710.20,Fees to Independent Schools,Fees to Independent Schools,http://opendatacommunities.org/id/county-council/staffordshire  
Staffordshire County Council,Independent School Fee Special,MAPLE HAYES SCHOOL,05/12/2019,6710.20,Fees to Independent Schools,Fees to Independent Schools,http://opendatacommunities.org/id/county-council/staffordshire  
Staffordshire County Council,Independent School Fee Special,MAPLE HAYES SCHOOL,05/12/2019,6710.20,Fees to Independent Schools,Fees to Independent Schools,http://opendatacommunities.org/id/county-council/staffordshire  
Staffordshire County Council,Independent School Fee Special,MAPLE HAYES SCHOOL,05/12/2019,6710.20,Fees to Independent Schools,Fees to Independent Schools,http://opendatacommunities.org/id/county-council/staffordshire  
Staffordshire County Council,Independent School Fee Special,MAPLE HAYES SCHOOL,05/12/2019,6710.20,Fees to Independent Schools,Fees to Independent Schools,http://opendatacommunities.org/id/county-council/staffordshire  
Staffordshire County Council,Independent School Fee Special,MAPLE HAYES SCHOOL,05/12/2019,6710.20,Fees to Independent Schools,Fees to Independent Schools,http://opendatacommunities.org/id/county-council/staffordshire  
Staffordshire County Council,Independent School Fee Special,MAPLE HAYES SCHOOL,05/12/2019,6710.20,Fees to Independent Schools,Fees to Independent Schools,http://opendatacommunities.org/id/county-council/staffordshire  
Staffordshire County Council,Independent School Fee Special,MAPLE HAYES SCHOOL,05/12/2019,6710.20,Fees to Independent Schools,Fees to Independent Schools,http://opendatacommunities.org/id/county-council/staffordshire  
Staffordshire County Council,Independent School Fee Special,MAPLE HAYES SCHOOL,05/12/2019,6710.20,Fees to Independent Schools,Fees to Independent Schools,http://opendatacommunities.org/id/county-council/staffordshire  
Staffordshire County Council,Independent School Fee Special,MAPLE HAYES SCHOOL,05/12/2019,6710.20,Fees to Independent Schools,Fees to Independent Schools,http://opendatacommunities.org/id/county-council/staffordshire  
Staffordshire County Council,Independent School Fee Special,MAPLE HAYES SCHOOL,05/12/2019,6710.20,Fees to Independent Schools,Fees to Independent Schools,http://opendatacommunities.org/id/county-council/staffordshire  
Staffordshire County Council,Independent School Fee Special,MAPLE HAYES SCHOOL,05/12/2019,4960.20,Fees to Independent Schools,Fees to Independent Schools,http://opendatacommunities.org/id/county-council/staffordshire  
Staffordshire County Council,Independent School Fee Special,MAPLE HAYES SCHOOL,05/12/2019,6710.20,Fees to Independent Schools,Fees to Independent Schools,http://opendatacommunities.org/id/county-council/staffordshire  
Staffordshire County Council,Independent School Fee Special,MAPLE HAYES SCHOOL,05/12/2019,6710.20,Fees to Independent Schools,Fees to Independent Schools,http://opendatacommunities.org/id/county-council/staffordshire  
Staffordshire County Council,Independent School Fee Special,MAPLE HAYES SCHOOL,05/12/2019,6710.20,Fees to Independent Schools,Fees to Independent Schools,http://opendatacommunities.org/id/county-council/staffordshire  
Staffordshire County Council,Independent School Fee Special,MAPLE HAYES SCHOOL,05/12/2019,6710.20,Fees to Independent Schools,Fees to Independent Schools,http://opendatacommunities.org/id/county-council/staffordshire  
Staffordshire County Council,Independent School Fee Special,MAPLE HAYES SCHOOL,05/12/2019,6710.20,Fees to Independent Schools,Fees to Independent Schools,http://opendatacommunities.org/id/county-council/staffordshire  
Staffordshire County Council,Independent School Fee Special,MAPLE HAYES SCHOOL,05/12/2019,4960.20,Fees to Independent Schools,Fees to Independent Schools,http://opendatacommunities.org/id/county-council/staffordshire  
Staffordshire County Council,Independent School Fee Special,MAPLE HAYES SCHOOL,05/12/2019,6710.20,Fees to Independent Schools,Fees to Independent Schools,http://opendatacommunities.org/id/county-council/staffordshire  
Staffordshire County Council,Independent School Fee Special,MAPLE HAYES SCHOOL,05/12/2019,6710.20,Fees to Independent Schools,Fees to Independent Schools,http://opendatacommunities.org/id/county-council/staffordshire  
Staffordshire County Council,Independent School Fee Special,MAPLE HAYES SCHOOL,05/12/2019,4960.20,Fees to Independent Schools,Fees to Independent Schools,http://opendatacommunities.org/id/county-council/staffordshire  
Staffordshire County Council,Independent School Fee Special,MAPLE HAYES SCHOOL,05/12/2019,6710.20,Fees to Independent Schools,Fees to Independent Schools,http://opendatacommunities.org/id/county-council/staffordshire  
Staffordshire County Council,Independent School Fee Special,MAPLE HAYES SCHOOL,05/12/2019,4960.20,Fees to Independent Schools,Fees to Independent Schools,http://opendatacommunities.org/id/county-council/staffordshire  
Staffordshire County Council,Independent School Fee Special,MAPLE HAYES SCHOOL,05/12/2019,6710.20,Fees to Independent Schools,Fees to Independent Schools,http://opendatacommunities.org/id/county-council/staffordshire  
Staffordshire County Council,Independent School Fee Special,MAPLE HAYES SCHOOL,05/12/2019,4960.20,Fees to Independent Schools,Fees to Independent Schools,http://opendatacommunities.org/id/county-council/staffordshire  
Staffordshire County Council,Independent School Fee Special,MAPLE HAYES SCHOOL,05/12/2019,4960.20,Fees to Independent Schools,Fees to Independent Schools,http://opendatacommunities.org/id/county-council/staffordshire  
Staffordshire County Council,Independent School Fee Special,MAPLE HAYES SCHOOL,05/12/2019,4960.20,Fees to Independent Schools,Fees to Independent Schools,http://opendatacommunities.org/id/county-council/staffordshire  
Staffordshire County Council,40 Yarlet Farmyard Drain Imps,Mincrete Limited,05/12/2019,2275.20,Amey Applications for payment,Amey Applications for payment,http://opendatacommunities.org/id/county-council/staffordshire  
Staffordshire County Council,40 Yarlet Farmyard Drain Imps,Mincrete Limited,05/12/2019,758.40,Amey Applications for payment,Amey Applications for payment,http://opendatacommunities.org/id/county-council/staffordshire  
Staffordshire County Council,Pupil Premium Grant,Moseley Park,05/12/2019,500.00,Grants to third parties,Grants to third parties,http://opendatacommunities.org/id/county-council/staffordshire  
Staffordshire County Council,Pupil Premium Grant,Moseley School and Sixth Form,05/12/2019,500.00,Grants to third parties,Grants to third parties,http://opendatacommunities.org/id/county-council/staffordshire  
Staffordshire County Council,DIPS,NATIONAL TEACHING ADVISORY SERVI,05/12/2019,3276.00, Alternative Education Schemes, Alternative Education Schemes,http://opendatacommunities.org/id/county-council/staffordshire  
Staffordshire County Council,DIPS,NATIONAL TEACHING ADVISORY SERVI,05/12/2019,3396.60, Alternative Education Schemes, Alternative Education Schemes,http://opendatacommunities.org/id/county-council/staffordshire  
Staffordshire County Council,DIPS,NATIONAL TEACHING ADVISORY SERVI,05/12/2019,4800.00, Alternative Education Schemes, Alternative Education Schemes,http://opendatacommunities.org/id/county-council/staffordshire  
Staffordshire County Council,DIPS,NATIONAL TEACHING ADVISORY SERVI,05/12/2019,2819.70, Alternative Education Schemes, Alternative Education Schemes,http://opendatacommunities.org/id/county-council/staffordshire  
Staffordshire County Council,DIPS,NATIONAL TEACHING ADVISORY SERVI,05/12/2019,2812.50, Alternative Education Schemes, Alternative Education Schemes,http://opendatacommunities.org/id/county-council/staffordshire  
Staffordshire County Council,Pupil Premium Grant,Newman Cath Collegiate,05/12/2019,500.00,Grants to third parties,Grants to third parties,http://opendatacommunities.org/id/county-council/staffordshire  
Staffordshire County Council,Pupil Premium Grant,Newton Solney Infant School,05/12/2019,500.00,Grants to third parties,Grants to third parties,http://opendatacommunities.org/id/county-council/staffordshire  
Staffordshire County Council,Newc/Moor Disability Team,NONSTOP CONSULTING LTD,05/12/2019,1561.55,AGENCY STAFF,AGENCY STAFF,http://opendatacommunities.org/id/county-council/staffordshire  
Staffordshire County Council,Newc/Moor Disability Team,NONSTOP CONSULTING LTD,05/12/2019,949.60,AGENCY STAFF,AGENCY STAFF,http://opendatacommunities.org/id/county-council/staffordshire  
Staffordshire County Council,Project A - A50 Growth Corrido,NPOWER,05/12/2019,537.42,Ext Fees Construction,Ext Fees Construction,http://opendatacommunities.org/id/county-council/staffordshire  
Staffordshire County Council,Project A - A50 Growth Corrido,NPOWER,05/12/2019,549.22,Ext Fees Construction,Ext Fees Construction,http://opendatacommunities.org/id/county-council/staffordshire  
Staffordshire County Council,Project A - A50 Growth Corrido,NPOWER,05/12/2019,931.30,Ext Fees Construction,Ext Fees Construction,http://opendatacommunities.org/id/county-council/staffordshire  
Staffordshire County Council,Independent School Fee Special,Options Autism 4 Limited,05/12/2019,6696.00,Fees to Independent Schools,Fees to Independent Schools,http://opendatacommunities.org/id/county-council/staffordshire  
Staffordshire County Council,Pupil Premium Grant,Ormiston Shelfield Community Academy,05/12/2019,500.00,Grants to third parties,Grants to third parties,http://opendatacommunities.org/id/county-council/staffordshire  
Staffordshire County Council,Independent School Fee Nursery,Painsley Catholic Academy,05/12/2019,3272.00,Grants to third parties,Grants to third parties,http://opendatacommunities.org/id/county-council/staffordshire  
Staffordshire County Council,Fostering North,Park Hall Day Nursery,05/12/2019,1075.00,Fostering Equipment on Loans,Fostering Equipment on Loans,http://opendatacommunities.org/id/county-council/staffordshire  
Staffordshire County Council,Independent School Fee Special,PEAK PURSUITS LTD,05/12/2019,5310.00,Fees to Independent Schools,Fees to Independent Schools,http://opendatacommunities.org/id/county-council/staffordshire  
Staffordshire County Council,Lymedale West Business Centre,PHS GROUP PLC,05/12/2019,1900.88,WASTE COLLECTION,WASTE COLLECTION,http://opendatacommunities.org/id/county-council/staffordshire  
Staffordshire County Council,Pupil Premium Grant,Pingle School,05/12/2019,1000.00,Grants to third parties,Grants to third parties,http://opendatacommunities.org/id/county-council/staffordshire  
Staffordshire County Council,Pupil Premium Grant,Priory School Trust,05/12/2019,500.00,Grants to third parties,Grants to third parties,http://opendatacommunities.org/id/county-council/staffordshire  
Staffordshire County Council,Cent Cty Psychol Service HQ,Psychology Direct Ltd,05/12/2019,850.00,PROFESSIONAL FEES,PROFESSIONAL FEES,http://opendatacommunities.org/id/county-council/staffordshire  
Staffordshire County Council,Pupil Premium Grant,REACH Academy,05/12/2019,500.00,Grants to third parties,Grants to third parties,http://opendatacommunities.org/id/county-council/staffordshire  
Staffordshire County Council,SWS MH Team 65+,Restful Homes (Central) Ltd,05/12/2019,5712.86,NCLS Mental Disability <65,NCLS Mental Disability <65,http://opendatacommunities.org/id/county-council/staffordshire  
Staffordshire County Council,Burton Resource Centre,RICOH UK LTD,05/12/2019,520.44,PHOTOCOPIER RENTAL,PHOTOCOPIER RENTAL,http://opendatacommunities.org/id/county-council/staffordshire  
Staffordshire County Council,Pupil Premium Grant,Riddlesdown Collegiate,05/12/2019,500.00,Grants to third parties,Grants to third parties,http://opendatacommunities.org/id/county-council/staffordshire  
Staffordshire County Council,S Staffs LD Team,ROCKSPUR LTD,05/12/2019,560.00,Day Care,Day Care,http://opendatacommunities.org/id/county-council/staffordshire  
Staffordshire County Council,Tamworth LD Team,Sanctuary Home Care Ltd,05/12/2019,520.00,Supported Group Care,Supported Group Care,http://opendatacommunities.org/id/county-council/staffordshire  
Staffordshire County Council,Pupil Premium Grant,Sandon Primary Academy,05/12/2019,1500.00,Grants to third parties,Grants to third parties,http://opendatacommunities.org/id/county-council/staffordshire  
Staffordshire County Council,Pupil Premium Grant,SANDWELL MET BOROUGH COUNCIL,05/12/2019,500.00,Grants to third parties,Grants to third parties,http://opendatacommunities.org/id/county-council/staffordshire  
Staffordshire County Council,Home to school transport-main,SCC Sundry BACS  1 Company,05/12/2019,550.00,Vacant Seats Payment Scheme,Vacant Seats Payment Scheme,http://opendatacommunities.org/id/county-council/staffordshire  
Staffordshire County Council,Pupil Premium Grant,Severndale Specialist Academy,05/12/2019,500.00,Grants to third parties,Grants to third parties,http://opendatacommunities.org/id/county-council/staffordshire  
Staffordshire County Council,Pupil Premium Grant,SHROPSHIRE COUNTY COUNCIL,05/12/2019,500.00,Grants to third parties,Grants to third parties,http://opendatacommunities.org/id/county-council/staffordshire  
Staffordshire County Council,Pupil Premium Grant,Sir John Talbot's School,05/12/2019,500.00,Grants to third parties,Grants to third parties,http://opendatacommunities.org/id/county-council/staffordshire  
Staffordshire County Council,5438 Staffs Place 1&2Tipping S,Specialist Computer Centres Ltd,05/12/2019,1866.67,OFFICE MATERIALS,OFFICE MATERIALS,http://opendatacommunities.org/id/county-council/staffordshire  
Staffordshire County Council,Pupil Premium Grant,STOKE CITY COUNCIL (ALL ACCS),05/12/2019,1000.00,Grants to third parties,Grants to third parties,http://opendatacommunities.org/id/county-council/staffordshire  
Staffordshire County Council,Pupil Premium Grant,The Grove School Fund,05/12/2019,1500.00,Grants to third parties,Grants to third parties,http://opendatacommunities.org/id/county-council/staffordshire  
Staffordshire County Council,Pupil Premium Grant,The Nethersole Church of England Acad,05/12/2019,500.00,Grants to third parties,Grants to third parties,http://opendatacommunities.org/id/county-council/staffordshire  
Staffordshire County Council,Pupil Premium Grant,THISTLEY HOUGH ACADEMY,05/12/2019,500.00,Grants to third parties,Grants to third parties,http://opendatacommunities.org/id/county-council/staffordshire  
Staffordshire County Council,Pupil Premium Grant,THOMAS TELFORD SCHOOL,05/12/2019,500.00,Grants to third parties,Grants to third parties,http://opendatacommunities.org/id/county-council/staffordshire  
Staffordshire County Council,Highways Laboratory,TRANSPACK LTD,05/12/2019,2451.66,Consumables,Consumables,http://opendatacommunities.org/id/county-council/staffordshire  
Staffordshire County Council,Pupil Premium Grant,TRENTHAM HIGH SCHOOL,05/12/2019,500.00,Grants to third parties,Grants to third parties,http://opendatacommunities.org/id/county-council/staffordshire  
Staffordshire County Council,Stock Management,ULVERSCROFT LTD,05/12/2019,1055.98,Books,Books,http://opendatacommunities.org/id/county-council/staffordshire  
Staffordshire County Council,Pupil Premium Grant,WALSALL MET BOROUGH COUNCIL,05/12/2019,500.00,Grants to third parties,Grants to third parties,http://opendatacommunities.org/id/county-council/staffordshire  
Staffordshire County Council,Pupil Premium Grant,Warton Nethersole's C.E. Primary School,05/12/2019,1000.00,Grants to third parties,Grants to third parties,http://opendatacommunities.org/id/county-council/staffordshire  
Staffordshire County Council,Pupil Premium Grant,Warwickshire County Council,05/12/2019,500.00,Grants to third parties,Grants to third parties,http://opendatacommunities.org/id/county-council/staffordshire  
Staffordshire County Council,Pupil Premium Grant,Weddington Primary School,05/12/2019,500.00,Grants to third parties,Grants to third parties,http://opendatacommunities.org/id/county-council/staffordshire  
Staffordshire County Council,Pupil Premium Grant,Wolverhampton City Council,05/12/2019,500.00,Grants to third parties,Grants to third parties,http://opendatacommunities.org/id/county-council/staffordshire  
Staffordshire County Council,Pupil Premium Grant,Wolverhampton City Council,05/12/2019,500.00,Grants to third parties,Grants to third parties,http://opendatacommunities.org/id/county-council/staffordshire  
Staffordshire County Council,Pupil Premium Grant,Wolverhampton City Council,05/12/2019,500.00,Grants to third parties,Grants to third parties,http://opendatacommunities.org/id/county-council/staffordshire  
Staffordshire County Council,Pupil Premium Grant,WORCESTERSHIRE COUNTY COUNCIL,05/12/2019,500.00,Grants to third parties,Grants to third parties,http://opendatacommunities.org/id/county-council/staffordshire  
Staffordshire County Council,7334 Northfields Ctr,WREKIN HOUSING GROUP LTD,05/12/2019,1426.00,Rent / Lease Of Premises,Rent / Lease Of Premises,http://opendatacommunities.org/id/county-council/staffordshire  
Staffordshire County Council,7334 Northfields Ctr,WREKIN HOUSING GROUP LTD,05/12/2019,1426.00,Rent / Lease Of Premises,Rent / Lease Of Premises,http://opendatacommunities.org/id/county-council/staffordshire  
Staffordshire County Council,Pupil Premium Grant,WREKIN VIEW PRIMARY SCHOOL,05/12/2019,1500.00,Grants to third parties,Grants to third parties,http://opendatacommunities.org/id/county-council/staffordshire  
Staffordshire County Council,Glascote and Rawlett SU10,,05/12/2019,750.00,S17 - No recourse to pub funds,S17 - No recourse to pub funds,http://opendatacommunities.org/id/county-council/staffordshire  
Staffordshire County Council,Nursery Education Grant,A DAVIES-HILL,06/12/2019,715.58,Grants Nursery Education Pymnt,Grants Nursery Education Pymnt,http://opendatacommunities.org/id/county-council/staffordshire  
Staffordshire County Council,MCA / DoLs / AMHP,A F Social Care Limited,06/12/2019,750.00,Independent Investigations,Independent Investigations,http://opendatacommunities.org/id/county-council/staffordshire  
Staffordshire County Council,Nursery Education Grant,A Ratcliffe,06/12/2019,1571.61,Grants Nursery Education Pymnt,Grants Nursery Education Pymnt,http://opendatacommunities.org/id/county-council/staffordshire  
Staffordshire County Council,Nursery Education Grant,A SCOTT,06/12/2019,2376.00,Grants Nursery Education Pymnt,Grants Nursery Education Pymnt,http://opendatacommunities.org/id/county-council/staffordshire  
Staffordshire County Council,Think 2 Project,A SHAW-MATTHEWS,06/12/2019,533.40,Awards Funded Childcare Places,Awards Funded Childcare Places,http://opendatacommunities.org/id/county-council/staffordshire  
Staffordshire County Council,Nursery Education Grant,A SHAW-MATTHEWS,06/12/2019,554.59,Grants Nursery Education Pymnt,Grants Nursery Education Pymnt,http://opendatacommunities.org/id/county-council/staffordshire  
Staffordshire County Council,Nursery Education Grant,A STERN,06/12/2019,656.76,Grants Nursery Education Pymnt,Grants Nursery Education Pymnt,http://opendatacommunities.org/id/county-council/staffordshire  
Staffordshire County Council,Think 2 Project,ABACUS NURSERY,06/12/2019,2072.64,Awards Funded Childcare Places,Awards Funded Childcare Places,http://opendatacommunities.org/id/county-council/staffordshire  
Staffordshire County Council,Nursery Education Grant,ABACUS NURSERY,06/12/2019,5635.30,Grants Nursery Education Pymnt,Grants Nursery Education Pymnt,http://opendatacommunities.org/id/county-council/staffordshire  
Staffordshire County Council,Think 2 Project,ACADEMY EARLY YEARS CHILDCARE LTD,06/12/2019,2727.96,Awards Funded Childcare Places,Awards Funded Childcare Places,http://opendatacommunities.org/id/county-council/staffordshire  
Staffordshire County Council,Nursery Education Grant,ACADEMY EARLY YEARS CHILDCARE LTD,06/12/2019,4411.09,Grants Nursery Education Pymnt,Grants Nursery Education Pymnt,http://opendatacommunities.org/id/county-council/staffordshire  
Staffordshire County Council,Workshop Overheads,ACP SERVICES LTD,06/12/2019,678.00,Tools / Spares Purchase,Tools / Spares Purchase,http://opendatacommunities.org/id/county-council/staffordshire  
Staffordshire County Council,Stafford Invoice Led Phys Disa,Affexa Care Services,06/12/2019,761.36,Practical Care,Practical Care,http://opendatacommunities.org/id/county-council/staffordshire  
Staffordshire County Council,Cannock Chase LD Team,Age UK South Staffordshire,06/12/2019,893.75,Practical Care,Practical Care,http://opendatacommunities.org/id/county-council/staffordshire  
Staffordshire County Council,Nursery Education Grant,All Saints' CE (A) First Sch,06/12/2019,15256.47,Grants Nursery Education Pymnt,Grants Nursery Education Pymnt,http://opendatacommunities.org/id/county-council/staffordshire  
Staffordshire County Council,East Staffs Invoice Led Older ,AMG NURSING & CARE SERVICES,06/12/2019,974.96,Practical Care,Practical Care,http://opendatacommunities.org/id/county-council/staffordshire  
Staffordshire County Council,East Staffs Invoice Led Older ,AMG NURSING & CARE SERVICES,06/12/2019,974.96,Practical Care,Practical Care,http://opendatacommunities.org/id/county-council/staffordshire  
Staffordshire County Council,Stafford Invoice Led Older Peo,AMG NURSING & CARE SERVICES,06/12/2019,974.96,Practical Care,Practical Care,http://opendatacommunities.org/id/county-council/staffordshire  
Staffordshire County Council,Stafford Invoice Led Older Peo,AMG NURSING & CARE SERVICES,06/12/2019,974.96,Practical Care,Practical Care,http://opendatacommunities.org/id/county-council/staffordshire  
Staffordshire County Council,Stafford Invoice Led Older Peo,AMG NURSING & CARE SERVICES,06/12/2019,976.36,Practical Care,Practical Care,http://opendatacommunities.org/id/county-council/staffordshire  
Staffordshire County Council,Stafford Invoice Led Older Peo,AMG NURSING & CARE SERVICES,06/12/2019,974.96,Practical Care,Practical Care,http://opendatacommunities.org/id/county-council/staffordshire  
Staffordshire County Council,Stafford Invoice Led Older Peo,AMG NURSING & CARE SERVICES,06/12/2019,974.96,Practical Care,Practical Care,http://opendatacommunities.org/id/county-council/staffordshire  
Staffordshire County Council,Think 2 Project,Angelina Emery,06/12/2019,685.80,Awards Funded Childcare Places,Awards Funded Childcare Places,http://opendatacommunities.org/id/county-council/staffordshire  
Staffordshire County Council,Nursery Education Grant,Angelina Emery,06/12/2019,764.39,Grants Nursery Education Pymnt,Grants Nursery Education Pymnt,http://opendatacommunities.org/id/county-council/staffordshire  
Staffordshire County Council,Think 2 Project,ARGYLE PRE SCHOOL NURSERY,06/12/2019,2933.70,Awards Funded Childcare Places,Awards Funded Childcare Places,http://opendatacommunities.org/id/county-council/staffordshire  
Staffordshire County Council,Nursery Education Grant,ARGYLE PRE SCHOOL NURSERY,06/12/2019,14894.00,Grants Nursery Education Pymnt,Grants Nursery Education Pymnt,http://opendatacommunities.org/id/county-council/staffordshire  
Staffordshire County Council,Think 2 Project,ARMITAGE PRE SCHOOL,06/12/2019,1775.46,Awards Funded Childcare Places,Awards Funded Childcare Places,http://opendatacommunities.org/id/county-council/staffordshire  
Staffordshire County Council,Nursery Education Grant,ARMITAGE PRE SCHOOL,06/12/2019,1695.20,Grants Nursery Education Pymnt,Grants Nursery Education Pymnt,http://opendatacommunities.org/id/county-council/staffordshire  
Staffordshire County Council,Stafford Invoice Led Older Peo,Aston Home Care Limited,06/12/2019,1065.60,Practical Care,Practical Care,http://opendatacommunities.org/id/county-council/staffordshire  
Staffordshire County Council,Stafford Invoice Led Older Peo,Aston Home Care Limited,06/12/2019,1006.60,Practical Care,Practical Care,http://opendatacommunities.org/id/county-council/staffordshire  
Staffordshire County Council,Stafford Invoice Led Older Peo,Aston Home Care Limited,06/12/2019,1187.40,Practical Care,Practical Care,http://opendatacommunities.org/id/county-council/staffordshire  
Staffordshire County Council,Stafford Invoice Led Older Peo,Aston Home Care Limited,06/12/2019,1114.60,Practical Care,Practical Care,http://opendatacommunities.org/id/county-council/staffordshire  
Staffordshire County Council,Stafford Invoice Led Older Peo,Aston Home Care Limited,06/12/2019,532.80,Practical Care,Practical Care,http://opendatacommunities.org/id/county-council/staffordshire  
Staffordshire County Council,Stafford Invoice Led Phys Disa,Aston Home Care Limited,06/12/2019,1105.80,Practical Care,Practical Care,http://opendatacommunities.org/id/county-council/staffordshire  
Staffordshire County Council,Specialist Assessment,Atkinson Lewis,06/12/2019,2382.00,Prev Supp Legal Costs,Prev Supp Legal Costs,http://opendatacommunities.org/id/county-council/staffordshire  
Staffordshire County Council,Independent School Fee Special,Avon Park School,06/12/2019,24949.67,Fees to Independent Schools,Fees to Independent Schools,http://opendatacommunities.org/id/county-council/staffordshire  
Staffordshire County Council,Think 2 Project,B Stone,06/12/2019,1066.80,Awards Funded Childcare Places,Awards Funded Childcare Places,http://opendatacommunities.org/id/county-council/staffordshire  
Staffordshire County Council,Think 2 Project,Barney Bears Nursery,06/12/2019,1295.40,Awards Funded Childcare Places,Awards Funded Childcare Places,http://opendatacommunities.org/id/county-council/staffordshire  
Staffordshire County Council,Nursery Education Grant,Barney Bears Nursery,06/12/2019,13769.74,Grants Nursery Education Pymnt,Grants Nursery Education Pymnt,http://opendatacommunities.org/id/county-council/staffordshire  
Staffordshire County Council,Disposal Districts Unallocated,BIFFA WASTE SERVICES LTD,06/12/2019,2569.25,WASTE TRANSPORT,WASTE TRANSPORT,http://opendatacommunities.org/id/county-council/staffordshire  
Staffordshire County Council,Nursery Education Grant,Birches First School,06/12/2019,15230.80,Grants Nursery Education Pymnt,Grants Nursery Education Pymnt,http://opendatacommunities.org/id/county-council/staffordshire  
Staffordshire County Council,Think 2 Project,Birchwood Private Day Nursery,06/12/2019,3467.10,Awards Funded Childcare Places,Awards Funded Childcare Places,http://opendatacommunities.org/id/county-council/staffordshire  
Staffordshire County Council,Nursery Education Grant,Birchwood Private Day Nursery,06/12/2019,5292.44,Grants Nursery Education Pymnt,Grants Nursery Education Pymnt,http://opendatacommunities.org/id/county-council/staffordshire  
Staffordshire County Council,Nursery Education Grant,Blackshaw Moor CofE First School,06/12/2019,1518.46,Grants Nursery Education Pymnt,Grants Nursery Education Pymnt,http://opendatacommunities.org/id/county-council/staffordshire  
Staffordshire County Council,Nursery Education Grant,BOLEY PARK PRE-SCHOOL,06/12/2019,861.53,Grants Nursery Education Pymnt,Grants Nursery Education Pymnt,http://opendatacommunities.org/id/county-council/staffordshire  
Staffordshire County Council,Nursery Education Grant,BRIGHT BEGINNINGS DAY NURSERY,06/12/2019,8674.27,Grants Nursery Education Pymnt,Grants Nursery Education Pymnt,http://opendatacommunities.org/id/county-council/staffordshire  
Staffordshire County Council,Think 2 Project,BROWN EDGE BUSY BEES,06/12/2019,1653.54,Awards Funded Childcare Places,Awards Funded Childcare Places,http://opendatacommunities.org/id/county-council/staffordshire  
Staffordshire County Council,Nursery Education Grant,BROWN EDGE BUSY BEES,06/12/2019,1945.28,Grants Nursery Education Pymnt,Grants Nursery Education Pymnt,http://opendatacommunities.org/id/county-council/staffordshire  
Staffordshire County Council,Pupil Premium Grant,BROWNHILLS SCHOOL,06/12/2019,500.00,Grants to third parties,Grants to third parties,http://opendatacommunities.org/id/county-council/staffordshire  
Staffordshire County Council,Think 2 Project,BROWNSHORE PRE-SCHOOL PLAYGROUP,06/12/2019,1325.88,Awards Funded Childcare Places,Awards Funded Childcare Places,http://opendatacommunities.org/id/county-council/staffordshire  
Staffordshire County Council,Nursery Education Grant,BROWNSHORE PRE-SCHOOL PLAYGROUP,06/12/2019,1496.22,Grants Nursery Education Pymnt,Grants Nursery Education Pymnt,http://opendatacommunities.org/id/county-council/staffordshire  
Staffordshire County Council,Think 2 Project,Butterflies Nursery,06/12/2019,800.10,Awards Funded Childcare Places,Awards Funded Childcare Places,http://opendatacommunities.org/id/county-council/staffordshire  
Staffordshire County Council,P16 top up for Indep Specialis,Cambian Asperger Syndrome Services Ltd,06/12/2019,5985.00,Events and Competitions,Events and Competitions,http://opendatacommunities.org/id/county-council/staffordshire  
Staffordshire County Council,P16 top up for Indep Specialis,Cambian Asperger Syndrome Services Ltd,06/12/2019,44141.00,Events and Competitions,Events and Competitions,http://opendatacommunities.org/id/county-council/staffordshire  
Staffordshire County Council,Statutory Recycling Credits,CANNOCK CHASE COUNCIL,06/12/2019,73849.00,Recycling Credits,Recycling Credits,http://opendatacommunities.org/id/county-council/staffordshire  
Staffordshire County Council,Nursery Education Grant,Castle Primary School,06/12/2019,1931.36,Grants Nursery Education Pymnt,Grants Nursery Education Pymnt,http://opendatacommunities.org/id/county-council/staffordshire  
Staffordshire County Council,South Staffs Coroner,Central England Co-operative,06/12/2019,1170.00,OTHER HIRED SERVICES,OTHER HIRED SERVICES,http://opendatacommunities.org/id/county-council/staffordshire  
Staffordshire County Council,Think 2 Project,CHEEKY MONKEYS DAY NURSERY,06/12/2019,5966.46,Awards Funded Childcare Places,Awards Funded Childcare Places,http://opendatacommunities.org/id/county-council/staffordshire  
Staffordshire County Council,Nursery Education Grant,CHEEKY MONKEYS DAY NURSERY,06/12/2019,20677.94,Grants Nursery Education Pymnt,Grants Nursery Education Pymnt,http://opendatacommunities.org/id/county-council/staffordshire  
Staffordshire County Council,Nursery Education Grant,CHESTERTON ACADEMY TRUST,06/12/2019,6783.87,Grants Nursery Education Pymnt,Grants Nursery Education Pymnt,http://opendatacommunities.org/id/county-council/staffordshire  
Staffordshire County Council,Think 2 Project,Chesterton Primary School,06/12/2019,1066.80,Awards Funded Childcare Places,Awards Funded Childcare Places,http://opendatacommunities.org/id/county-council/staffordshire  
Staffordshire County Council,Nursery Education Grant,Chesterton Primary School,06/12/2019,4980.57,Grants Nursery Education Pymnt,Grants Nursery Education Pymnt,http://opendatacommunities.org/id/county-council/staffordshire  
Staffordshire County Council,Carematch External,Choices Housing Association Ltd,06/12/2019,5000.00,OTHER HIRED SERVICES,OTHER HIRED SERVICES,http://opendatacommunities.org/id/county-council/staffordshire  
Staffordshire County Council,Nursery Education Grant,Christ The King T/A St Mary's CPS,06/12/2019,15220.43,Grants Nursery Education Pymnt,Grants Nursery Education Pymnt,http://opendatacommunities.org/id/county-council/staffordshire  
Staffordshire County Council,Think 2 Project,Churchfield C E Primary Academy,06/12/2019,5334.00,Awards Funded Childcare Places,Awards Funded Childcare Places,http://opendatacommunities.org/id/county-council/staffordshire  
Staffordshire County Council,Nursery Education Grant,Churchfield C E Primary Academy,06/12/2019,5966.48,Grants Nursery Education Pymnt,Grants Nursery Education Pymnt,http://opendatacommunities.org/id/county-council/staffordshire  
Staffordshire County Council,Nursery Education Grant,CHURCHFIELDS PRIM SCHOOL,06/12/2019,8294.31,Grants Nursery Education Pymnt,Grants Nursery Education Pymnt,http://opendatacommunities.org/id/county-council/staffordshire  
Staffordshire County Council,SFA Community Learning,Churnet View Middle School,06/12/2019,850.00,Grants To Clubs,Grants To Clubs,http://opendatacommunities.org/id/county-council/staffordshire  
Staffordshire County Council,Nursery Education Grant,COOGEE NURSERY SCHOOL,06/12/2019,2938.73,Grants Nursery Education Pymnt,Grants Nursery Education Pymnt,http://opendatacommunities.org/id/county-council/staffordshire  
Staffordshire County Council,Think 2 Project,Coton Green Church Preschool,06/12/2019,533.40,Awards Funded Childcare Places,Awards Funded Childcare Places,http://opendatacommunities.org/id/county-council/staffordshire  
Staffordshire County Council,Nursery Education Grant,Coton Green Church Preschool,06/12/2019,4710.28,Grants Nursery Education Pymnt,Grants Nursery Education Pymnt,http://opendatacommunities.org/id/county-council/staffordshire  
Staffordshire County Council,E Staffs LD Team,Craegmoor Priory Group,06/12/2019,1831.80,Supported Group Care,Supported Group Care,http://opendatacommunities.org/id/county-council/staffordshire  
Staffordshire County Council,Think 2 Project,CROFT DAY NURSERY SCHOOL,06/12/2019,1600.20,Awards Funded Childcare Places,Awards Funded Childcare Places,http://opendatacommunities.org/id/county-council/staffordshire  
Staffordshire County Council,Nursery Education Grant,CROFT DAY NURSERY SCHOOL,06/12/2019,6698.96,Grants Nursery Education Pymnt,Grants Nursery Education Pymnt,http://opendatacommunities.org/id/county-council/staffordshire  
Staffordshire County Council,Stafford LD Team,D E Healthcare,06/12/2019,2462.92,Supported Group Care,Supported Group Care,http://opendatacommunities.org/id/county-council/staffordshire  
Staffordshire County Council,E Staffs LD Team,D E Healthcare,06/12/2019,3580.38,Supported Group Care,Supported Group Care,http://opendatacommunities.org/id/county-council/staffordshire  
Staffordshire County Council,E Staffs LD Team,D E Healthcare,06/12/2019,2418.07,Supported Group Care,Supported Group Care,http://opendatacommunities.org/id/county-council/staffordshire  
Staffordshire County Council,E Staffs LD Team,D E Healthcare,06/12/2019,3954.14,Supported Group Care,Supported Group Care,http://opendatacommunities.org/id/county-council/staffordshire  
Staffordshire County Council,E Staffs LD Team,D E Healthcare,06/12/2019,4667.88,Supported Group Care,Supported Group Care,http://opendatacommunities.org/id/county-council/staffordshire  
Staffordshire County Council,Newcastle LD Team,D E Healthcare,06/12/2019,5026.68,Supported Group Care,Supported Group Care,http://opendatacommunities.org/id/county-council/staffordshire  
Staffordshire County Council,E Staffs LD Team,D E Healthcare,06/12/2019,4966.88,Supported Group Care,Supported Group Care,http://opendatacommunities.org/id/county-council/staffordshire  
Staffordshire County Council,E Staffs LD Team,D E Healthcare,06/12/2019,3054.68,Supported Group Care,Supported Group Care,http://opendatacommunities.org/id/county-council/staffordshire  
Staffordshire County Council,E Staffs LD Team,D E Healthcare,06/12/2019,2464.92,Supported Group Care,Supported Group Care,http://opendatacommunities.org/id/county-council/staffordshire  
Staffordshire County Council,Nursery Education Grant,D Wood,06/12/2019,1278.35,Grants Nursery Education Pymnt,Grants Nursery Education Pymnt,http://opendatacommunities.org/id/county-council/staffordshire  
Staffordshire County Council,Think 2 Project,DOLLY MIXTURES DAY NURSERY,06/12/2019,1066.80,Awards Funded Childcare Places,Awards Funded Childcare Places,http://opendatacommunities.org/id/county-council/staffordshire  
Staffordshire County Council,Nursery Education Grant,DOLLY MIXTURES DAY NURSERY,06/12/2019,8184.34,Grants Nursery Education Pymnt,Grants Nursery Education Pymnt,http://opendatacommunities.org/id/county-council/staffordshire  
Staffordshire County Council,Think 2 Project,Dosthill Nursery and Care Club,06/12/2019,4267.20,Awards Funded Childcare Places,Awards Funded Childcare Places,http://opendatacommunities.org/id/county-council/staffordshire  
Staffordshire County Council,Nursery Education Grant,Dosthill Nursery and Care Club,06/12/2019,17836.39,Grants Nursery Education Pymnt,Grants Nursery Education Pymnt,http://opendatacommunities.org/id/county-council/staffordshire  
Staffordshire County Council,Nursery Education Grant,Dosthill Nursery and Care Club,06/12/2019,16590.72,Grants Nursery Education Pymnt,Grants Nursery Education Pymnt,http://opendatacommunities.org/id/county-council/staffordshire  
Staffordshire County Council,Think 2 Project,DOSTHILL PARK PRE SCHOOL P GRP,06/12/2019,1287.78,Awards Funded Childcare Places,Awards Funded Childcare Places,http://opendatacommunities.org/id/county-council/staffordshire  
Staffordshire County Council,Nursery Education Grant,DOSTHILL PARK PRE SCHOOL P GRP,06/12/2019,5313.47,Grants Nursery Education Pymnt,Grants Nursery Education Pymnt,http://opendatacommunities.org/id/county-council/staffordshire  
Staffordshire County Council,Statutory Recycling Credits,EAST STAFFS BOROUGH COUNCIL,06/12/2019,90476.00,Recycling Credits,Recycling Credits,http://opendatacommunities.org/id/county-council/staffordshire  
Staffordshire County Council,Think 2 Project,ELMHURST HOUSE PRE SCHOOL,06/12/2019,2217.42,Awards Funded Childcare Places,Awards Funded Childcare Places,http://opendatacommunities.org/id/county-council/staffordshire  
Staffordshire County Council,Nursery Education Grant,ELMHURST HOUSE PRE SCHOOL,06/12/2019,12856.35,Grants Nursery Education Pymnt,Grants Nursery Education Pymnt,http://opendatacommunities.org/id/county-council/staffordshire  
Staffordshire County Council,Think 2 Project,Emma Clarke,06/12/2019,533.40,Awards Funded Childcare Places,Awards Funded Childcare Places,http://opendatacommunities.org/id/county-council/staffordshire  
Staffordshire County Council,Nursery Education Grant,Emma Hughes,06/12/2019,528.14,Grants Nursery Education Pymnt,Grants Nursery Education Pymnt,http://opendatacommunities.org/id/county-council/staffordshire  
Staffordshire County Council,Improvements Contracts,ESRI UK LTD,06/12/2019,92400.00,SOFTWARE LICENCES,SOFTWARE LICENCES,http://opendatacommunities.org/id/county-council/staffordshire  
Staffordshire County Council,Growth Hub ERDF 2019-2022,ExtraMile Communications Ltd,06/12/2019,2923.00,Grants Other,Grants Other,http://opendatacommunities.org/id/county-council/staffordshire  
Staffordshire County Council,Think 2 Project,Farlea Childcare Ltd,06/12/2019,2827.02,Awards Funded Childcare Places,Awards Funded Childcare Places,http://opendatacommunities.org/id/county-council/staffordshire  
Staffordshire County Council,Think 2 Project,Farlea Childcare Ltd,06/12/2019,5829.30,Awards Funded Childcare Places,Awards Funded Childcare Places,http://opendatacommunities.org/id/county-council/staffordshire  
Staffordshire County Council,Nursery Education Grant,Farlea Childcare Ltd,06/12/2019,1889.71,Grants Nursery Education Pymnt,Grants Nursery Education Pymnt,http://opendatacommunities.org/id/county-council/staffordshire  
Staffordshire County Council,Nursery Education Grant,Farlea Childcare Ltd,06/12/2019,833.70,Grants Nursery Education Pymnt,Grants Nursery Education Pymnt,http://opendatacommunities.org/id/county-council/staffordshire  
Staffordshire County Council,Nursery Education Grant,Farlea Childcare Ltd,06/12/2019,2806.78,Grants Nursery Education Pymnt,Grants Nursery Education Pymnt,http://opendatacommunities.org/id/county-council/staffordshire  
Staffordshire County Council,Nursery Education Grant,Farlea Childcare Ltd,06/12/2019,4159.56,Grants Nursery Education Pymnt,Grants Nursery Education Pymnt,http://opendatacommunities.org/id/county-council/staffordshire  
Staffordshire County Council,Nursery Education Grant,Farlea Childcare Ltd,06/12/2019,1364.60,Grants Nursery Education Pymnt,Grants Nursery Education Pymnt,http://opendatacommunities.org/id/county-council/staffordshire  
Staffordshire County Council,Independent Sch Fees Mainstr'm,Featherstone Academy,06/12/2019,2640.32,Fees to Independent Schools,Fees to Independent Schools,http://opendatacommunities.org/id/county-council/staffordshire  
Staffordshire County Council,Nursery Education Grant,Fiona Lander,06/12/2019,833.70,Grants Nursery Education Pymnt,Grants Nursery Education Pymnt,http://opendatacommunities.org/id/county-council/staffordshire  
Staffordshire County Council,Nursery Education Grant,FIVE SPIRES ACADEMY NURSERY,06/12/2019,4878.97,Grants Nursery Education Pymnt,Grants Nursery Education Pymnt,http://opendatacommunities.org/id/county-council/staffordshire  
Staffordshire County Council,Stock Suspense Account,Fleet Factors Ltd,06/12/2019,4847.83,CFC Purchase of Stock,CFC Purchase of Stock,http://opendatacommunities.org/id/county-council/staffordshire  
Staffordshire County Council,Think 2 Project,Footsteps Day Nurseries Ltd-Cannock,06/12/2019,1905.00,Awards Funded Childcare Places,Awards Funded Childcare Places,http://opendatacommunities.org/id/county-council/staffordshire  
Staffordshire County Council,Nursery Education Grant,Footsteps Day Nurseries Ltd-Cannock,06/12/2019,16554.54,Grants Nursery Education Pymnt,Grants Nursery Education Pymnt,http://opendatacommunities.org/id/county-council/staffordshire  
Staffordshire County Council,Think 2 Project,Footsteps Day Nurseries Ltd-Fazeley,06/12/2019,2133.60,Awards Funded Childcare Places,Awards Funded Childcare Places,http://opendatacommunities.org/id/county-council/staffordshire  
Staffordshire County Council,Nursery Education Grant,Footsteps Day Nurseries Ltd-Fazeley,06/12/2019,14490.26,Grants Nursery Education Pymnt,Grants Nursery Education Pymnt,http://opendatacommunities.org/id/county-council/staffordshire  
Staffordshire County Council,Think 2 Project,FOOTSTEPS DAY NURSERY,06/12/2019,3200.40,Awards Funded Childcare Places,Awards Funded Childcare Places,http://opendatacommunities.org/id/county-council/staffordshire  
Staffordshire County Council,Nursery Education Grant,FOOTSTEPS DAY NURSERY,06/12/2019,7870.32,Grants Nursery Education Pymnt,Grants Nursery Education Pymnt,http://opendatacommunities.org/id/county-council/staffordshire  
Staffordshire County Council,Nursery Education Grant,FOOTSTEPS DAY NURSERY,06/12/2019,7475.31,Grants Nursery Education Pymnt,Grants Nursery Education Pymnt,http://opendatacommunities.org/id/county-council/staffordshire  
Staffordshire County Council,Nursery Education Grant,FOOTSTEPS DAY NURSERY,06/12/2019,8977.80,Grants Nursery Education Pymnt,Grants Nursery Education Pymnt,http://opendatacommunities.org/id/county-council/staffordshire  
Staffordshire County Council,Nursery Education Grant,FOOTSTEPS NURSERY & PRE-SCHOOL,06/12/2019,684.92,Grants Nursery Education Pymnt,Grants Nursery Education Pymnt,http://opendatacommunities.org/id/county-council/staffordshire  
Staffordshire County Council,Think 2 Project,FOOTSTEPS NURSERY & PRE-SCHOOL,06/12/2019,4635.50,Awards Funded Childcare Places,Awards Funded Childcare Places,http://opendatacommunities.org/id/county-council/staffordshire  
Staffordshire County Council,Nursery Education Grant,FOOTSTEPS NURSERY & PRE-SCHOOL,06/12/2019,21493.76,Grants Nursery Education Pymnt,Grants Nursery Education Pymnt,http://opendatacommunities.org/id/county-council/staffordshire  
Staffordshire County Council,Think 2 Project,FOOTSTEPS NURSERY AND PRE SCHOOL,06/12/2019,1790.70,Awards Funded Childcare Places,Awards Funded Childcare Places,http://opendatacommunities.org/id/county-council/staffordshire  
Staffordshire County Council,Nursery Education Grant,FOOTSTEPS NURSERY AND PRE SCHOOL,06/12/2019,13361.18,Grants Nursery Education Pymnt,Grants Nursery Education Pymnt,http://opendatacommunities.org/id/county-council/staffordshire  
Staffordshire County Council,Think 2 Project,Forton Day Nursery,06/12/2019,533.40,Awards Funded Childcare Places,Awards Funded Childcare Places,http://opendatacommunities.org/id/county-council/staffordshire  
Staffordshire County Council,Nursery Education Grant,Forton Day Nursery,06/12/2019,2765.12,Grants Nursery Education Pymnt,Grants Nursery Education Pymnt,http://opendatacommunities.org/id/county-council/staffordshire  
Staffordshire County Council,Nursery Education Grant,G KOSTUCH,06/12/2019,671.35,Grants Nursery Education Pymnt,Grants Nursery Education Pymnt,http://opendatacommunities.org/id/county-council/staffordshire  
Staffordshire County Council,SFA Community Learning,Glascote Heath Pre-School,06/12/2019,683.00,Grants To Clubs,Grants To Clubs,http://opendatacommunities.org/id/county-council/staffordshire  
Staffordshire County Council,Nursery Education Grant,GORSYBANK PRE SCHOOL,06/12/2019,10907.10,Grants Nursery Education Pymnt,Grants Nursery Education Pymnt,http://opendatacommunities.org/id/county-council/staffordshire  
Staffordshire County Council,Nursery Education Grant,Grange Infant School,06/12/2019,13279.65,Grants Nursery Education Pymnt,Grants Nursery Education Pymnt,http://opendatacommunities.org/id/county-council/staffordshire  
Staffordshire County Council,Think 2 Project,GREAT HAYWOOD UNDER 5'S,06/12/2019,927.10,Awards Funded Childcare Places,Awards Funded Childcare Places,http://opendatacommunities.org/id/county-council/staffordshire  
Staffordshire County Council,Nursery Education Grant,GREAT HAYWOOD UNDER 5'S,06/12/2019,2442.77,Grants Nursery Education Pymnt,Grants Nursery Education Pymnt,http://opendatacommunities.org/id/county-council/staffordshire  
Staffordshire County Council,Pupil Premium Grant,Green Lane Community Special School,06/12/2019,500.00,Grants to third parties,Grants to third parties,http://opendatacommunities.org/id/county-council/staffordshire  
Staffordshire County Council,Think 2 Project,H MAIR,06/12/2019,762.00,Awards Funded Childcare Places,Awards Funded Childcare Places,http://opendatacommunities.org/id/county-council/staffordshire  
Staffordshire County Council,Think 2 Project,HANBURYS FARM PRE SCHOOL,06/12/2019,4892.04,Awards Funded Childcare Places,Awards Funded Childcare Places,http://opendatacommunities.org/id/county-council/staffordshire  
Staffordshire County Council,Nursery Education Grant,HANBURYS FARM PRE SCHOOL,06/12/2019,10048.46,Grants Nursery Education Pymnt,Grants Nursery Education Pymnt,http://opendatacommunities.org/id/county-council/staffordshire  
Staffordshire County Council,Nursery Education Grant,Happy Hours @ Biddulph,06/12/2019,655.05,Grants Nursery Education Pymnt,Grants Nursery Education Pymnt,http://opendatacommunities.org/id/county-council/staffordshire  
Staffordshire County Council,Nursery Education Grant,Happy Hours @ Biddulph,06/12/2019,2895.33,Grants Nursery Education Pymnt,Grants Nursery Education Pymnt,http://opendatacommunities.org/id/county-council/staffordshire  
Staffordshire County Council,Nursery Education Grant,Happy Hours Nursery,06/12/2019,7255.75,Grants Nursery Education Pymnt,Grants Nursery Education Pymnt,http://opendatacommunities.org/id/county-council/staffordshire  
Staffordshire County Council,Nursery Education Grant,HARRINGTON DAY NURSERY LTD,06/12/2019,750.60,Grants Nursery Education Pymnt,Grants Nursery Education Pymnt,http://opendatacommunities.org/id/county-council/staffordshire  
Staffordshire County Council,Think 2 Project,HARRINGTON DAY NURSERY LTD,06/12/2019,10972.80,Awards Funded Childcare Places,Awards Funded Childcare Places,http://opendatacommunities.org/id/county-council/staffordshire  
Staffordshire County Council,Nursery Education Grant,HARRINGTON DAY NURSERY LTD,06/12/2019,5459.17,Grants Nursery Education Pymnt,Grants Nursery Education Pymnt,http://opendatacommunities.org/id/county-council/staffordshire  
Staffordshire County Council,5438 Staffs Place 1&2Tipping S,HEATELECT LIMITED,06/12/2019,1380.00,Day to Day Mechanical Services,Day to Day Mechanical Services,http://opendatacommunities.org/id/county-council/staffordshire  
Staffordshire County Council,Think 2 Project,Hedgehogs Preschool,06/12/2019,6934.20,Awards Funded Childcare Places,Awards Funded Childcare Places,http://opendatacommunities.org/id/county-council/staffordshire  
Staffordshire County Council,Think 2 Project,Hedgehogs Preschool,06/12/2019,800.10,Awards Funded Childcare Places,Awards Funded Childcare Places,http://opendatacommunities.org/id/county-council/staffordshire  
Staffordshire County Council,Think 2 Project,Hedgehogs Preschool,06/12/2019,2933.70,Awards Funded Childcare Places,Awards Funded Childcare Places,http://opendatacommunities.org/id/county-council/staffordshire  
Staffordshire County Council,Nursery Education Grant,Hedgehogs Preschool,06/12/2019,3793.61,Grants Nursery Education Pymnt,Grants Nursery Education Pymnt,http://opendatacommunities.org/id/county-council/staffordshire  
Staffordshire County Council,Nursery Education Grant,Hedgehogs Preschool,06/12/2019,3395.16,Grants Nursery Education Pymnt,Grants Nursery Education Pymnt,http://opendatacommunities.org/id/county-council/staffordshire  
Staffordshire County Council,Nursery Education Grant,Henhurst Ridge Primary Academy Nursery,06/12/2019,4337.34,Grants Nursery Education Pymnt,Grants Nursery Education Pymnt,http://opendatacommunities.org/id/county-council/staffordshire  
Staffordshire County Council,Tamworth Invoice Led Older Peo,Hills Angels Homecare,06/12/2019,507.15,Practical Care,Practical Care,http://opendatacommunities.org/id/county-council/staffordshire  
Staffordshire County Council,Nursery Education Grant,Hilltop Tots Day Nursery Ltd,06/12/2019,551.88,Grants Nursery Education Pymnt,Grants Nursery Education Pymnt,http://opendatacommunities.org/id/county-council/staffordshire  
Staffordshire County Council,Think 2 Project,Holly Eardley,06/12/2019,1257.30,Awards Funded Childcare Places,Awards Funded Childcare Places,http://opendatacommunities.org/id/county-council/staffordshire  
Staffordshire County Council,Think 2 Project,HOLLY LANE NURSERY,06/12/2019,2319.02,Awards Funded Childcare Places,Awards Funded Childcare Places,http://opendatacommunities.org/id/county-council/staffordshire  
Staffordshire County Council,Nursery Education Grant,HOLLY LANE NURSERY,06/12/2019,10846.47,Grants Nursery Education Pymnt,Grants Nursery Education Pymnt,http://opendatacommunities.org/id/county-council/staffordshire  
Staffordshire County Council,Think 2 Project,HOLY TRINITY PLAYGROUP,06/12/2019,800.10,Awards Funded Childcare Places,Awards Funded Childcare Places,http://opendatacommunities.org/id/county-council/staffordshire  
Staffordshire County Council,Nursery Education Grant,HOLY TRINITY PLAYGROUP,06/12/2019,1772.95,Grants Nursery Education Pymnt,Grants Nursery Education Pymnt,http://opendatacommunities.org/id/county-council/staffordshire  
Staffordshire County Council,Nursery Education Grant,HORN END NURSERY,06/12/2019,8333.59,Grants Nursery Education Pymnt,Grants Nursery Education Pymnt,http://opendatacommunities.org/id/county-council/staffordshire  
Staffordshire County Council,Think 2 Project,HORN END NURSERY SCHOOL,06/12/2019,3048.00,Awards Funded Childcare Places,Awards Funded Childcare Places,http://opendatacommunities.org/id/county-council/staffordshire  
Staffordshire County Council,Nursery Education Grant,HORN END NURSERY SCHOOL,06/12/2019,5821.94,Grants Nursery Education Pymnt,Grants Nursery Education Pymnt,http://opendatacommunities.org/id/county-council/staffordshire  
Staffordshire County Council,Nursery Education Grant,HORN END NURSERY SCHOOL,06/12/2019,6669.52,Grants Nursery Education Pymnt,Grants Nursery Education Pymnt,http://opendatacommunities.org/id/county-council/staffordshire  
Staffordshire County Council,Think 2 Project,HUGGIES DAY NURSERY LTD,06/12/2019,5740.40,Awards Funded Childcare Places,Awards Funded Childcare Places,http://opendatacommunities.org/id/county-council/staffordshire  
Staffordshire County Council,Nursery Education Grant,HUGGIES DAY NURSERY LTD,06/12/2019,5792.05,Grants Nursery Education Pymnt,Grants Nursery Education Pymnt,http://opendatacommunities.org/id/county-council/staffordshire  
Staffordshire County Council,Nursery Education Grant,J Barker,06/12/2019,825.76,Grants Nursery Education Pymnt,Grants Nursery Education Pymnt,http://opendatacommunities.org/id/county-council/staffordshire  
Staffordshire County Council,Nursery Education Grant,J CAIRNS,06/12/2019,562.74,Grants Nursery Education Pymnt,Grants Nursery Education Pymnt,http://opendatacommunities.org/id/county-council/staffordshire  
Staffordshire County Council,Prevention and Placement,J Kaminski,06/12/2019,536.00,CONSULTANT FEES,CONSULTANT FEES,http://opendatacommunities.org/id/county-council/staffordshire  
Staffordshire County Council,Prevention and Placement,J Kaminski,06/12/2019,560.00,CONSULTANT FEES,CONSULTANT FEES,http://opendatacommunities.org/id/county-council/staffordshire  
Staffordshire County Council,Nursery Education Grant,J Lee,06/12/2019,736.56,Grants Nursery Education Pymnt,Grants Nursery Education Pymnt,http://opendatacommunities.org/id/county-council/staffordshire  
Staffordshire County Council,Think 2 Project,J THOMAS,06/12/2019,1028.70,Awards Funded Childcare Places,Awards Funded Childcare Places,http://opendatacommunities.org/id/county-council/staffordshire  
Staffordshire County Council,Horton Lodge School,J TOMLINSON LTD,06/12/2019,630.00,Service/Test Gas / Oil Boiler,Service/Test Gas / Oil Boiler,http://opendatacommunities.org/id/county-council/staffordshire  
Staffordshire County Council,Nursery Education Grant,JACK & JILLS PRE-SCHOOL,06/12/2019,668.91,Grants Nursery Education Pymnt,Grants Nursery Education Pymnt,http://opendatacommunities.org/id/county-council/staffordshire  
Staffordshire County Council,Think 2 Project,JELLY TOTZ,06/12/2019,990.60,Awards Funded Childcare Places,Awards Funded Childcare Places,http://opendatacommunities.org/id/county-council/staffordshire  
Staffordshire County Council,Nursery Education Grant,JELLY TOTZ,06/12/2019,3505.38,Grants Nursery Education Pymnt,Grants Nursery Education Pymnt,http://opendatacommunities.org/id/county-council/staffordshire  
Staffordshire County Council,Nursery Education Grant,Jodie Vant,06/12/2019,514.12,Grants Nursery Education Pymnt,Grants Nursery Education Pymnt,http://opendatacommunities.org/id/county-council/staffordshire  
Staffordshire County Council,Think 2 Project,K SNEYD,06/12/2019,1066.80,Awards Funded Childcare Places,Awards Funded Childcare Places,http://opendatacommunities.org/id/county-council/staffordshire  
Staffordshire County Council,Think 2 Project,KIDDIE WINKS DAY CARE NURSERY LTD,06/12/2019,10668.00,Awards Funded Childcare Places,Awards Funded Childcare Places,http://opendatacommunities.org/id/county-council/staffordshire  
Staffordshire County Council,Nursery Education Grant,KIDDIE WINKS DAY CARE NURSERY LTD,06/12/2019,26132.49,Grants Nursery Education Pymnt,Grants Nursery Education Pymnt,http://opendatacommunities.org/id/county-council/staffordshire  
Staffordshire County Council,CD Commissioning Team,Kids,06/12/2019,1259.50,OTHER HIRED SERVICES,OTHER HIRED SERVICES,http://opendatacommunities.org/id/county-council/staffordshire  
Staffordshire County Council,CD Commissioning Team,Kids,06/12/2019,2057.00,OTHER HIRED SERVICES,OTHER HIRED SERVICES,http://opendatacommunities.org/id/county-council/staffordshire  
Staffordshire County Council,Nursery Education Grant,Kingsfield First School,06/12/2019,13051.44,Grants Nursery Education Pymnt,Grants Nursery Education Pymnt,http://opendatacommunities.org/id/county-council/staffordshire  
Staffordshire County Council,Nursery Education Grant,KINGSLEY KINGFISHERS PRE SCH PLYGRP,06/12/2019,628.29,Grants Nursery Education Pymnt,Grants Nursery Education Pymnt,http://opendatacommunities.org/id/county-council/staffordshire  
Staffordshire County Council,Think 2 Project,KINVER GARDEN DAY NURSERY,06/12/2019,533.40,Awards Funded Childcare Places,Awards Funded Childcare Places,http://opendatacommunities.org/id/county-council/staffordshire  
Staffordshire County Council,Nursery Education Grant,KINVER GARDEN DAY NURSERY,06/12/2019,12991.65,Grants Nursery Education Pymnt,Grants Nursery Education Pymnt,http://opendatacommunities.org/id/county-council/staffordshire  
Staffordshire County Council,Nursery Education Grant,Knutton St Marys C of E Academy,06/12/2019,2573.01,Grants Nursery Education Pymnt,Grants Nursery Education Pymnt,http://opendatacommunities.org/id/county-council/staffordshire  
Staffordshire County Council,Nursery Education Grant,Knypersley First School,06/12/2019,12400.14,Grants Nursery Education Pymnt,Grants Nursery Education Pymnt,http://opendatacommunities.org/id/county-council/staffordshire  
Staffordshire County Council,Nursery Education Grant,L Ford,06/12/2019,875.37,Grants Nursery Education Pymnt,Grants Nursery Education Pymnt,http://opendatacommunities.org/id/county-council/staffordshire  
Staffordshire County Council,Nursery Education Grant,L HARVEY,06/12/2019,656.76,Grants Nursery Education Pymnt,Grants Nursery Education Pymnt,http://opendatacommunities.org/id/county-council/staffordshire  
Staffordshire County Council,Think 2 Project,L Ward,06/12/2019,868.68,Awards Funded Childcare Places,Awards Funded Childcare Places,http://opendatacommunities.org/id/county-council/staffordshire  
Staffordshire County Council,Think 2 Project,LANDYWOOD PLAYGROUP,06/12/2019,5067.30,Awards Funded Childcare Places,Awards Funded Childcare Places,http://opendatacommunities.org/id/county-council/staffordshire  
Staffordshire County Council,Nursery Education Grant,Leasowes Extra Wraparound,06/12/2019,10473.67,Grants Nursery Education Pymnt,Grants Nursery Education Pymnt,http://opendatacommunities.org/id/county-council/staffordshire  
Staffordshire County Council,Think 2 Project,LEEK WESTWOOD PRE-SCHOOL,06/12/2019,4729.48,Awards Funded Childcare Places,Awards Funded Childcare Places,http://opendatacommunities.org/id/county-council/staffordshire  
Staffordshire County Council,Nursery Education Grant,LEEK WESTWOOD PRE-SCHOOL,06/12/2019,10985.53,Grants Nursery Education Pymnt,Grants Nursery Education Pymnt,http://opendatacommunities.org/id/county-council/staffordshire  
Staffordshire County Council,Growth Hub LEP 2016-2018 BIS,Let's Do Ltd,06/12/2019,1392.00,CONSULTANT FEES,CONSULTANT FEES,http://opendatacommunities.org/id/county-council/staffordshire  
Staffordshire County Council,Statutory Recycling Credits,LICHFIELD DISTRICT COUNCIL,06/12/2019,82656.00,Recycling Credits,Recycling Credits,http://opendatacommunities.org/id/county-council/staffordshire  
Staffordshire County Council,Street Lighting PFI Scheme,LIGHTING FOR STAFFORDSHIRE LTD,06/12/2019,1301185.84,PFI - Street Lighting,PFI - Street Lighting,http://opendatacommunities.org/id/county-council/staffordshire  
Staffordshire County Council,Nursery Education Grant,Lisa Squance,06/12/2019,1786.48,Grants Nursery Education Pymnt,Grants Nursery Education Pymnt,http://opendatacommunities.org/id/county-council/staffordshire  
Staffordshire County Council,Think 2 Project,LITTLE ASTON PRE-SCHOOL,06/12/2019,1706.88,Awards Funded Childcare Places,Awards Funded Childcare Places,http://opendatacommunities.org/id/county-council/staffordshire  
Staffordshire County Council,Nursery Education Grant,LITTLE ASTON PRE-SCHOOL,06/12/2019,4293.51,Grants Nursery Education Pymnt,Grants Nursery Education Pymnt,http://opendatacommunities.org/id/county-council/staffordshire  
Staffordshire County Council,Think 2 Project,Little Cherubs,06/12/2019,3657.60,Awards Funded Childcare Places,Awards Funded Childcare Places,http://opendatacommunities.org/id/county-council/staffordshire  
Staffordshire County Council,Nursery Education Grant,Little Cherubs,06/12/2019,4754.46,Grants Nursery Education Pymnt,Grants Nursery Education Pymnt,http://opendatacommunities.org/id/county-council/staffordshire  
Staffordshire County Council,Think 2 Project,LITTLE EXPLORERS PRESCHOOL,06/12/2019,5334.00,Awards Funded Childcare Places,Awards Funded Childcare Places,http://opendatacommunities.org/id/county-council/staffordshire  
Staffordshire County Council,Nursery Education Grant,LITTLE EXPLORERS PRESCHOOL,06/12/2019,4780.02,Grants Nursery Education Pymnt,Grants Nursery Education Pymnt,http://opendatacommunities.org/id/county-council/staffordshire  
Staffordshire County Council,Think 2 Project,LITTLE LEARNERS,06/12/2019,4061.46,Awards Funded Childcare Places,Awards Funded Childcare Places,http://opendatacommunities.org/id/county-council/staffordshire  
Staffordshire County Council,Nursery Education Grant,LITTLE LEARNERS,06/12/2019,11098.23,Grants Nursery Education Pymnt,Grants Nursery Education Pymnt,http://opendatacommunities.org/id/county-council/staffordshire  
Staffordshire County Council,Think 2 Project,Little learners at Fulford Pre School,06/12/2019,1333.50,Awards Funded Childcare Places,Awards Funded Childcare Places,http://opendatacommunities.org/id/county-council/staffordshire  
Staffordshire County Council,Nursery Education Grant,Little learners at Fulford Pre School,06/12/2019,3862.72,Grants Nursery Education Pymnt,Grants Nursery Education Pymnt,http://opendatacommunities.org/id/county-council/staffordshire  
Staffordshire County Council,Nursery Education Grant,LITTLE MONSTERS DAY NURSERY,06/12/2019,2250.59,Grants Nursery Education Pymnt,Grants Nursery Education Pymnt,http://opendatacommunities.org/id/county-council/staffordshire  
Staffordshire County Council,Think 2 Project,LITTLE MONSTERS DAY NURSERY,06/12/2019,3039.86,Awards Funded Childcare Places,Awards Funded Childcare Places,http://opendatacommunities.org/id/county-council/staffordshire  
Staffordshire County Council,Nursery Education Grant,LITTLE MONSTERS DAY NURSERY,06/12/2019,10845.64,Grants Nursery Education Pymnt,Grants Nursery Education Pymnt,http://opendatacommunities.org/id/county-council/staffordshire  
Staffordshire County Council,Think 2 Project,LITTLE POTTERS DAY NURSERY,06/12/2019,3147.06,Awards Funded Childcare Places,Awards Funded Childcare Places,http://opendatacommunities.org/id/county-council/staffordshire  
Staffordshire County Council,Nursery Education Grant,LITTLE POTTERS DAY NURSERY,06/12/2019,4405.83,Grants Nursery Education Pymnt,Grants Nursery Education Pymnt,http://opendatacommunities.org/id/county-council/staffordshire  
Staffordshire County Council,Think 2 Project,Little Stars Partnership,06/12/2019,1866.90,Awards Funded Childcare Places,Awards Funded Childcare Places,http://opendatacommunities.org/id/county-council/staffordshire  
Staffordshire County Council,Nursery Education Grant,Little Stars Partnership,06/12/2019,3459.78,Grants Nursery Education Pymnt,Grants Nursery Education Pymnt,http://opendatacommunities.org/id/county-council/staffordshire  
Staffordshire County Council,Think 2 Project,Little Treasures Childcare Ltd,06/12/2019,1066.80,Awards Funded Childcare Places,Awards Funded Childcare Places,http://opendatacommunities.org/id/county-council/staffordshire  
Staffordshire County Council,Nursery Education Grant,M BANNER,06/12/2019,644.25,Grants Nursery Education Pymnt,Grants Nursery Education Pymnt,http://opendatacommunities.org/id/county-council/staffordshire  
Staffordshire County Council,Nursery Education Grant,M Harper,06/12/2019,505.61,Grants Nursery Education Pymnt,Grants Nursery Education Pymnt,http://opendatacommunities.org/id/county-council/staffordshire  
Staffordshire County Council,Motor Vehicles,M R H AUTOS,06/12/2019,2074.67,Payment of Insurance Claims,Payment of Insurance Claims,http://opendatacommunities.org/id/county-council/staffordshire  
Staffordshire County Council,Think 2 Project,MANNA HOUSE DAY NURSERY,06/12/2019,4000.50,Awards Funded Childcare Places,Awards Funded Childcare Places,http://opendatacommunities.org/id/county-council/staffordshire  
Staffordshire County Council,Nursery Education Grant,MANNA HOUSE DAY NURSERY,06/12/2019,10979.34,Grants Nursery Education Pymnt,Grants Nursery Education Pymnt,http://opendatacommunities.org/id/county-council/staffordshire  
Staffordshire County Council,Think 2 Project,Manor Hill First School,06/12/2019,2133.60,Awards Funded Childcare Places,Awards Funded Childcare Places,http://opendatacommunities.org/id/county-council/staffordshire  
Staffordshire County Council,Nursery Education Grant,Manor Hill First School,06/12/2019,7630.25,Grants Nursery Education Pymnt,Grants Nursery Education Pymnt,http://opendatacommunities.org/id/county-council/staffordshire  
Staffordshire County Council,Think 2 Project,Marshbrook First School,06/12/2019,1813.56,Awards Funded Childcare Places,Awards Funded Childcare Places,http://opendatacommunities.org/id/county-council/staffordshire  
Staffordshire County Council,Nursery Education Grant,Marshbrook First School,06/12/2019,9930.81,Grants Nursery Education Pymnt,Grants Nursery Education Pymnt,http://opendatacommunities.org/id/county-council/staffordshire  
Staffordshire County Council,Think 2 Project,MEAFORD DAY NURSERY,06/12/2019,1242.06,Awards Funded Childcare Places,Awards Funded Childcare Places,http://opendatacommunities.org/id/county-council/staffordshire  
Staffordshire County Council,Nursery Education Grant,MEAFORD DAY NURSERY,06/12/2019,9589.44,Grants Nursery Education Pymnt,Grants Nursery Education Pymnt,http://opendatacommunities.org/id/county-council/staffordshire  
Staffordshire County Council,Think 2 Project,Melanie Goodall,06/12/2019,1371.60,Awards Funded Childcare Places,Awards Funded Childcare Places,http://opendatacommunities.org/id/county-council/staffordshire  
Staffordshire County Council,Think 2 Project,Michelle Metcalf,06/12/2019,1066.80,Awards Funded Childcare Places,Awards Funded Childcare Places,http://opendatacommunities.org/id/county-council/staffordshire  
Staffordshire County Council,LTC - Assess & Case Management,Midlands Part NHS FT,06/12/2019,16667.00,OTHER HIRED SERVICES,OTHER HIRED SERVICES,http://opendatacommunities.org/id/county-council/staffordshire  
Staffordshire County Council,1 STI Test & Treat,Midlands Part NHS FT,06/12/2019,115411.33,OUTWARD PORTABILITY,OUTWARD PORTABILITY,http://opendatacommunities.org/id/county-council/staffordshire  
Staffordshire County Council,LTC - Occupational Therapy,Midlands Part NHS FT,06/12/2019,100000.00,OTHER HIRED SERVICES,OTHER HIRED SERVICES,http://opendatacommunities.org/id/county-council/staffordshire  
Staffordshire County Council,Sustain,Midlands Part NHS FT,06/12/2019,49273.00,Payments to other Authorities,Payments to other Authorities,http://opendatacommunities.org/id/county-council/staffordshire  
Staffordshire County Council,Children 0-5 Serv Prescribed,Midlands Part NHS FT,06/12/2019,782788.00,OTHER HIRED SERVICES,OTHER HIRED SERVICES,http://opendatacommunities.org/id/county-council/staffordshire  
Staffordshire County Council,LTC - Assess & Case Management,Midlands Part NHS FT,06/12/2019,1207500.00,OTHER HIRED SERVICES,OTHER HIRED SERVICES,http://opendatacommunities.org/id/county-council/staffordshire  
Staffordshire County Council,LTC - Overheads,Midlands Part NHS FT,06/12/2019,204775.00,OTHER HIRED SERVICES,OTHER HIRED SERVICES,http://opendatacommunities.org/id/county-council/staffordshire  
Staffordshire County Council,MH South,Midlands Part NHS FT,06/12/2019,218333.00,OTHER HIRED SERVICES,OTHER HIRED SERVICES,http://opendatacommunities.org/id/county-council/staffordshire  
Staffordshire County Council,Childcare,Miss Davinder Dhaliwal,06/12/2019,3000.00,Legal Costs and Stamp Duty,Legal Costs and Stamp Duty,http://opendatacommunities.org/id/county-council/staffordshire  
Staffordshire County Council,Think 2 Project,MUMBLES DAY NURSERY,06/12/2019,1280.16,Awards Funded Childcare Places,Awards Funded Childcare Places,http://opendatacommunities.org/id/county-council/staffordshire  
Staffordshire County Council,Nursery Education Grant,MUMBLES DAY NURSERY,06/12/2019,919.46,Grants Nursery Education Pymnt,Grants Nursery Education Pymnt,http://opendatacommunities.org/id/county-council/staffordshire  
Staffordshire County Council,Think 2 Project,MUMBLES DAY NURSERY LTD SANDON,06/12/2019,2773.68,Awards Funded Childcare Places,Awards Funded Childcare Places,http://opendatacommunities.org/id/county-council/staffordshire  
Staffordshire County Council,Nursery Education Grant,MUMBLES DAY NURSERY LTD SANDON,06/12/2019,3481.72,Grants Nursery Education Pymnt,Grants Nursery Education Pymnt,http://opendatacommunities.org/id/county-council/staffordshire  
Staffordshire County Council,Think 2 Project,N Draycott,06/12/2019,6766.56,Awards Funded Childcare Places,Awards Funded Childcare Places,http://opendatacommunities.org/id/county-council/staffordshire  
Staffordshire County Council,Nursery Education Grant,N Draycott,06/12/2019,762.24,Grants Nursery Education Pymnt,Grants Nursery Education Pymnt,http://opendatacommunities.org/id/county-council/staffordshire  
Staffordshire County Council,Think 2 Project,N Draycott,06/12/2019,853.44,Awards Funded Childcare Places,Awards Funded Childcare Places,http://opendatacommunities.org/id/county-council/staffordshire  
Staffordshire County Council,Nursery Education Grant,N Holiday,06/12/2019,1460.92,Grants Nursery Education Pymnt,Grants Nursery Education Pymnt,http://opendatacommunities.org/id/county-council/staffordshire  
Staffordshire County Council,Nursery Education Grant,Natalie Brown,06/12/2019,1222.76,Grants Nursery Education Pymnt,Grants Nursery Education Pymnt,http://opendatacommunities.org/id/county-council/staffordshire  
Staffordshire County Council,Nursery Education Grant,Natasha Edgar,06/12/2019,833.68,Grants Nursery Education Pymnt,Grants Nursery Education Pymnt,http://opendatacommunities.org/id/county-council/staffordshire  
Staffordshire County Council,DIPS,NATIONAL TEACHING ADVISORY SERVI,06/12/2019,819.00, Alternative Education Schemes, Alternative Education Schemes,http://opendatacommunities.org/id/county-council/staffordshire  
Staffordshire County Council,DIPS,NATIONAL TEACHING ADVISORY SERVI,06/12/2019,1404.00, Alternative Education Schemes, Alternative Education Schemes,http://opendatacommunities.org/id/county-council/staffordshire  
Staffordshire County Council,DIPS,NATIONAL TEACHING ADVISORY SERVI,06/12/2019,1638.00, Alternative Education Schemes, Alternative Education Schemes,http://opendatacommunities.org/id/county-council/staffordshire  
Staffordshire County Council,DIPS,NATIONAL TEACHING ADVISORY SERVI,06/12/2019,975.00, Alternative Education Schemes, Alternative Education Schemes,http://opendatacommunities.org/id/county-council/staffordshire  
Staffordshire County Council,Adoption Support Fund,Nature & Nurture,06/12/2019,1250.00,PROFESSIONAL FEES,PROFESSIONAL FEES,http://opendatacommunities.org/id/county-council/staffordshire  
Staffordshire County Council,Statutory Recycling Credits,NEWCASTLE BOROUGH COUNCIL,06/12/2019,79408.00,Recycling Credits,Recycling Credits,http://opendatacommunities.org/id/county-council/staffordshire  
Staffordshire County Council,Think 2 Project,Norton Canes Primary Academy,06/12/2019,1933.57,Awards Funded Childcare Places,Awards Funded Childcare Places,http://opendatacommunities.org/id/county-council/staffordshire  
Staffordshire County Council,Nursery Education Grant,Norton Canes Primary Academy,06/12/2019,5579.72,Grants Nursery Education Pymnt,Grants Nursery Education Pymnt,http://opendatacommunities.org/id/county-council/staffordshire  
Staffordshire County Council,Think 2 Project,ORCHARD DAY NURSERY,06/12/2019,1333.50,Awards Funded Childcare Places,Awards Funded Childcare Places,http://opendatacommunities.org/id/county-council/staffordshire  
Staffordshire County Council,Nursery Education Grant,ORCHARD DAY NURSERY,06/12/2019,5281.95,Grants Nursery Education Pymnt,Grants Nursery Education Pymnt,http://opendatacommunities.org/id/county-council/staffordshire  
Staffordshire County Council,Nursery Education Grant,Oulton CofE (C) First School,06/12/2019,1116.54,Grants Nursery Education Pymnt,Grants Nursery Education Pymnt,http://opendatacommunities.org/id/county-council/staffordshire  
Staffordshire County Council,Nursery Education Grant,Our Lady & St Werburgh's Cath Pri Sch,06/12/2019,28547.82,Grants Nursery Education Pymnt,Grants Nursery Education Pymnt,http://opendatacommunities.org/id/county-council/staffordshire  
Staffordshire County Council,Nursery Education Grant,Outwoods Primary School,06/12/2019,3755.43,Grants Nursery Education Pymnt,Grants Nursery Education Pymnt,http://opendatacommunities.org/id/county-council/staffordshire  
Staffordshire County Council,Nursery Education Grant,Oxhey First School,06/12/2019,10353.60,Grants Nursery Education Pymnt,Grants Nursery Education Pymnt,http://opendatacommunities.org/id/county-council/staffordshire  
Staffordshire County Council,SAP Archiving & Other Costs,Oxygen Finance Ltd,06/12/2019,30000.00,CONSULTANT FEES,CONSULTANT FEES,http://opendatacommunities.org/id/county-council/staffordshire  
Staffordshire County Council,Nursery Education Grant,P Reeves,06/12/2019,533.96,Grants Nursery Education Pymnt,Grants Nursery Education Pymnt,http://opendatacommunities.org/id/county-council/staffordshire  
Staffordshire County Council,Think 2 Project,Parkside Primary School,06/12/2019,1840.23,Awards Funded Childcare Places,Awards Funded Childcare Places,http://opendatacommunities.org/id/county-council/staffordshire  
Staffordshire County Council,Nursery Education Grant,Parkside Primary School,06/12/2019,13543.17,Grants Nursery Education Pymnt,Grants Nursery Education Pymnt,http://opendatacommunities.org/id/county-council/staffordshire  
Staffordshire County Council,Think 2 Project,PARRS PLAYHOUSE CHILDCARE LTD,06/12/2019,2106.93,Awards Funded Childcare Places,Awards Funded Childcare Places,http://opendatacommunities.org/id/county-council/staffordshire  
Staffordshire County Council,Nursery Education Grant,PARRS PLAYHOUSE CHILDCARE LTD,06/12/2019,4532.84,Grants Nursery Education Pymnt,Grants Nursery Education Pymnt,http://opendatacommunities.org/id/county-council/staffordshire  
Staffordshire County Council,Think 2 Project,PATHWAYS CHILDCARE CENTRE,06/12/2019,800.10,Awards Funded Childcare Places,Awards Funded Childcare Places,http://opendatacommunities.org/id/county-council/staffordshire  
Staffordshire County Council,Nursery Education Grant,PATHWAYS CHILDCARE CENTRE,06/12/2019,3112.47,Grants Nursery Education Pymnt,Grants Nursery Education Pymnt,http://opendatacommunities.org/id/county-council/staffordshire  
Staffordshire County Council,Think 2 Project,Pear Tree Nursery,06/12/2019,3733.80,Awards Funded Childcare Places,Awards Funded Childcare Places,http://opendatacommunities.org/id/county-council/staffordshire  
Staffordshire County Council,Nursery Education Grant,Pear Tree Nursery,06/12/2019,5165.05,Grants Nursery Education Pymnt,Grants Nursery Education Pymnt,http://opendatacommunities.org/id/county-council/staffordshire  
Staffordshire County Council,2 Contraception,Peel Medical Practice,06/12/2019,23149.92,other services external,other services external,http://opendatacommunities.org/id/county-council/staffordshire  
Staffordshire County Council,Think 2 Project,PENNYMOOR PRE SCHOOL,06/12/2019,2213.61,Awards Funded Childcare Places,Awards Funded Childcare Places,http://opendatacommunities.org/id/county-council/staffordshire  
Staffordshire County Council,Nursery Education Grant,PENNYMOOR PRE SCHOOL,06/12/2019,612.49,Grants Nursery Education Pymnt,Grants Nursery Education Pymnt,http://opendatacommunities.org/id/county-council/staffordshire  
Staffordshire County Council,Nursery Education Grant,Picknalls First School,06/12/2019,6385.75,Grants Nursery Education Pymnt,Grants Nursery Education Pymnt,http://opendatacommunities.org/id/county-council/staffordshire  
Staffordshire County Council,County,POST OFFICE LTD,06/12/2019,4885.00,Excise Licence,Excise Licence,http://opendatacommunities.org/id/county-council/staffordshire  
Staffordshire County Council,Nursery Education Grant,Princefield First School,06/12/2019,10441.92,Grants Nursery Education Pymnt,Grants Nursery Education Pymnt,http://opendatacommunities.org/id/county-council/staffordshire  
Staffordshire County Council,ERDF Low Carbon Bus Evol Prog,Pro Enviro Ltd,06/12/2019,794.40,CONSULTANT FEES,CONSULTANT FEES,http://opendatacommunities.org/id/county-council/staffordshire  
Staffordshire County Council,Nursery Education Grant,Pye Green Academy,06/12/2019,8439.32,Grants Nursery Education Pymnt,Grants Nursery Education Pymnt,http://opendatacommunities.org/id/county-council/staffordshire  
Staffordshire County Council,Nursery Education Grant,R Bradbury,06/12/2019,833.70,Grants Nursery Education Pymnt,Grants Nursery Education Pymnt,http://opendatacommunities.org/id/county-council/staffordshire  
Staffordshire County Council,Nursery Education Grant,R JEFFERY,06/12/2019,1764.63,Grants Nursery Education Pymnt,Grants Nursery Education Pymnt,http://opendatacommunities.org/id/county-council/staffordshire  
Staffordshire County Council,Nursery Education Grant,R Ridgway,06/12/2019,984.12,Grants Nursery Education Pymnt,Grants Nursery Education Pymnt,http://opendatacommunities.org/id/county-council/staffordshire  
Staffordshire County Council,Other Corporate Items,RAIL SETTLEMENT PLAN LTD,06/12/2019,5153.00,Public Transport Other,Public Transport Other,http://opendatacommunities.org/id/county-council/staffordshire  
Staffordshire County Council,Think 2 Project,Reach for the Stars Nursery,06/12/2019,1333.50,Awards Funded Childcare Places,Awards Funded Childcare Places,http://opendatacommunities.org/id/county-council/staffordshire  
Staffordshire County Council,Think 2 Project,Reach for the Stars Nursery,06/12/2019,1333.50,Awards Funded Childcare Places,Awards Funded Childcare Places,http://opendatacommunities.org/id/county-council/staffordshire  
Staffordshire County Council,Think 2 Project,Reach for the Stars Nursery,06/12/2019,1457.96,Awards Funded Childcare Places,Awards Funded Childcare Places,http://opendatacommunities.org/id/county-council/staffordshire  
Staffordshire County Council,Nursery Education Grant,Reach for the Stars Nursery,06/12/2019,729.52,Grants Nursery Education Pymnt,Grants Nursery Education Pymnt,http://opendatacommunities.org/id/county-council/staffordshire  
Staffordshire County Council,Nursery Education Grant,Reach for the Stars Nursery,06/12/2019,2542.74,Grants Nursery Education Pymnt,Grants Nursery Education Pymnt,http://opendatacommunities.org/id/county-council/staffordshire  
Staffordshire County Council,Nursery Education Grant,Reach for the Stars Nursery,06/12/2019,7525.74,Grants Nursery Education Pymnt,Grants Nursery Education Pymnt,http://opendatacommunities.org/id/county-council/staffordshire  
Staffordshire County Council,DIPS,Reflective School Support,06/12/2019,3967.20, Alternative Education Schemes, Alternative Education Schemes,http://opendatacommunities.org/id/county-council/staffordshire  
Staffordshire County Council,Cannock Invoice Led Older Peop,RLS Care Services LTD,06/12/2019,510.30,Practical Care,Practical Care,http://opendatacommunities.org/id/county-council/staffordshire  
Staffordshire County Council,Cannock Invoice Led Older Peop,RLS Care Services LTD,06/12/2019,510.30,Practical Care,Practical Care,http://opendatacommunities.org/id/county-council/staffordshire  
Staffordshire County Council,Nursery Education Grant,ROLLESTON PRE-SCHOOL,06/12/2019,11240.27,Grants Nursery Education Pymnt,Grants Nursery Education Pymnt,http://opendatacommunities.org/id/county-council/staffordshire  
Staffordshire County Council,Think 2 Project,ROOSTER'S DAY NURSERY,06/12/2019,1554.48,Awards Funded Childcare Places,Awards Funded Childcare Places,http://opendatacommunities.org/id/county-council/staffordshire  
Staffordshire County Council,Nursery Education Grant,ROOSTER'S DAY NURSERY,06/12/2019,3596.79,Grants Nursery Education Pymnt,Grants Nursery Education Pymnt,http://opendatacommunities.org/id/county-council/staffordshire  
Staffordshire County Council,Think 2 Project,Rosebuds Private Day Nursery,06/12/2019,800.10,Awards Funded Childcare Places,Awards Funded Childcare Places,http://opendatacommunities.org/id/county-council/staffordshire  
Staffordshire County Council,Nursery Education Grant,Rosebuds Private Day Nursery,06/12/2019,3663.27,Grants Nursery Education Pymnt,Grants Nursery Education Pymnt,http://opendatacommunities.org/id/county-council/staffordshire  
Staffordshire County Council,Nursery Education Grant,Rowley Park Primary Academy,06/12/2019,5054.98,Grants Nursery Education Pymnt,Grants Nursery Education Pymnt,http://opendatacommunities.org/id/county-council/staffordshire  
Staffordshire County Council,Think 2 Project,S Astell,06/12/2019,1333.50,Awards Funded Childcare Places,Awards Funded Childcare Places,http://opendatacommunities.org/id/county-council/staffordshire  
Staffordshire County Council,Think 2 Project,S Brooks,06/12/2019,1066.80,Awards Funded Childcare Places,Awards Funded Childcare Places,http://opendatacommunities.org/id/county-council/staffordshire  
Staffordshire County Council,Nursery Education Grant,S Brooks,06/12/2019,583.80,Grants Nursery Education Pymnt,Grants Nursery Education Pymnt,http://opendatacommunities.org/id/county-council/staffordshire  
Staffordshire County Council,Nursery Education Grant,S Jones,06/12/2019,797.96,Grants Nursery Education Pymnt,Grants Nursery Education Pymnt,http://opendatacommunities.org/id/county-council/staffordshire  
Staffordshire County Council,Think 2 Project,S Till,06/12/2019,693.42,Awards Funded Childcare Places,Awards Funded Childcare Places,http://opendatacommunities.org/id/county-council/staffordshire  
Staffordshire County Council,Nursery Education Grant,Samantha Holloway,06/12/2019,3202.56,Grants Nursery Education Pymnt,Grants Nursery Education Pymnt,http://opendatacommunities.org/id/county-council/staffordshire  
Staffordshire County Council,Nursery Education Grant,Samantha Holloway,06/12/2019,656.78,Grants Nursery Education Pymnt,Grants Nursery Education Pymnt,http://opendatacommunities.org/id/county-council/staffordshire  
Staffordshire County Council,Nursery Education Grant,Samantha Potts,06/12/2019,1042.12,Grants Nursery Education Pymnt,Grants Nursery Education Pymnt,http://opendatacommunities.org/id/county-council/staffordshire  
Staffordshire County Council,Think 2 Project,SCALLYWAGS PRE-SCHOOL GROUP,06/12/2019,1333.50,Awards Funded Childcare Places,Awards Funded Childcare Places,http://opendatacommunities.org/id/county-council/staffordshire  
Staffordshire County Council,Nursery Education Grant,SCALLYWAGS PRE-SCHOOL GROUP,06/12/2019,7641.77,Grants Nursery Education Pymnt,Grants Nursery Education Pymnt,http://opendatacommunities.org/id/county-council/staffordshire  
Staffordshire County Council,Independent School Fee Special,Senad Limited,06/12/2019,1950.00,Fees to Independent Schools,Fees to Independent Schools,http://opendatacommunities.org/id/county-council/staffordshire  
Staffordshire County Council,Nursery Education Grant,Shobnall Primary School,06/12/2019,5172.97,Grants Nursery Education Pymnt,Grants Nursery Education Pymnt,http://opendatacommunities.org/id/county-council/staffordshire  
Staffordshire County Council,SFA Community Learning,SIR GRAHAM BALFOUR HIGH SCHOOL,06/12/2019,1131.00,Grants To Clubs,Grants To Clubs,http://opendatacommunities.org/id/county-council/staffordshire  
Staffordshire County Council,Nursery Education Grant,SMARTYS PRE-SCH AT PIREHILL,06/12/2019,928.98,Grants Nursery Education Pymnt,Grants Nursery Education Pymnt,http://opendatacommunities.org/id/county-council/staffordshire  
Staffordshire County Council,Think 2 Project,SMILEY'S CRECHE,06/12/2019,2400.30,Awards Funded Childcare Places,Awards Funded Childcare Places,http://opendatacommunities.org/id/county-council/staffordshire  
Staffordshire County Council,Nursery Education Grant,SMILEY'S CRECHE,06/12/2019,12922.22,Grants Nursery Education Pymnt,Grants Nursery Education Pymnt,http://opendatacommunities.org/id/county-council/staffordshire  
Staffordshire County Council,Nursery Education Grant,SMILEY'S CRECHE,06/12/2019,10383.43,Grants Nursery Education Pymnt,Grants Nursery Education Pymnt,http://opendatacommunities.org/id/county-council/staffordshire  
Staffordshire County Council,Overheads,Socitm,06/12/2019,2274.00,Subscriptions General,Subscriptions General,http://opendatacommunities.org/id/county-council/staffordshire  
Staffordshire County Council,Central Winter Maintenance Wor,S-O-T Mobile Link Ltd,06/12/2019,670.00,Radios,Radios,http://opendatacommunities.org/id/county-council/staffordshire  
Staffordshire County Council,Statutory Recycling Credits,South Staffs District Council,06/12/2019,93458.00,Recycling Credits,Recycling Credits,http://opendatacommunities.org/id/county-council/staffordshire  
Staffordshire County Council,Think 2 Project,SOUTHLANDS NURSERIES LTD,06/12/2019,533.40,Awards Funded Childcare Places,Awards Funded Childcare Places,http://opendatacommunities.org/id/county-council/staffordshire  
Staffordshire County Council,Nursery Education Grant,SOUTHLANDS NURSERIES LTD,06/12/2019,10837.84,Grants Nursery Education Pymnt,Grants Nursery Education Pymnt,http://opendatacommunities.org/id/county-council/staffordshire  
Staffordshire County Council,Think 2 Project,Space Cadets,06/12/2019,5387.34,Awards Funded Childcare Places,Awards Funded Childcare Places,http://opendatacommunities.org/id/county-council/staffordshire  
Staffordshire County Council,Nursery Education Grant,Space Cadets,06/12/2019,4049.36,Grants Nursery Education Pymnt,Grants Nursery Education Pymnt,http://opendatacommunities.org/id/county-council/staffordshire  
Staffordshire County Council,Corporate Research Team,Specialist Computer Centres Ltd,06/12/2019,1359.71,SOFTWARE LICENCES,SOFTWARE LICENCES,http://opendatacommunities.org/id/county-council/staffordshire  
Staffordshire County Council,Think 2 Project,Springhill Academy,06/12/2019,533.40,Awards Funded Childcare Places,Awards Funded Childcare Places,http://opendatacommunities.org/id/county-council/staffordshire  
Staffordshire County Council,Nursery Education Grant,Springhill Academy,06/12/2019,1530.59,Grants Nursery Education Pymnt,Grants Nursery Education Pymnt,http://opendatacommunities.org/id/county-council/staffordshire  
Staffordshire County Council,Nursery Education Grant,ST BENEDICT BISCOP PRIMARY SCHOOL,06/12/2019,8573.21,Grants Nursery Education Pymnt,Grants Nursery Education Pymnt,http://opendatacommunities.org/id/county-council/staffordshire  
Staffordshire County Council,Think 2 Project,ST GEORGES PRE SCHOOL PLAYGROUP,06/12/2019,1501.14,Awards Funded Childcare Places,Awards Funded Childcare Places,http://opendatacommunities.org/id/county-council/staffordshire  
Staffordshire County Council,Nursery Education Grant,ST GEORGES PRE SCHOOL PLAYGROUP,06/12/2019,7311.97,Grants Nursery Education Pymnt,Grants Nursery Education Pymnt,http://opendatacommunities.org/id/county-council/staffordshire  
Staffordshire County Council,Nursery Education Grant,St John's CofE First School,06/12/2019,2667.84,Grants Nursery Education Pymnt,Grants Nursery Education Pymnt,http://opendatacommunities.org/id/county-council/staffordshire  
Staffordshire County Council,Nursery Education Grant,St John's RC Primary School,06/12/2019,1750.74,Grants Nursery Education Pymnt,Grants Nursery Education Pymnt,http://opendatacommunities.org/id/county-council/staffordshire  
Staffordshire County Council,Nursery Education Grant,ST MARY'S RC PRIMARY SCHOOL,06/12/2019,3316.87,Grants Nursery Education Pymnt,Grants Nursery Education Pymnt,http://opendatacommunities.org/id/county-council/staffordshire  
Staffordshire County Council,Nursery Education Grant,St Nicholas C of E First School,06/12/2019,17425.94,Grants Nursery Education Pymnt,Grants Nursery Education Pymnt,http://opendatacommunities.org/id/county-council/staffordshire  
Staffordshire County Council,Nursery Education Grant,St Patrick's RC Primary School,06/12/2019,6113.88,Grants Nursery Education Pymnt,Grants Nursery Education Pymnt,http://opendatacommunities.org/id/county-council/staffordshire  
Staffordshire County Council,Nursery Education Grant,St Peter's CofE (C) Primary School,06/12/2019,11185.32,Grants Nursery Education Pymnt,Grants Nursery Education Pymnt,http://opendatacommunities.org/id/county-council/staffordshire  
Staffordshire County Council,Think 2 Project,ST PETERS PRE SCHOOL CHILDCARE,06/12/2019,3733.80,Awards Funded Childcare Places,Awards Funded Childcare Places,http://opendatacommunities.org/id/county-council/staffordshire  
Staffordshire County Council,Nursery Education Grant,St Thomas's Day Nursery,06/12/2019,3565.06,Grants Nursery Education Pymnt,Grants Nursery Education Pymnt,http://opendatacommunities.org/id/county-council/staffordshire  
Staffordshire County Council,Nursery Education Grant,St. Giles and St. George's CofE Academy,06/12/2019,13604.73,Grants Nursery Education Pymnt,Grants Nursery Education Pymnt,http://opendatacommunities.org/id/county-council/staffordshire  
Staffordshire County Council,Statutory Recycling Credits,STAFFORD BOROUGH COUNCIL,06/12/2019,108146.00,Recycling Credits,Recycling Credits,http://opendatacommunities.org/id/county-council/staffordshire  
Staffordshire County Council,Road Safety,STAFFORDSHIRE FIRE & RESCUE SERV,06/12/2019,9000.00,Advertising,Advertising,http://opendatacommunities.org/id/county-council/staffordshire  
Staffordshire County Council,Statutory Recycling Credits,STAFFORDSHIRE MOORLANDS DIS CNCL,06/12/2019,88919.00,Recycling Credits,Recycling Credits,http://opendatacommunities.org/id/county-council/staffordshire  
Staffordshire County Council,Speed Awareness,Staffordshire Wildlife Trading Ltd,06/12/2019,1080.00,Premises Services,Premises Services,http://opendatacommunities.org/id/county-council/staffordshire  
Staffordshire County Council,Nursery Education Grant,Stephanie Egerton,06/12/2019,905.16,Grants Nursery Education Pymnt,Grants Nursery Education Pymnt,http://opendatacommunities.org/id/county-council/staffordshire  
Staffordshire County Council,Growth Hub LEP 2016-2018 BIS,STOKE CITY COUNCIL (ALL ACCS),06/12/2019,5620.80,CONSULTANT FEES,CONSULTANT FEES,http://opendatacommunities.org/id/county-council/staffordshire  
Staffordshire County Council,Pupil Premium Grant,Stowe Heath Primary School,06/12/2019,500.00,Grants to third parties,Grants to third parties,http://opendatacommunities.org/id/county-council/staffordshire  
Staffordshire County Council,Think 2 Project,STRAWBERRY POPPETS NURS'Y SCHOOL,06/12/2019,2933.70,Awards Funded Childcare Places,Awards Funded Childcare Places,http://opendatacommunities.org/id/county-council/staffordshire  
Staffordshire County Council,Nursery Education Grant,STRAWBERRY POPPETS NURS'Y SCHOOL,06/12/2019,3793.27,Grants Nursery Education Pymnt,Grants Nursery Education Pymnt,http://opendatacommunities.org/id/county-council/staffordshire  
Staffordshire County Council,Street Sweeping - Tamworth,SUEZ RECYCLING & RECOVERY UK LTD,06/12/2019,4906.01,Waste Treatment,Waste Treatment,http://opendatacommunities.org/id/county-council/staffordshire  
Staffordshire County Council,Street Sweeping - Stafford,SUEZ RECYCLING & RECOVERY UK LTD,06/12/2019,6403.06,Waste Treatment,Waste Treatment,http://opendatacommunities.org/id/county-council/staffordshire  
Staffordshire County Council,Tamworth LD Team,Supported Homes Ltd,06/12/2019,2073.36,Supported Group Care,Supported Group Care,http://opendatacommunities.org/id/county-council/staffordshire  
Staffordshire County Council,Think 2 Project,T Manifold,06/12/2019,975.36,Awards Funded Childcare Places,Awards Funded Childcare Places,http://opendatacommunities.org/id/county-council/staffordshire  
Staffordshire County Council,Statutory Recycling Credits,TAMWORTH BOROUGH COUNCIL,06/12/2019,52317.00,Recycling Credits,Recycling Credits,http://opendatacommunities.org/id/county-council/staffordshire  
Staffordshire County Council,Nursery Education Grant,Teddy Bears Nursery Ltd,06/12/2019,4168.38,Grants Nursery Education Pymnt,Grants Nursery Education Pymnt,http://opendatacommunities.org/id/county-council/staffordshire  
Staffordshire County Council,Nursery Education Grant,The Reginald Mitchell Primary School,06/12/2019,3789.14,Grants Nursery Education Pymnt,Grants Nursery Education Pymnt,http://opendatacommunities.org/id/county-council/staffordshire  
Staffordshire County Council,Think 2 Project,TINY TOEZ@CANNOCK CHASE,06/12/2019,990.60,Awards Funded Childcare Places,Awards Funded Childcare Places,http://opendatacommunities.org/id/county-council/staffordshire  
Staffordshire County Council,Nursery Education Grant,TINY TOEZ@EAST STAFFS,06/12/2019,1125.90,Grants Nursery Education Pymnt,Grants Nursery Education Pymnt,http://opendatacommunities.org/id/county-council/staffordshire  
Staffordshire County Council,Nursery Education Grant,Tracey Farmer,06/12/2019,611.36,Grants Nursery Education Pymnt,Grants Nursery Education Pymnt,http://opendatacommunities.org/id/county-council/staffordshire  
Staffordshire County Council,SEN Direct Payments,,06/12/2019,4160.00,Direct Payments Other,Direct Payments Other,http://opendatacommunities.org/id/county-council/staffordshire  
Staffordshire County Council,Concessionary Fare Schemes,TRENT MOTOR TRACTION CO LTD,06/12/2019,20990.00,Payments to Bus Operators,Payments to Bus Operators,http://opendatacommunities.org/id/county-council/staffordshire  
Staffordshire County Council,Moorlands Invoice Led Older Pe,Triband Care Services Ltd,06/12/2019,756.00,Practical Care,Practical Care,http://opendatacommunities.org/id/county-council/staffordshire  
Staffordshire County Council,Think 2 Project,TUTBURY PRE SCHOOL,06/12/2019,2453.64,Awards Funded Childcare Places,Awards Funded Childcare Places,http://opendatacommunities.org/id/county-council/staffordshire  
Staffordshire County Council,Nursery Education Grant,TUTBURY PRE SCHOOL,06/12/2019,4752.17,Grants Nursery Education Pymnt,Grants Nursery Education Pymnt,http://opendatacommunities.org/id/county-council/staffordshire  
Staffordshire County Council,Nursery Education Grant,Two Gates Community Primary School,06/12/2019,17916.64,Grants Nursery Education Pymnt,Grants Nursery Education Pymnt,http://opendatacommunities.org/id/county-council/staffordshire  
Staffordshire County Council,Think 2 Project,University Primary Academy Kidsgrove,06/12/2019,800.10,Awards Funded Childcare Places,Awards Funded Childcare Places,http://opendatacommunities.org/id/county-council/staffordshire  
Staffordshire County Council,Nursery Education Grant,University Primary Academy Kidsgrove,06/12/2019,3273.22,Grants Nursery Education Pymnt,Grants Nursery Education Pymnt,http://opendatacommunities.org/id/county-council/staffordshire  
Staffordshire County Council,S278 - Toucan at Cappers Lane,VALUATION OFFICE AGENCY,06/12/2019,1170.00,Ext Fees Construction,Ext Fees Construction,http://opendatacommunities.org/id/county-council/staffordshire  
Staffordshire County Council,Cannock Invoice Led Phys Disab,Voyage Ltd,06/12/2019,3089.12,Supported Group Care,Supported Group Care,http://opendatacommunities.org/id/county-council/staffordshire  
Staffordshire County Council,Think 2 Project,W BURTON,06/12/2019,1257.30,Awards Funded Childcare Places,Awards Funded Childcare Places,http://opendatacommunities.org/id/county-council/staffordshire  
Staffordshire County Council,Nursery Education Grant,W DOUGLAS,06/12/2019,1214.31,Grants Nursery Education Pymnt,Grants Nursery Education Pymnt,http://opendatacommunities.org/id/county-council/staffordshire  
Staffordshire County Council,Further Education Placements,WALSALL COLLEGE,06/12/2019,12000.00,Events and Competitions,Events and Competitions,http://opendatacommunities.org/id/county-council/staffordshire  
Staffordshire County Council,SFA Community Learning,WALSALL COLLEGE,06/12/2019,7757.00,Courses,Courses,http://opendatacommunities.org/id/county-council/staffordshire  
Staffordshire County Council,Nursery Education Grant,Wendy Letman,06/12/2019,541.90,Grants Nursery Education Pymnt,Grants Nursery Education Pymnt,http://opendatacommunities.org/id/county-council/staffordshire  
Staffordshire County Council,Nursery Education Grant,Werrington Pre-School,06/12/2019,5859.36,Grants Nursery Education Pymnt,Grants Nursery Education Pymnt,http://opendatacommunities.org/id/county-council/staffordshire  
Staffordshire County Council,Think 2 Project,Westlands Little Stars Childcare,06/12/2019,4267.20,Awards Funded Childcare Places,Awards Funded Childcare Places,http://opendatacommunities.org/id/county-council/staffordshire  
Staffordshire County Council,Nursery Education Grant,Westlands Little Stars Childcare,06/12/2019,10175.30,Grants Nursery Education Pymnt,Grants Nursery Education Pymnt,http://opendatacommunities.org/id/county-council/staffordshire  
Staffordshire County Council,Nursery Education Grant,WETLEY ROCKS PRE-SCHOOL,06/12/2019,5418.95,Grants Nursery Education Pymnt,Grants Nursery Education Pymnt,http://opendatacommunities.org/id/county-council/staffordshire  
Staffordshire County Council,Nursery Education Grant,William Shrewsbury Primary School,06/12/2019,10919.81,Grants Nursery Education Pymnt,Grants Nursery Education Pymnt,http://opendatacommunities.org/id/county-council/staffordshire  
Staffordshire County Council,Nursery Education Grant,Winshill Childminding,06/12/2019,1514.53,Grants Nursery Education Pymnt,Grants Nursery Education Pymnt,http://opendatacommunities.org/id/county-council/staffordshire  
Staffordshire County Council,Think 2 Project,WINSHILL PRE SCHOOL,06/12/2019,2471.42,Awards Funded Childcare Places,Awards Funded Childcare Places,http://opendatacommunities.org/id/county-council/staffordshire  
Staffordshire County Council,Nursery Education Grant,WINSHILL PRE SCHOOL,06/12/2019,9757.21,Grants Nursery Education Pymnt,Grants Nursery Education Pymnt,http://opendatacommunities.org/id/county-council/staffordshire  
Staffordshire County Council,Various,COMENSURA,06/12/2019,177769.09,AGENCY STAFF,AGENCY STAFF,http://opendatacommunities.org/id/county-council/staffordshire  
Staffordshire County Council,Childcare,,09/12/2019,2100.00,Legal Costs and Stamp Duty,Legal Costs and Stamp Duty,http://opendatacommunities.org/id/county-council/staffordshire  
Staffordshire County Council,Cannock Invoice Led Phys Disab,Active Assistance Ltd,09/12/2019,1176.56,Practical Care,Practical Care,http://opendatacommunities.org/id/county-council/staffordshire  
Staffordshire County Council,Adoption Support Fund,Adoption Matters North West,09/12/2019,6045.67,PROFESSIONAL FEES,PROFESSIONAL FEES,http://opendatacommunities.org/id/county-council/staffordshire  
Staffordshire County Council,Moorlands LD Team,Affinity Trust Ltd,09/12/2019,2398.78,Supported Group Care,Supported Group Care,http://opendatacommunities.org/id/county-council/staffordshire  
Staffordshire County Council,Moorlands LD Team,Affinity Trust Ltd,09/12/2019,1568.96,Supported Group Care,Supported Group Care,http://opendatacommunities.org/id/county-council/staffordshire  
Staffordshire County Council,Moorlands LD Team,Affinity Trust Ltd,09/12/2019,1834.50,Supported Group Care,Supported Group Care,http://opendatacommunities.org/id/county-council/staffordshire  
Staffordshire County Council,Cannock Chase LD Team,Affinity Trust Ltd,09/12/2019,3133.48,Supported Group Care,Supported Group Care,http://opendatacommunities.org/id/county-council/staffordshire  
Staffordshire County Council,Moorlands LD Team,Affinity Trust Ltd,09/12/2019,2549.80,Supported Group Care,Supported Group Care,http://opendatacommunities.org/id/county-council/staffordshire  
Staffordshire County Council,S Staffs LD Team,Affinity Trust Ltd,09/12/2019,3131.40,Supported Group Care,Supported Group Care,http://opendatacommunities.org/id/county-council/staffordshire  
Staffordshire County Council,S Staffs LD Team,Affinity Trust Ltd,09/12/2019,2060.10,Supported Group Care,Supported Group Care,http://opendatacommunities.org/id/county-council/staffordshire  
Staffordshire County Council,S Staffs LD Team,Affinity Trust Ltd,09/12/2019,1481.22,Supported Group Care,Supported Group Care,http://opendatacommunities.org/id/county-council/staffordshire  
Staffordshire County Council,S Staffs LD Team,Affinity Trust Ltd,09/12/2019,2755.22,Supported Group Care,Supported Group Care,http://opendatacommunities.org/id/county-council/staffordshire  
Staffordshire County Council,S Staffs LD Team,Affinity Trust Ltd,09/12/2019,2753.22,Supported Group Care,Supported Group Care,http://opendatacommunities.org/id/county-council/staffordshire  
Staffordshire County Council,Cannock Chase LD Team,Affinity Trust Ltd,09/12/2019,2241.20,Supported Group Care,Supported Group Care,http://opendatacommunities.org/id/county-council/staffordshire  
Staffordshire County Council,Cannock Chase LD Team,Affinity Trust Ltd,09/12/2019,2003.68,Supported Group Care,Supported Group Care,http://opendatacommunities.org/id/county-council/staffordshire  
Staffordshire County Council,Cannock Chase LD Team,Affinity Trust Ltd,09/12/2019,1575.64,Supported Group Care,Supported Group Care,http://opendatacommunities.org/id/county-council/staffordshire  
Staffordshire County Council,Cannock Chase LD Team,Affinity Trust Ltd,09/12/2019,1908.36,Supported Group Care,Supported Group Care,http://opendatacommunities.org/id/county-council/staffordshire  
Staffordshire County Council,Moorlands Invoice Led Older Pe,AMG NURSING & CARE SERVICES,09/12/2019,661.58,Practical Care,Practical Care,http://opendatacommunities.org/id/county-council/staffordshire  
Staffordshire County Council,Moorlands Invoice Led Older Pe,AMG NURSING & CARE SERVICES,09/12/2019,974.96,Practical Care,Practical Care,http://opendatacommunities.org/id/county-council/staffordshire  
Staffordshire County Council,Moorlands Invoice Led Older Pe,AMG NURSING & CARE SERVICES,09/12/2019,974.96,Practical Care,Practical Care,http://opendatacommunities.org/id/county-council/staffordshire  
Staffordshire County Council,Moorlands Invoice Led Older Pe,AMG NURSING & CARE SERVICES,09/12/2019,974.96,Practical Care,Practical Care,http://opendatacommunities.org/id/county-council/staffordshire  
Staffordshire County Council,Moorlands Invoice Led Older Pe,AMG NURSING & CARE SERVICES,09/12/2019,887.39,Practical Care,Practical Care,http://opendatacommunities.org/id/county-council/staffordshire  
Staffordshire County Council,Moorlands Invoice Led Older Pe,AMG NURSING & CARE SERVICES,09/12/2019,887.39,Practical Care,Practical Care,http://opendatacommunities.org/id/county-council/staffordshire  
Staffordshire County Council,Moorlands Invoice Led Older Pe,AMG NURSING & CARE SERVICES,09/12/2019,974.96,Practical Care,Practical Care,http://opendatacommunities.org/id/county-council/staffordshire  
Staffordshire County Council,Moorlands Invoice Led Older Pe,AMG NURSING & CARE SERVICES,09/12/2019,974.96,Practical Care,Practical Care,http://opendatacommunities.org/id/county-council/staffordshire  
Staffordshire County Council,Moorlands Invoice Led Older Pe,AMG NURSING & CARE SERVICES,09/12/2019,1014.16,Practical Care,Practical Care,http://opendatacommunities.org/id/county-council/staffordshire  
Staffordshire County Council,Moorlands Invoice Led Older Pe,AMG NURSING & CARE SERVICES,09/12/2019,1014.16,Practical Care,Practical Care,http://opendatacommunities.org/id/county-council/staffordshire  
Staffordshire County Council,Moorlands Invoice Led Older Pe,AMG NURSING & CARE SERVICES,09/12/2019,974.96,Practical Care,Practical Care,http://opendatacommunities.org/id/county-council/staffordshire  
Staffordshire County Council,Newcastle Invoice Led Older Pe,AMG NURSING & CARE SERVICES,09/12/2019,974.96,Practical Care,Practical Care,http://opendatacommunities.org/id/county-council/staffordshire  
Staffordshire County Council,Moorlands Invoice Led Older Pe,AMG NURSING & CARE SERVICES,09/12/2019,974.96,Practical Care,Practical Care,http://opendatacommunities.org/id/county-council/staffordshire  
Staffordshire County Council,Newcastle Invoice Led Older Pe,AMG NURSING & CARE SERVICES,09/12/2019,974.96,Practical Care,Practical Care,http://opendatacommunities.org/id/county-council/staffordshire  
Staffordshire County Council,Moorlands Invoice Led Older Pe,AMG NURSING & CARE SERVICES,09/12/2019,974.96,Practical Care,Practical Care,http://opendatacommunities.org/id/county-council/staffordshire  
Staffordshire County Council,Moorlands Invoice Led Older Pe,AMG NURSING & CARE SERVICES,09/12/2019,974.96,Practical Care,Practical Care,http://opendatacommunities.org/id/county-council/staffordshire  
Staffordshire County Council,Training,Be Smart Design Ltd,09/12/2019,696.00,Courses,Courses,http://opendatacommunities.org/id/county-council/staffordshire  
Staffordshire County Council,Speed Awareness,BOUNDARY SCHOOL OF MOTORING,09/12/2019,1040.00,DRIVING INSTRUCTION,DRIVING INSTRUCTION,http://opendatacommunities.org/id/county-council/staffordshire  
Staffordshire County Council,1348 Greenfields House ST13 6L,BOURNE ELECTRICAL CONTR LTD,09/12/2019,673.69,Day to Day Electrical Services,Day to Day Electrical Services,http://opendatacommunities.org/id/county-council/staffordshire  
Staffordshire County Council,Enson Lane Yarlet,BURTON ENVIRONMENTAL SERVS LTD,09/12/2019,4059.60,General Equipment Repair/Maint,General Equipment Repair/Maint,http://opendatacommunities.org/id/county-council/staffordshire  
Staffordshire County Council,Pupil Support Unit:Alloc,CAPITA BUSINESS SERVICES LTD,09/12/2019,9429.00,COMPUTING OTHER,COMPUTING OTHER,http://opendatacommunities.org/id/county-council/staffordshire  
Staffordshire County Council,Stafford LD Team,Caretech Community Service Ltd,09/12/2019,2220.40,Supported Group Care,Supported Group Care,http://opendatacommunities.org/id/county-council/staffordshire  
Staffordshire County Council,Stafford LD Team,Caretech Community Service Ltd,09/12/2019,2929.50,Supported Group Care,Supported Group Care,http://opendatacommunities.org/id/county-council/staffordshire  
Staffordshire County Council,Stafford LD Team,Caretech Community Service Ltd,09/12/2019,2702.70,Supported Group Care,Supported Group Care,http://opendatacommunities.org/id/county-council/staffordshire  
Staffordshire County Council,Saxon Hill School,Cartello Adams Ltd T/A Cartello Ambulanc,09/12/2019,1833.00,Home School Contract Vehicles,Home School Contract Vehicles,http://opendatacommunities.org/id/county-council/staffordshire  
Staffordshire County Council,Saxon Hill School,Cartello Adams Ltd T/A Cartello Ambulanc,09/12/2019,4655.00,Home School Contract Vehicles,Home School Contract Vehicles,http://opendatacommunities.org/id/county-council/staffordshire  
Staffordshire County Council,Saxon Hill School,Cartello Adams Ltd T/A Cartello Ambulanc,09/12/2019,3760.00,Home School Contract Vehicles,Home School Contract Vehicles,http://opendatacommunities.org/id/county-council/staffordshire  
Staffordshire County Council,Inter authority Recoup- Mainst,Castle Business & Ent College,09/12/2019,1570.14,Extra District Charges Other,Extra District Charges Other,http://opendatacommunities.org/id/county-council/staffordshire  
Staffordshire County Council,SSS - ASD Enhanc Key Stage 1/2,Childrens Choice Therapy Service,09/12/2019,1060.00,PROFESSIONAL FEES,PROFESSIONAL FEES,http://opendatacommunities.org/id/county-council/staffordshire  
Staffordshire County Council,Moorlands Invoice Led Older Pe,Community Care Worker,09/12/2019,516.60,Practical Care,Practical Care,http://opendatacommunities.org/id/county-council/staffordshire  
Staffordshire County Council,Newcastle Invoice Led Older Pe,Community Care Worker,09/12/2019,516.60,Practical Care,Practical Care,http://opendatacommunities.org/id/county-council/staffordshire  
Staffordshire County Council,Newcastle Invoice Led Older Pe,Community Care Worker,09/12/2019,728.28,Practical Care,Practical Care,http://opendatacommunities.org/id/county-council/staffordshire  
Staffordshire County Council,Moorlands Invoice Led Phys Dis,COMPANION FOR CARE SERVICES,09/12/2019,535.11,Practical Care,Practical Care,http://opendatacommunities.org/id/county-council/staffordshire  
Staffordshire County Council,Tamworth LD Team,Creative Choices CIC,09/12/2019,550.00,Day Care,Day Care,http://opendatacommunities.org/id/county-council/staffordshire  
Staffordshire County Council,Tamworth LD Team,Creative Choices CIC,09/12/2019,550.00,Day Care,Day Care,http://opendatacommunities.org/id/county-council/staffordshire  
Staffordshire County Council,Tamworth LD Team,Creative Choices CIC,09/12/2019,550.00,Day Care,Day Care,http://opendatacommunities.org/id/county-council/staffordshire  
Staffordshire County Council,Moorlands LD Team,Creative Support Ltd,09/12/2019,1638.50,Supported Group Care,Supported Group Care,http://opendatacommunities.org/id/county-council/staffordshire  
Staffordshire County Council,Moorlands LD Team,Creative Support Ltd,09/12/2019,1841.50,Supported Group Care,Supported Group Care,http://opendatacommunities.org/id/county-council/staffordshire  
Staffordshire County Council,Moorlands LD Team,Creative Support Ltd,09/12/2019,3446.98,Supported Group Care,Supported Group Care,http://opendatacommunities.org/id/county-council/staffordshire  
Staffordshire County Council,Moorlands LD Team,Creative Support Ltd,09/12/2019,2182.58,Supported Group Care,Supported Group Care,http://opendatacommunities.org/id/county-council/staffordshire  
Staffordshire County Council,Moorlands LD Team,Creative Support Ltd,09/12/2019,1392.00,Supported Group Care,Supported Group Care,http://opendatacommunities.org/id/county-council/staffordshire  
Staffordshire County Council,Cannock Chase LD Team,Creative Support Ltd,09/12/2019,2060.58,Supported Group Care,Supported Group Care,http://opendatacommunities.org/id/county-council/staffordshire  
Staffordshire County Council,Cannock Chase LD Team,Creative Support Ltd,09/12/2019,2042.58,Supported Group Care,Supported Group Care,http://opendatacommunities.org/id/county-council/staffordshire  
Staffordshire County Council,2 Contraception,Crown Medical Practice,09/12/2019,710.40,other services external,other services external,http://opendatacommunities.org/id/county-council/staffordshire  
Staffordshire County Council,Stafford Invoice Led Older Peo,CSPC Healthcare Ltd,09/12/2019,598.50,Practical Care,Practical Care,http://opendatacommunities.org/id/county-council/staffordshire  
Staffordshire County Council,Stafford Invoice Led Older Peo,CSPC Healthcare Ltd,09/12/2019,1260.00,Practical Care,Practical Care,http://opendatacommunities.org/id/county-council/staffordshire  
Staffordshire County Council,Bikeability,CYCLIST TRAINING LTD,09/12/2019,39667.40,CONSULTANT FEES,CONSULTANT FEES,http://opendatacommunities.org/id/county-council/staffordshire  
Staffordshire County Council,E Staffs LD Team,D E Healthcare,09/12/2019,1503.20,Supported Group Care,Supported Group Care,http://opendatacommunities.org/id/county-council/staffordshire  
Staffordshire County Council,Newcastle LD Team,D E Healthcare,09/12/2019,1644.22,Supported Group Care,Supported Group Care,http://opendatacommunities.org/id/county-council/staffordshire  
Staffordshire County Council,E Staffs LD Team,D E Healthcare,09/12/2019,1356.64,Supported Group Care,Supported Group Care,http://opendatacommunities.org/id/county-council/staffordshire  
Staffordshire County Council,Inter authority Recoup- Mainst,DERBYSHIRE COUNTY COUNCIL,09/12/2019,4811.00,Extra District Charges Other,Extra District Charges Other,http://opendatacommunities.org/id/county-council/staffordshire  
Staffordshire County Council,Stafford LD Team,Dimensions UK,09/12/2019,1871.26,Supported Group Care,Supported Group Care,http://opendatacommunities.org/id/county-council/staffordshire  
Staffordshire County Council,Stafford LD Team,Dimensions UK,09/12/2019,1096.56,Supported Group Care,Supported Group Care,http://opendatacommunities.org/id/county-council/staffordshire  
Staffordshire County Council,Stafford LD Team,Dimensions UK,09/12/2019,1881.38,Supported Group Care,Supported Group Care,http://opendatacommunities.org/id/county-council/staffordshire  
Staffordshire County Council,S Staffs LD Team,Dimensions UK,09/12/2019,2171.94,Supported Group Care,Supported Group Care,http://opendatacommunities.org/id/county-council/staffordshire  
Staffordshire County Council,Stafford LD Team,Dimensions UK,09/12/2019,1842.34,Supported Group Care,Supported Group Care,http://opendatacommunities.org/id/county-council/staffordshire  
Staffordshire County Council,South Staffs Coroner,Dr A Hitchcock,09/12/2019,3486.10,INQ EXPS S STAFFS,INQ EXPS S STAFFS,http://opendatacommunities.org/id/county-council/staffordshire  
Staffordshire County Council,Traffic Signal Refurbishment,DYNNIQ UK LTD,09/12/2019,28465.42,Construction Works,Construction Works,http://opendatacommunities.org/id/county-council/staffordshire  
Staffordshire County Council,DIPS,Entrust Support Services Ltd,09/12/2019,6900.00, Alternative Education Schemes, Alternative Education Schemes,http://opendatacommunities.org/id/county-council/staffordshire  
Staffordshire County Council,Moorlands Invoice Led Older Pe,Essential Health Limited,09/12/2019,882.00,Practical Care,Practical Care,http://opendatacommunities.org/id/county-council/staffordshire  
Staffordshire County Council,Public Transp Support & Co-ord,Going My Way Ltd T/A Stantons of Stoke,09/12/2019,11052.72,Payments to Bus Operators,Payments to Bus Operators,http://opendatacommunities.org/id/county-council/staffordshire  
Staffordshire County Council,BLT MH Team 65+,Grangemoor Care Homes Limited,09/12/2019,1896.43,Supported Group Care,Supported Group Care,http://opendatacommunities.org/id/county-council/staffordshire  
Staffordshire County Council,Newcastle MH Team U65,Gray Healthcare Ltd,09/12/2019,7550.32,Supported Group Care,Supported Group Care,http://opendatacommunities.org/id/county-council/staffordshire  
Staffordshire County Council,Moorlands LD Team,Heritage Care,09/12/2019,2585.98,Supported Group Care,Supported Group Care,http://opendatacommunities.org/id/county-council/staffordshire  
Staffordshire County Council,Moorlands LD Team,Heritage Care,09/12/2019,3033.38,Supported Group Care,Supported Group Care,http://opendatacommunities.org/id/county-council/staffordshire  
Staffordshire County Council,E Staffs LD Team,Heritage Care,09/12/2019,3197.34,Supported Group Care,Supported Group Care,http://opendatacommunities.org/id/county-council/staffordshire  
Staffordshire County Council,E Staffs LD Team,Heritage Care,09/12/2019,1842.98,Supported Group Care,Supported Group Care,http://opendatacommunities.org/id/county-council/staffordshire  
Staffordshire County Council,E Staffs LD Team,Heritage Care,09/12/2019,2181.30,Supported Group Care,Supported Group Care,http://opendatacommunities.org/id/county-council/staffordshire  
Staffordshire County Council,E Staffs LD Team,Heritage Care,09/12/2019,1659.18,Supported Group Care,Supported Group Care,http://opendatacommunities.org/id/county-council/staffordshire  
Staffordshire County Council,E Staffs LD Team,Heritage Care,09/12/2019,3009.98,Supported Group Care,Supported Group Care,http://opendatacommunities.org/id/county-council/staffordshire  
Staffordshire County Council,E Staffs LD Team,Heritage Care,09/12/2019,1660.70,Supported Group Care,Supported Group Care,http://opendatacommunities.org/id/county-council/staffordshire  
Staffordshire County Council,E Staffs LD Team,Heritage Care,09/12/2019,2552.66,Supported Group Care,Supported Group Care,http://opendatacommunities.org/id/county-council/staffordshire  
Staffordshire County Council,E Staffs LD Team,Heritage Care,09/12/2019,1272.40,Supported Group Care,Supported Group Care,http://opendatacommunities.org/id/county-council/staffordshire  
Staffordshire County Council,E Staffs LD Team,Heritage Care,09/12/2019,2552.08,Supported Group Care,Supported Group Care,http://opendatacommunities.org/id/county-council/staffordshire  
Staffordshire County Council,"Bluestone Lane, B-O-T South",Heritage Care,09/12/2019,1370.32,Supported Group Care,Supported Group Care,http://opendatacommunities.org/id/county-council/staffordshire  
Staffordshire County Council,Independent School Fee Special,High Grange Specialist School,09/12/2019,33185.00,Fees to Independent Schools,Fees to Independent Schools,http://opendatacommunities.org/id/county-council/staffordshire  
Staffordshire County Council,Independent School Fee Special,High Grange Specialist School,09/12/2019,33185.00,Fees to Independent Schools,Fees to Independent Schools,http://opendatacommunities.org/id/county-council/staffordshire  
Staffordshire County Council,Independent School Fee Special,High Grange Specialist School,09/12/2019,33185.00,Fees to Independent Schools,Fees to Independent Schools,http://opendatacommunities.org/id/county-council/staffordshire  
Staffordshire County Council,Independent School Fee Special,High Grange Specialist School,09/12/2019,33185.00,Fees to Independent Schools,Fees to Independent Schools,http://opendatacommunities.org/id/county-council/staffordshire  
Staffordshire County Council,Independent School Fee Special,High Grange Specialist School,09/12/2019,33185.00,Fees to Independent Schools,Fees to Independent Schools,http://opendatacommunities.org/id/county-council/staffordshire  
Staffordshire County Council,E Staffs LD Team,HILL LODGE,09/12/2019,2600.00,Supported Group Care,Supported Group Care,http://opendatacommunities.org/id/county-council/staffordshire  
Staffordshire County Council,East Staffs Invoice Led Phys D,K and S Care Solutions Ltd,09/12/2019,821.80,Practical Care,Practical Care,http://opendatacommunities.org/id/county-council/staffordshire  
Staffordshire County Council,Stafford Invoice Led Older Peo,K and S Care Solutions Ltd,09/12/2019,853.65,Practical Care,Practical Care,http://opendatacommunities.org/id/county-council/staffordshire  
Staffordshire County Council,Stafford Invoice Led Older Peo,K and S Care Solutions Ltd,09/12/2019,576.80,Practical Care,Practical Care,http://opendatacommunities.org/id/county-council/staffordshire  
Staffordshire County Council,Stafford Invoice Led Phys Disa,K and S Care Solutions Ltd,09/12/2019,1072.58,Practical Care,Practical Care,http://opendatacommunities.org/id/county-council/staffordshire  
Staffordshire County Council,Moorlands Invoice Led Older Pe,K and S Care Solutions Ltd,09/12/2019,606.90,Practical Care,Practical Care,http://opendatacommunities.org/id/county-council/staffordshire  
Staffordshire County Council,Independent School Fee Special,LEWIS CHARLTON SCHOOL,09/12/2019,19950.00,Fees to Independent Schools,Fees to Independent Schools,http://opendatacommunities.org/id/county-council/staffordshire  
Staffordshire County Council,Independent School Fee Special,LEWIS CHARLTON SCHOOL,09/12/2019,22450.00,Fees to Independent Schools,Fees to Independent Schools,http://opendatacommunities.org/id/county-council/staffordshire  
Staffordshire County Council,Moorlands LD Team,Lifeways Community Care Ltd,09/12/2019,3550.26,Supported Group Care,Supported Group Care,http://opendatacommunities.org/id/county-council/staffordshire  
Staffordshire County Council,Moorlands LD Team,Lifeways Community Care Ltd,09/12/2019,2534.84,Supported Group Care,Supported Group Care,http://opendatacommunities.org/id/county-council/staffordshire  
Staffordshire County Council,Newcastle LD Team,Lifeways Community Care Ltd,09/12/2019,982.10,Supported Group Care,Supported Group Care,http://opendatacommunities.org/id/county-council/staffordshire  
Staffordshire County Council,Moorlands LD Team,Lifeways Community Care Ltd,09/12/2019,4483.62,Supported Group Care,Supported Group Care,http://opendatacommunities.org/id/county-council/staffordshire  
Staffordshire County Council,Stafford LD Team,Lifeways Community Care Ltd,09/12/2019,1496.14,Supported Group Care,Supported Group Care,http://opendatacommunities.org/id/county-council/staffordshire  
Staffordshire County Council,Stafford LD Team,Lifeways Community Care Ltd,09/12/2019,3239.62,Supported Group Care,Supported Group Care,http://opendatacommunities.org/id/county-council/staffordshire  
Staffordshire County Council,E Staffs LD Team,Lifeways Community Care Ltd,09/12/2019,4155.20,Supported Group Care,Supported Group Care,http://opendatacommunities.org/id/county-council/staffordshire  
Staffordshire County Council,S Staffs LD Team,Lifeways Community Care Ltd,09/12/2019,1774.14,Supported Group Care,Supported Group Care,http://opendatacommunities.org/id/county-council/staffordshire  
Staffordshire County Council,S Staffs LD Team,Lifeways Community Care Ltd,09/12/2019,2357.92,Supported Group Care,Supported Group Care,http://opendatacommunities.org/id/county-council/staffordshire  
Staffordshire County Council,E Staffs LD Team,Lifeways Community Care Ltd,09/12/2019,2785.04,Supported Group Care,Supported Group Care,http://opendatacommunities.org/id/county-council/staffordshire  
Staffordshire County Council,E Staffs LD Team,Lifeways Community Care Ltd,09/12/2019,2785.04,Supported Group Care,Supported Group Care,http://opendatacommunities.org/id/county-council/staffordshire  
Staffordshire County Council,Stafford LD Team,Linfield Care Ltd,09/12/2019,2360.50,Supported Group Care,Supported Group Care,http://opendatacommunities.org/id/county-council/staffordshire  
Staffordshire County Council,Stafford LD Team,Linfield Care Ltd,09/12/2019,2360.50,Supported Group Care,Supported Group Care,http://opendatacommunities.org/id/county-council/staffordshire  
Staffordshire County Council,Tamworth LD Team,Living Ambitions Limited,09/12/2019,1190.60,Supported Group Care,Supported Group Care,http://opendatacommunities.org/id/county-council/staffordshire  
Staffordshire County Council,Stafford LD Team,Living Ambitions Limited,09/12/2019,2321.28,Supported Group Care,Supported Group Care,http://opendatacommunities.org/id/county-council/staffordshire  
Staffordshire County Council,Stafford LD Team,Living Ambitions Limited,09/12/2019,987.30,Supported Group Care,Supported Group Care,http://opendatacommunities.org/id/county-council/staffordshire  
Staffordshire County Council,Stafford LD Team,Living Ambitions Limited,09/12/2019,815.02,Supported Group Care,Supported Group Care,http://opendatacommunities.org/id/county-council/staffordshire  
Staffordshire County Council,Stafford LD Team,Living Ambitions Limited,09/12/2019,1945.52,Supported Group Care,Supported Group Care,http://opendatacommunities.org/id/county-council/staffordshire  
Staffordshire County Council,S Staffs LD Team,Living Ambitions Limited,09/12/2019,2780.40,Supported Group Care,Supported Group Care,http://opendatacommunities.org/id/county-council/staffordshire  
Staffordshire County Council,Stafford LD Team,Living Ambitions Limited,09/12/2019,2821.48,Supported Group Care,Supported Group Care,http://opendatacommunities.org/id/county-council/staffordshire  
Staffordshire County Council,Cannock Chase LD Team,Living Ambitions Limited,09/12/2019,1387.36,Supported Group Care,Supported Group Care,http://opendatacommunities.org/id/county-council/staffordshire  
Staffordshire County Council,Stafford LD Team,Living Ambitions Limited,09/12/2019,1057.50,Supported Group Care,Supported Group Care,http://opendatacommunities.org/id/county-council/staffordshire  
Staffordshire County Council,Stafford LD Team,Living Ambitions Limited,09/12/2019,2653.94,Supported Group Care,Supported Group Care,http://opendatacommunities.org/id/county-council/staffordshire  
Staffordshire County Council,Stafford LD Team,Living Ambitions Limited,09/12/2019,826.78,Supported Group Care,Supported Group Care,http://opendatacommunities.org/id/county-council/staffordshire  
Staffordshire County Council,S Staffs LD Team,Living Ambitions Limited,09/12/2019,1355.30,Supported Group Care,Supported Group Care,http://opendatacommunities.org/id/county-council/staffordshire  
Staffordshire County Council,Cannock Chase LD Team,Living Ambitions Limited,09/12/2019,1288.50,Supported Group Care,Supported Group Care,http://opendatacommunities.org/id/county-council/staffordshire  
Staffordshire County Council,Cannock Chase LD Team,Living Ambitions Limited,09/12/2019,5106.18,Supported Group Care,Supported Group Care,http://opendatacommunities.org/id/county-council/staffordshire  
Staffordshire County Council,Tamworth LD Team,Living Ambitions Limited,09/12/2019,1809.70,Supported Group Care,Supported Group Care,http://opendatacommunities.org/id/county-council/staffordshire  
Staffordshire County Council,Tamworth LD Team,Living Ambitions Limited,09/12/2019,1112.06,Supported Group Care,Supported Group Care,http://opendatacommunities.org/id/county-council/staffordshire  
Staffordshire County Council,Newcastle LD Team,Living Ambitions Limited,09/12/2019,1998.74,Supported Group Care,Supported Group Care,http://opendatacommunities.org/id/county-council/staffordshire  
Staffordshire County Council,Moorlands LD Team,Living Ambitions Limited,09/12/2019,1843.56,Supported Group Care,Supported Group Care,http://opendatacommunities.org/id/county-council/staffordshire  
Staffordshire County Council,Newcastle LD Team,Living Ambitions Limited,09/12/2019,2010.74,Supported Group Care,Supported Group Care,http://opendatacommunities.org/id/county-council/staffordshire  
Staffordshire County Council,Newcastle LD Team,Living Ambitions Limited,09/12/2019,2542.86,Supported Group Care,Supported Group Care,http://opendatacommunities.org/id/county-council/staffordshire  
Staffordshire County Council,Newcastle LD Team,Living Ambitions Limited,09/12/2019,2502.14,Supported Group Care,Supported Group Care,http://opendatacommunities.org/id/county-council/staffordshire  
Staffordshire County Council,Newcastle LD Team,Living Ambitions Limited,09/12/2019,1620.60,Supported Group Care,Supported Group Care,http://opendatacommunities.org/id/county-council/staffordshire  
Staffordshire County Council,Newcastle LD Team,Living Ambitions Limited,09/12/2019,2089.08,Supported Group Care,Supported Group Care,http://opendatacommunities.org/id/county-council/staffordshire  
Staffordshire County Council,Newcastle LD Team,Living Ambitions Limited,09/12/2019,1992.26,Supported Group Care,Supported Group Care,http://opendatacommunities.org/id/county-council/staffordshire  
Staffordshire County Council,Newcastle LD Team,Living Ambitions Limited,09/12/2019,2826.82,Supported Group Care,Supported Group Care,http://opendatacommunities.org/id/county-council/staffordshire  
Staffordshire County Council,Newcastle LD Team,Living Ambitions Limited,09/12/2019,2951.92,Supported Group Care,Supported Group Care,http://opendatacommunities.org/id/county-council/staffordshire  
Staffordshire County Council,Newcastle LD Team,Living Ambitions Limited,09/12/2019,2821.12,Supported Group Care,Supported Group Care,http://opendatacommunities.org/id/county-council/staffordshire  
Staffordshire County Council,Moorlands LD Team,Living Ambitions Limited,09/12/2019,1918.78,Supported Group Care,Supported Group Care,http://opendatacommunities.org/id/county-council/staffordshire  
Staffordshire County Council,Newcastle LD Team,Living Ambitions Limited,09/12/2019,1465.96,Supported Group Care,Supported Group Care,http://opendatacommunities.org/id/county-council/staffordshire  
Staffordshire County Council,Newcastle LD Team,Living Ambitions Limited,09/12/2019,1664.28,Supported Group Care,Supported Group Care,http://opendatacommunities.org/id/county-council/staffordshire  
Staffordshire County Council,Newcastle LD Team,Living Ambitions Limited,09/12/2019,1993.68,Supported Group Care,Supported Group Care,http://opendatacommunities.org/id/county-council/staffordshire  
Staffordshire County Council,Newcastle LD Team,Living Ambitions Limited,09/12/2019,1752.84,Supported Group Care,Supported Group Care,http://opendatacommunities.org/id/county-council/staffordshire  
Staffordshire County Council,Stafford LD Team,Living Ambitions Limited,09/12/2019,2872.00,Supported Group Care,Supported Group Care,http://opendatacommunities.org/id/county-council/staffordshire  
Staffordshire County Council,Pensions Services,Local Government Association,09/12/2019,8323.20,Subs & Purch of Publications,Subs & Purch of Publications,http://opendatacommunities.org/id/county-council/staffordshire  
Staffordshire County Council,S Staffs LD Team,Mencap - Central,09/12/2019,5551.48,Supported Group Care,Supported Group Care,http://opendatacommunities.org/id/county-council/staffordshire  
Staffordshire County Council,Newcastle LD Team,Mencap - Central,09/12/2019,911.40,Practical Care,Practical Care,http://opendatacommunities.org/id/county-council/staffordshire  
Staffordshire County Council,Various - External Areas Signa,N & J TREE SERVICES LTD,09/12/2019,696.00,Construction Works,Construction Works,http://opendatacommunities.org/id/county-council/staffordshire  
Staffordshire County Council,Lichfield Invoice Led Older Pe,Nexus Care Services,09/12/2019,626.60,Practical Care,Practical Care,http://opendatacommunities.org/id/county-council/staffordshire  
Staffordshire County Council,Speed Awareness,P GORING,09/12/2019,650.00,DRIVING INSTRUCTION,DRIVING INSTRUCTION,http://opendatacommunities.org/id/county-council/staffordshire  
Staffordshire County Council,Fostering South,Papillon Translations Ltd,09/12/2019,886.89,Fostering Conting Boarded Out,Fostering Conting Boarded Out,http://opendatacommunities.org/id/county-council/staffordshire  
Staffordshire County Council,Independent School Fee Special,PEAK PURSUITS LTD,09/12/2019,7080.00,Fees to Independent Schools,Fees to Independent Schools,http://opendatacommunities.org/id/county-council/staffordshire  
Staffordshire County Council,Improving Practice,Permanent Futures Ltd,09/12/2019,3570.00,CONSULTANT FEES,CONSULTANT FEES,http://opendatacommunities.org/id/county-council/staffordshire  
Staffordshire County Council,Cent Cty Psychol Service HQ,Plumanicca Psychology Ltd,09/12/2019,900.00,PROFESSIONAL FEES,PROFESSIONAL FEES,http://opendatacommunities.org/id/county-council/staffordshire  
Staffordshire County Council,Speed Awareness,Port Vale Football Club Ltd,09/12/2019,990.00,Premises Services,Premises Services,http://opendatacommunities.org/id/county-council/staffordshire  
Staffordshire County Council,Speed Awareness,R BROWN,09/12/2019,1430.00,DRIVING INSTRUCTION,DRIVING INSTRUCTION,http://opendatacommunities.org/id/county-council/staffordshire  
Staffordshire County Council,Four Ashes - ERF,SANDWELL METRO B C,09/12/2019,244807.15,Waste Treatment,Waste Treatment,http://opendatacommunities.org/id/county-council/staffordshire  
Staffordshire County Council,Stafford LD Team,Selbourne Care Ltd,09/12/2019,2752.00,Supported Group Care,Supported Group Care,http://opendatacommunities.org/id/county-council/staffordshire  
Staffordshire County Council,Stat-OOC transport,SPORTING STARS COMM INTEREST CO,09/12/2019,2800.00,Home School Contract Vehicles,Home School Contract Vehicles,http://opendatacommunities.org/id/county-council/staffordshire  
Staffordshire County Council,Stat-OOC transport,SPORTING STARS COMM INTEREST CO,09/12/2019,3200.00,Home School Contract Vehicles,Home School Contract Vehicles,http://opendatacommunities.org/id/county-council/staffordshire  
Staffordshire County Council,Independent Sch Fees Mainstr'm,SPORTING STARS COMM INTEREST CO,09/12/2019,6142.50,Fees to Independent Schools,Fees to Independent Schools,http://opendatacommunities.org/id/county-council/staffordshire  
Staffordshire County Council,Independent Sch Fees Mainstr'm,SPORTING STARS COMM INTEREST CO,09/12/2019,7247.50,Fees to Independent Schools,Fees to Independent Schools,http://opendatacommunities.org/id/county-council/staffordshire  
Staffordshire County Council,Independent Sch Fees Mainstr'm,SPORTING STARS COMM INTEREST CO,09/12/2019,6389.00,Fees to Independent Schools,Fees to Independent Schools,http://opendatacommunities.org/id/county-council/staffordshire  
Staffordshire County Council,Independent Sch Fees Mainstr'm,SPORTING STARS COMM INTEREST CO,09/12/2019,6142.50,Fees to Independent Schools,Fees to Independent Schools,http://opendatacommunities.org/id/county-council/staffordshire  
Staffordshire County Council,Independent Sch Fees Mainstr'm,SPORTING STARS COMM INTEREST CO,09/12/2019,5453.00,Fees to Independent Schools,Fees to Independent Schools,http://opendatacommunities.org/id/county-council/staffordshire  
Staffordshire County Council,Independent Sch Fees Mainstr'm,SPORTING STARS COMM INTEREST CO,09/12/2019,7117.50,Fees to Independent Schools,Fees to Independent Schools,http://opendatacommunities.org/id/county-council/staffordshire  
Staffordshire County Council,Independent Sch Fees Mainstr'm,SPORTING STARS COMM INTEREST CO,09/12/2019,7564.00,Fees to Independent Schools,Fees to Independent Schools,http://opendatacommunities.org/id/county-council/staffordshire  
Staffordshire County Council,Independent Sch Fees Mainstr'm,SPORTING STARS COMM INTEREST CO,09/12/2019,5667.50,Fees to Independent Schools,Fees to Independent Schools,http://opendatacommunities.org/id/county-council/staffordshire  
Staffordshire County Council,Independent Sch Fees Mainstr'm,SPORTING STARS COMM INTEREST CO,09/12/2019,7507.50,Fees to Independent Schools,Fees to Independent Schools,http://opendatacommunities.org/id/county-council/staffordshire  
Staffordshire County Council,Independent Sch Fees Mainstr'm,SPORTING STARS COMM INTEREST CO,09/12/2019,5765.00,Fees to Independent Schools,Fees to Independent Schools,http://opendatacommunities.org/id/county-council/staffordshire  
